Workbook

Sheet iniTurma
B1: Ano: | C1: 3 | F1: Média: | G1: =IF(COUNTA(G4:G53)>0,AVERAGE(G4:G53),"") -> 43.4 | H1: =IF(COUNTA(H4:H53)>0,AVERAGE(H4:H53),"") -> 37 | I1: 32.8 | J1: 36
A2: =COUNTIF(B4:B53,"x") -> 1 | B2: Turma: | C2: B | F2: Desvio-padrão: | G2: =IF(COUNTA(G4:G53)>0,_xlfn.STDEV.P(G4:G53),"") -> 6.651315659 | H2: =IF(COUNTA(H4:H53)>0,_xlfn.STDEV.P(H4:H53),"") -> 25.68073208 | I2: 13.04453909 | J2: 22.054478
A3: ID Aluno | B3: =_xlfn.CONCAT("Ver: ",COUNTIF(B4:B53,"x")) -> Ver: 1 | C3: Nome | D3: Género | E3: Data Nascimento | F3: Data Avaliação | G3: TL_Ponto | H3: SL_Ponto | I3: EQ_Ponto | J3: SM_Ponto
A4: 1 | C4: Maria Adelaide | D4: Menina | E4: 2000-01-01 | F4: 2007-01-01 | G4: 35 | H4: 8 | I4: 25 | J4: 63
A5: =A4+1 -> 2 | C5: Manuel Silva | D5: Menino | E5: 2000-01-01 | F5: 2007-01-01 | G5: 45 | I5: 54 | J5: 63
A6: =A5+1 -> 3 | B6: x | C6: Pedro Silva | D6: Menino | E6: 2015-03-11 | F6: 2022-05-30 | G6: 40 | H6: 45 | I6: 22 | J6: 18
A7: 4 | C7: António Ferreira | D7: Menino | E7: 2014-08-23 | F7: 2021-01-12 | G7: 42 | H7: 20 | I7: 21 | J7: 19
A8: 5 | C8: Teresa Martinho | D8: Menina | E8: 2012-07-10 | F8: 2022-04-11 | G8: 55 | H8: 75 | I8: 42 | J8: 17
A9: 6
A10: 7
A11: 8
A12: 9
A13: 10
A14: 11
A15: 12
A16: 13
A17: 14
A18: 15
A19: 16
A20: 17
A21: 18
A22: 19
A23: 20
A24: 21
A25: 22
A26: 23
A27: 24
A28: 25
A29: 26
A30: 27
A31: 28
A32: 29
A33: 30
A34: 31
A35: 32
A36: 33
A37: 34
A38: 35
A39: 36
A40: 37
A41: 38
A42: 39
A43: 40
A44: 41
A45: 42
A46: 43
A47: 44
A48: 45
A49: 46
A50: 47
A51: 48
A52: 49
A53: 50

Sheet iniRelatório
A1: RELATÓRIO INDIVIDUAL DA COORDENAÇÃO MOTORA
A2: =IF(iniTurma!A2=1,VLOOKUP("x",iniTurma!B$4:M$53,2,0),"") -> Pedro Silva
A3: =IF(iniTurma!A2=1,_xlfn.CONCAT(TEXT(VLOOKUP("x",iniTurma!B$4:M$53,4,0),"dd-mm-aaaa")," | ",iniTurma!C1,"º ano"," | ",iniTurma!C2),"") -> 11-03-2015 | 3º ano | B
B5: Pontuação | D5: Média | F5: Mínimo | H5: Máximo
B6: da criança | D6: da turma | F6: da turma | H6: da turma
A7: =IF(iniTurma!A2=1,Auxiliar!C3,0) -> Transposição lateral | B7: =IF(iniTurma!$A$2=1,VLOOKUP("x",iniTurma!$B$4:$J$53,6,0),0) -> 40 | D7: =IF(iniTurma!A2=1,iniTurma!G1,0) -> 43.4 | F7: =IF(iniTurma!A2=1,SMALL(iniTurma!G4:G53,1),0) -> 35 | H7: =IF(iniTurma!A2=1,LARGE(iniTurma!G4:G53,1),0) -> 55
A9: =IF(iniTurma!A2=1,Auxiliar!C4,0) -> Saltos laterais | B9: =IF(iniTurma!$A$2=1,VLOOKUP("x",iniTurma!$B$4:$J$53,7,0),0) -> 45 | D9: =IF(iniTurma!A2=1,iniTurma!H1,0) -> 37 | F9: =IF(iniTurma!A2=1,SMALL(iniTurma!H4:H53,1),0) -> 8 | H9: =IF(iniTurma!A2=1,LARGE(iniTurma!H4:H53,1),0) -> 75
A11: =IF(iniTurma!A2=1,Auxiliar!C5,0) -> Equilíbrio à retaguarda | B11: =IF(iniTurma!$A$2=1,VLOOKUP("x",iniTurma!$B$4:$J$53,8,0),0) -> 22 | D11: =IF(iniTurma!A2=1,iniTurma!I1,0) -> 32.8 | F11: =IF(iniTurma!A2=1,SMALL(iniTurma!I4:I53,1),0) -> 21 | H11: =IF(iniTurma!A2=1,LARGE(iniTurma!I4:I53,1),0) -> 54
A13: =IF(iniTurma!A2=1,Auxiliar!C6,0) -> Saltos monopedais | B13: =IF(iniTurma!$A$2=1,VLOOKUP("x",iniTurma!$B$4:$J$53,9,0),0) -> 18 | D13: =IF(iniTurma!A2=1,iniTurma!J1,0) -> 36 | F13: =IF(iniTurma!A2=1,SMALL(iniTurma!J4:J53,1),0) -> 17 | H13: =IF(iniTurma!A2=1,LARGE(iniTurma!J4:J53,1),0) -> 63
A16: PONTUAÇÃO TOTAL | B16: =IF(iniTurma!$A2=1,B7+B9+B11+B13,0) -> 125 | D16: =IF(iniTurma!$A2=1,D7+D9+D11+D13,0) -> 149.2 | F16: =IF(iniTurma!$A2=1,F7+F9+F11+F13,0) -> 81 | H16: =IF(iniTurma!$A2=1,H7+H9+H11+H13,0) -> 247
F17: Nível coordenativo
A18: QUOCIENTE MOTOR | B18: =IF(iniTurma!A2=1,VLOOKUP("x",iniKTK!A4:N53,12,0),0) -> 95 | F18: =IF(iniTurma!A2=1,VLOOKUP("x",iniKTK!A4:P53,15,0),"") -> Desempenho
F19: =IF(iniTurma!A2=1,VLOOKUP("x",iniKTK!A4:P53,16,0),"") -> típico ou normal
A22: Perfil

Sheet iniKTK (hidden)
B1: Ano: | C1: =IF(iniTurma!C1=0,"",iniTurma!C1) -> 3
B2: Turma: | C2: =IF(iniTurma!C2=0,"",iniTurma!C2) -> B
A3: =iniTurma!B3 -> Ver: 1 | B3: ID Aluno | C3: Nome | D3: Idade decimal | E3: Idade KTK | F3: Coluna Idade | G3: TL_Cof | H3: SL_Cof | I3: EQ_Cof | J3: SM_Cof | K3: Soma_KTK | L3: MQ_KTK | M3: Nível_KTK | N3: Percentil_KTK
A4: =IF(iniTurma!B4<>"",iniTurma!B4,"") ->  | B4: =iniTurma!A4 -> 1 | C4: =IF(iniTurma!C4=0,"",iniTurma!C4) -> Maria Adelaide | D4: =IF(OR(iniTurma!E4="",iniTurma!F4=""),"",(iniTurma!F4-iniTurma!E4)/365.25) -> 7.000684463 | E4: =IF(OR(iniTurma!E4="",iniTurma!F4=""),"",iniTurma!F4-iniTurma!E4) -> 2557 | F4: =IF(AND(E4>1000,E4<2192),2, IF(AND(E4>= 2192,E4<2557),3, IF(AND(E4>=2557,E4<2922),4, IF(AND(E4>=2922,E4<3287),5, IF(AND(E4>=3287,E4<3653),6, IF(AND(E4>=3653,E4<4018),7, IF(AND(E4>=4018,E4<4383),8, IF(AND(E4>=4383,E4<4748),9, IF(AND(E4>=4748,E4<5478),10,"") ) ) ) ) ) ) ) ) -> 4 | G4: =IF(OR(F4="",iniTurma!G4=""),"",VLOOKUP(iniTurma!G4,References!A$3:J$78,F4,0)) -> 98 | H4: =IF(OR(F4="",iniTurma!H4=""),"",IF(iniTurma!D4="Menino",VLOOKUP(iniTurma!H4,References!A$103:J$208,F4,0),VLOOKUP(iniTurma!H4,References!A$303:J$413,F4,0))) -> 50 | I4: =IF(OR(F4="",iniTurma!I4=""),"",VLOOKUP(iniTurma!I4,References!A$503:J$575,F4,0)) -> 82 | J4: =IF(OR(F4="",iniTurma!J4=""),"",IF(iniTurma!D4="Menino",VLOOKUP(iniTurma!J4,References!A$603:J$681,F4,0),VLOOKUP(iniTurma!J4,References!A$803:J$881,F4,0))) -> 132 | K4: =IF(OR(G4="",OR(H4="",OR(I4="",J4=""))),"",G4+H4+I4+J4) -> 362 | L4: =IF(K4="","",VLOOKUP(K4,References!A$903:B$1362,2,)) -> 88 | M4: =IF(L4="","",IF(AND(40<=L4,L4<=70),"Perturbação da coordenação", IF(AND(71<=L4,L4<=85),"Desempenho coordenativo insuficiente", IF(AND(86<=L4,L4<=115),"Desempenho coordenativo típico ou normal", IF(AND(116<=L4,L4<=130),"Bom desempenho coordenativo", IF(AND(131<=L4,L4<=145),"Elevado desempenho coordenativo", "") ) ) ))) -> Desempenho coordenativo típico ou normal | N4: =IF(L4="","",VLOOKUP(L4,References!A$1403:B$1903,2,0)) -> 21 | O4: =IF(L4="","",IF(AND(40<=L4,L4<=70),"Perturbação da", IF(AND(71<=L4,L4<=85),"Desempenho", IF(AND(86<=L4,L4<=115),"Desempenho", IF(AND(116<=L4,L4<=130),"Bom desempenho", IF(AND(131<=L4,L4<=145),"Elevado", "") ) ) ))) -> Desempenho | P4: =IF(L4="","",IF(AND(40<=L4,L4<=70),"coordenação", IF(AND(71<=L4,L4<=85),"insuficiente", IF(AND(86<=L4,L4<=115),"típico ou normal", IF(AND(116<=L4,L4<=130),"coordenativo", IF(AND(131<=L4,L4<=145),"desempenho", "") ) ) ))) -> típico ou normal
A5: =IF(iniTurma!B5<>"",iniTurma!B5,"") ->  | B5: =iniTurma!A5 -> 2 | C5: =IF(iniTurma!C5=0,"",iniTurma!C5) -> Manuel Silva | D5: =IF(OR(iniTurma!E5="",iniTurma!F5=""),"",(iniTurma!F5-iniTurma!E5)/365.25) -> 7.000684463 | E5: =IF(OR(iniTurma!E5="",iniTurma!F5=""),"",iniTurma!F5-iniTurma!E5) -> 2557 | F5: =IF(AND(E5>1000,E5<2192),2, IF(AND(E5>= 2192,E5<2557),3, IF(AND(E5>=2557,E5<2922),4, IF(AND(E5>=2922,E5<3287),5, IF(AND(E5>=3287,E5<3653),6, IF(AND(E5>=3653,E5<4018),7, IF(AND(E5>=4018,E5<4383),8, IF(AND(E5>=4383,E5<4748),9, IF(AND(E5>=4748,E5<5478),10,"") ) ) ) ) ) ) ) ) -> 4 | G5: =IF(OR(F5="",iniTurma!G5=""),"",VLOOKUP(iniTurma!G5,References!A$3:J$78,F5,0)) -> 122 | H5: =IF(OR(F5="",iniTurma!H5=""),"",IF(iniTurma!D5="Menino",VLOOKUP(iniTurma!H5,References!A$103:J$208,F5,0),VLOOKUP(iniTurma!H5,References!A$303:J$413,F5,0))) ->  | I5: =IF(OR(F5="",iniTurma!I5=""),"",VLOOKUP(iniTurma!I5,References!A$503:J$575,F5,0)) -> 114 | J5: =IF(OR(F5="",iniTurma!J5=""),"",IF(iniTurma!D5="Menino",VLOOKUP(iniTurma!J5,References!A$603:J$681,F5,0),VLOOKUP(iniTurma!J5,References!A$803:J$881,F5,0))) -> 132 | K5: =IF(OR(G5="",OR(H5="",OR(I5="",J5=""))),"",G5+H5+I5+J5) ->  | L5: =IF(K5="","",VLOOKUP(K5,References!A$903:B$1362,2,)) ->  | M5: =IF(L5="","",IF(AND(40<=L5,L5<=70),"Perturbação da coordenação", IF(AND(71<=L5,L5<=85),"Desempenho coordenativo insuficiente", IF(AND(86<=L5,L5<=115),"Desempenho coordenativo típico ou normal", IF(AND(116<=L5,L5<=130),"Bom desempenho coordenativo", IF(AND(131<=L5,L5<=145),"Elevado desempenho coordenativo", "") ) ) ))) ->  | N5: =IF(L5="","",VLOOKUP(L5,References!A$1403:B$1903,2,0)) ->  | O5: =IF(L5="","",IF(AND(40<=L5,L5<=70),"Perturbação da", IF(AND(71<=L5,L5<=85),"Desempenho", IF(AND(86<=L5,L5<=115),"Desempenho", IF(AND(116<=L5,L5<=130),"Bom desempenho", IF(AND(131<=L5,L5<=145),"Elevado", "") ) ) ))) ->  | P5: =IF(L5="","",IF(AND(40<=L5,L5<=70),"coordenação", IF(AND(71<=L5,L5<=85),"insuficiente", IF(AND(86<=L5,L5<=115),"típico ou normal", IF(AND(116<=L5,L5<=130),"coordenativo", IF(AND(131<=L5,L5<=145),"desempenho", "") ) ) ))) -> 
A6: =IF(iniTurma!B6<>"",iniTurma!B6,"") -> x | B6: =iniTurma!A6 -> 3 | C6: =IF(iniTurma!C6=0,"",iniTurma!C6) -> Pedro Silva | D6: =IF(OR(iniTurma!E6="",iniTurma!F6=""),"",(iniTurma!F6-iniTurma!E6)/365.25) -> 7.219712526 | E6: =IF(OR(iniTurma!E6="",iniTurma!F6=""),"",iniTurma!F6-iniTurma!E6) -> 2637 | F6: 4 | G6: =IF(OR(F6="",iniTurma!G6=""),"",VLOOKUP(iniTurma!G6,References!A$3:J$78,F6,0)) -> 110 | H6: =IF(OR(F6="",iniTurma!H6=""),"",IF(iniTurma!D6="Menino",VLOOKUP(iniTurma!H6,References!A$103:J$208,F6,0),VLOOKUP(iniTurma!H6,References!A$303:J$413,F6,0))) -> 113 | I6: =IF(OR(F6="",iniTurma!I6=""),"",VLOOKUP(iniTurma!I6,References!A$503:J$575,F6,0)) -> 79 | J6: =IF(OR(F6="",iniTurma!J6=""),"",IF(iniTurma!D6="Menino",VLOOKUP(iniTurma!J6,References!A$603:J$681,F6,0),VLOOKUP(iniTurma!J6,References!A$803:J$881,F6,0))) -> 82 | K6: 384 | L6: =IF(K6="","",VLOOKUP(K6,References!A$903:B$1362,2,)) -> 95 | M6: Desempenho coordenativo típico ou normal | N6: =IF(L6="","",VLOOKUP(L6,References!A$1403:B$1903,2,0)) -> 36 | O6: Desempenho | P6: típico ou normal
A7: =IF(iniTurma!B7<>"",iniTurma!B7,"") ->  | B7: =iniTurma!A7 -> 4 | C7: =IF(iniTurma!C7=0,"",iniTurma!C7) -> António Ferreira | D7: =IF(OR(iniTurma!E7="",iniTurma!F7=""),"",(iniTurma!F7-iniTurma!E7)/365.25) -> 6.390143737 | E7: =IF(OR(iniTurma!E7="",iniTurma!F7=""),"",iniTurma!F7-iniTurma!E7) -> 2334 | F7: 3 | G7: =IF(OR(F7="",iniTurma!G7=""),"",VLOOKUP(iniTurma!G7,References!A$3:J$78,F7,0)) -> 123 | H7: =IF(OR(F7="",iniTurma!H7=""),"",IF(iniTurma!D7="Menino",VLOOKUP(iniTurma!H7,References!A$103:J$208,F7,0),VLOOKUP(iniTurma!H7,References!A$303:J$413,F7,0))) -> 80 | I7: =IF(OR(F7="",iniTurma!I7=""),"",VLOOKUP(iniTurma!I7,References!A$503:J$575,F7,0)) -> 84 | J7: =IF(OR(F7="",iniTurma!J7=""),"",IF(iniTurma!D7="Menino",VLOOKUP(iniTurma!J7,References!A$603:J$681,F7,0),VLOOKUP(iniTurma!J7,References!A$803:J$881,F7,0))) -> 95 | K7: 382 | L7: =IF(K7="","",VLOOKUP(K7,References!A$903:B$1362,2,)) -> 94 | M7: Desempenho coordenativo típico ou normal | N7: =IF(L7="","",VLOOKUP(L7,References!A$1403:B$1903,2,0)) -> 34 | O7: Desempenho | P7: típico ou normal
A8: =IF(iniTurma!B8<>"",iniTurma!B8,"") ->  | B8: =iniTurma!A8 -> 5 | C8: =IF(iniTurma!C8=0,"",iniTurma!C8) -> Teresa Martinho | D8: =IF(OR(iniTurma!E8="",iniTurma!F8=""),"",(iniTurma!F8-iniTurma!E8)/365.25) -> 9.752224504 | E8: =IF(OR(iniTurma!E8="",iniTurma!F8=""),"",iniTurma!F8-iniTurma!E8) -> 3562 | F8: 6 | G8: =IF(OR(F8="",iniTurma!G8=""),"",VLOOKUP(iniTurma!G8,References!A$3:J$78,F8,0)) -> 124 | H8: =IF(OR(F8="",iniTurma!H8=""),"",IF(iniTurma!D8="Menino",VLOOKUP(iniTurma!H8,References!A$103:J$208,F8,0),VLOOKUP(iniTurma!H8,References!A$303:J$413,F8,0))) -> 121 | I8: =IF(OR(F8="",iniTurma!I8=""),"",VLOOKUP(iniTurma!I8,References!A$503:J$575,F8,0)) -> 90 | J8: =IF(OR(F8="",iniTurma!J8=""),"",IF(iniTurma!D8="Menino",VLOOKUP(iniTurma!J8,References!A$603:J$681,F8,0),VLOOKUP(iniTurma!J8,References!A$803:J$881,F8,0))) -> 60 | K8: 395 | L8: =IF(K8="","",VLOOKUP(K8,References!A$903:B$1362,2,)) -> 98 | M8: Desempenho coordenativo típico ou normal | N8: =IF(L8="","",VLOOKUP(L8,References!A$1403:B$1903,2,0)) -> 45 | O8: Desempenho | P8: típico ou normal
A9: =IF(iniTurma!B9<>"",iniTurma!B9,"") ->  | B9: =iniTurma!A9 -> 6 | C9: =IF(iniTurma!C9=0,"",iniTurma!C9) ->  | D9: =IF(OR(iniTurma!E9="",iniTurma!F9=""),"",(iniTurma!F9-iniTurma!E9)/365.25) ->  | E9: =IF(OR(iniTurma!E9="",iniTurma!F9=""),"",iniTurma!F9-iniTurma!E9) ->  | G9: =IF(OR(F9="",iniTurma!G9=""),"",VLOOKUP(iniTurma!G9,References!A$3:J$78,F9,0)) ->  | H9: =IF(OR(F9="",iniTurma!H9=""),"",IF(iniTurma!D9="Menino",VLOOKUP(iniTurma!H9,References!A$103:J$208,F9,0),VLOOKUP(iniTurma!H9,References!A$303:J$413,F9,0))) ->  | I9: =IF(OR(F9="",iniTurma!I9=""),"",VLOOKUP(iniTurma!I9,References!A$503:J$575,F9,0)) ->  | J9: =IF(OR(F9="",iniTurma!J9=""),"",IF(iniTurma!D9="Menino",VLOOKUP(iniTurma!J9,References!A$603:J$681,F9,0),VLOOKUP(iniTurma!J9,References!A$803:J$881,F9,0))) ->  | L9: =IF(K9="","",VLOOKUP(K9,References!A$903:B$1362,2,)) ->  | N9: =IF(L9="","",VLOOKUP(L9,References!A$1403:B$1903,2,0)) -> 
A10: =IF(iniTurma!B10<>"",iniTurma!B10,"") ->  | B10: =iniTurma!A10 -> 7 | C10: =IF(iniTurma!C10=0,"",iniTurma!C10) ->  | D10: =IF(OR(iniTurma!E10="",iniTurma!F10=""),"",(iniTurma!F10-iniTurma!E10)/365.25) ->  | E10: =IF(OR(iniTurma!E10="",iniTurma!F10=""),"",iniTurma!F10-iniTurma!E10) ->  | G10: =IF(OR(F10="",iniTurma!G10=""),"",VLOOKUP(iniTurma!G10,References!A$3:J$78,F10,0)) ->  | H10: =IF(OR(F10="",iniTurma!H10=""),"",IF(iniTurma!D10="Menino",VLOOKUP(iniTurma!H10,References!A$103:J$208,F10,0),VLOOKUP(iniTurma!H10,References!A$303:J$413,F10,0))) ->  | I10: =IF(OR(F10="",iniTurma!I10=""),"",VLOOKUP(iniTurma!I10,References!A$503:J$575,F10,0)) ->  | J10: =IF(OR(F10="",iniTurma!J10=""),"",IF(iniTurma!D10="Menino",VLOOKUP(iniTurma!J10,References!A$603:J$681,F10,0),VLOOKUP(iniTurma!J10,References!A$803:J$881,F10,0))) ->  | L10: =IF(K10="","",VLOOKUP(K10,References!A$903:B$1362,2,)) ->  | N10: =IF(L10="","",VLOOKUP(L10,References!A$1403:B$1903,2,0)) -> 
A11: =IF(iniTurma!B11<>"",iniTurma!B11,"") ->  | B11: =iniTurma!A11 -> 8 | C11: =IF(iniTurma!C11=0,"",iniTurma!C11) ->  | D11: =IF(OR(iniTurma!E11="",iniTurma!F11=""),"",(iniTurma!F11-iniTurma!E11)/365.25) ->  | E11: =IF(OR(iniTurma!E11="",iniTurma!F11=""),"",iniTurma!F11-iniTurma!E11) ->  | G11: =IF(OR(F11="",iniTurma!G11=""),"",VLOOKUP(iniTurma!G11,References!A$3:J$78,F11,0)) ->  | H11: =IF(OR(F11="",iniTurma!H11=""),"",IF(iniTurma!D11="Menino",VLOOKUP(iniTurma!H11,References!A$103:J$208,F11,0),VLOOKUP(iniTurma!H11,References!A$303:J$413,F11,0))) ->  | I11: =IF(OR(F11="",iniTurma!I11=""),"",VLOOKUP(iniTurma!I11,References!A$503:J$575,F11,0)) ->  | J11: =IF(OR(F11="",iniTurma!J11=""),"",IF(iniTurma!D11="Menino",VLOOKUP(iniTurma!J11,References!A$603:J$681,F11,0),VLOOKUP(iniTurma!J11,References!A$803:J$881,F11,0))) ->  | L11: =IF(K11="","",VLOOKUP(K11,References!A$903:B$1362,2,)) ->  | N11: =IF(L11="","",VLOOKUP(L11,References!A$1403:B$1903,2,0)) -> 
A12: =IF(iniTurma!B12<>"",iniTurma!B12,"") ->  | B12: =iniTurma!A12 -> 9 | C12: =IF(iniTurma!C12=0,"",iniTurma!C12) ->  | D12: =IF(OR(iniTurma!E12="",iniTurma!F12=""),"",(iniTurma!F12-iniTurma!E12)/365.25) ->  | E12: =IF(OR(iniTurma!E12="",iniTurma!F12=""),"",iniTurma!F12-iniTurma!E12) ->  | G12: =IF(OR(F12="",iniTurma!G12=""),"",VLOOKUP(iniTurma!G12,References!A$3:J$78,F12,0)) ->  | H12: =IF(OR(F12="",iniTurma!H12=""),"",IF(iniTurma!D12="Menino",VLOOKUP(iniTurma!H12,References!A$103:J$208,F12,0),VLOOKUP(iniTurma!H12,References!A$303:J$413,F12,0))) ->  | I12: =IF(OR(F12="",iniTurma!I12=""),"",VLOOKUP(iniTurma!I12,References!A$503:J$575,F12,0)) ->  | J12: =IF(OR(F12="",iniTurma!J12=""),"",IF(iniTurma!D12="Menino",VLOOKUP(iniTurma!J12,References!A$603:J$681,F12,0),VLOOKUP(iniTurma!J12,References!A$803:J$881,F12,0))) ->  | L12: =IF(K12="","",VLOOKUP(K12,References!A$903:B$1362,2,)) ->  | N12: =IF(L12="","",VLOOKUP(L12,References!A$1403:B$1903,2,0)) -> 
A13: =IF(iniTurma!B13<>"",iniTurma!B13,"") ->  | B13: =iniTurma!A13 -> 10 | C13: =IF(iniTurma!C13=0,"",iniTurma!C13) ->  | D13: =IF(OR(iniTurma!E13="",iniTurma!F13=""),"",(iniTurma!F13-iniTurma!E13)/365.25) ->  | E13: =IF(OR(iniTurma!E13="",iniTurma!F13=""),"",iniTurma!F13-iniTurma!E13) ->  | G13: =IF(OR(F13="",iniTurma!G13=""),"",VLOOKUP(iniTurma!G13,References!A$3:J$78,F13,0)) ->  | H13: =IF(OR(F13="",iniTurma!H13=""),"",IF(iniTurma!D13="Menino",VLOOKUP(iniTurma!H13,References!A$103:J$208,F13,0),VLOOKUP(iniTurma!H13,References!A$303:J$413,F13,0))) ->  | I13: =IF(OR(F13="",iniTurma!I13=""),"",VLOOKUP(iniTurma!I13,References!A$503:J$575,F13,0)) ->  | J13: =IF(OR(F13="",iniTurma!J13=""),"",IF(iniTurma!D13="Menino",VLOOKUP(iniTurma!J13,References!A$603:J$681,F13,0),VLOOKUP(iniTurma!J13,References!A$803:J$881,F13,0))) ->  | L13: =IF(K13="","",VLOOKUP(K13,References!A$903:B$1362,2,)) ->  | N13: =IF(L13="","",VLOOKUP(L13,References!A$1403:B$1903,2,0)) -> 
A14: =IF(iniTurma!B14<>"",iniTurma!B14,"") ->  | B14: =iniTurma!A14 -> 11 | C14: =IF(iniTurma!C14=0,"",iniTurma!C14) ->  | D14: =IF(OR(iniTurma!E14="",iniTurma!F14=""),"",(iniTurma!F14-iniTurma!E14)/365.25) ->  | E14: =IF(OR(iniTurma!E14="",iniTurma!F14=""),"",iniTurma!F14-iniTurma!E14) ->  | G14: =IF(OR(F14="",iniTurma!G14=""),"",VLOOKUP(iniTurma!G14,References!A$3:J$78,F14,0)) ->  | H14: =IF(OR(F14="",iniTurma!H14=""),"",IF(iniTurma!D14="Menino",VLOOKUP(iniTurma!H14,References!A$103:J$208,F14,0),VLOOKUP(iniTurma!H14,References!A$303:J$413,F14,0))) ->  | I14: =IF(OR(F14="",iniTurma!I14=""),"",VLOOKUP(iniTurma!I14,References!A$503:J$575,F14,0)) ->  | J14: =IF(OR(F14="",iniTurma!J14=""),"",IF(iniTurma!D14="Menino",VLOOKUP(iniTurma!J14,References!A$603:J$681,F14,0),VLOOKUP(iniTurma!J14,References!A$803:J$881,F14,0))) ->  | L14: =IF(K14="","",VLOOKUP(K14,References!A$903:B$1362,2,)) ->  | N14: =IF(L14="","",VLOOKUP(L14,References!A$1403:B$1903,2,0)) -> 
A15: =IF(iniTurma!B15<>"",iniTurma!B15,"") ->  | B15: =iniTurma!A15 -> 12 | C15: =IF(iniTurma!C15=0,"",iniTurma!C15) ->  | D15: =IF(OR(iniTurma!E15="",iniTurma!F15=""),"",(iniTurma!F15-iniTurma!E15)/365.25) ->  | E15: =IF(OR(iniTurma!E15="",iniTurma!F15=""),"",iniTurma!F15-iniTurma!E15) ->  | G15: =IF(OR(F15="",iniTurma!G15=""),"",VLOOKUP(iniTurma!G15,References!A$3:J$78,F15,0)) ->  | H15: =IF(OR(F15="",iniTurma!H15=""),"",IF(iniTurma!D15="Menino",VLOOKUP(iniTurma!H15,References!A$103:J$208,F15,0),VLOOKUP(iniTurma!H15,References!A$303:J$413,F15,0))) ->  | I15: =IF(OR(F15="",iniTurma!I15=""),"",VLOOKUP(iniTurma!I15,References!A$503:J$575,F15,0)) ->  | J15: =IF(OR(F15="",iniTurma!J15=""),"",IF(iniTurma!D15="Menino",VLOOKUP(iniTurma!J15,References!A$603:J$681,F15,0),VLOOKUP(iniTurma!J15,References!A$803:J$881,F15,0))) ->  | L15: =IF(K15="","",VLOOKUP(K15,References!A$903:B$1362,2,)) ->  | N15: =IF(L15="","",VLOOKUP(L15,References!A$1403:B$1903,2,0)) -> 
A16: =IF(iniTurma!B16<>"",iniTurma!B16,"") ->  | B16: =iniTurma!A16 -> 13 | C16: =IF(iniTurma!C16=0,"",iniTurma!C16) ->  | D16: =IF(OR(iniTurma!E16="",iniTurma!F16=""),"",(iniTurma!F16-iniTurma!E16)/365.25) ->  | E16: =IF(OR(iniTurma!E16="",iniTurma!F16=""),"",iniTurma!F16-iniTurma!E16) ->  | G16: =IF(OR(F16="",iniTurma!G16=""),"",VLOOKUP(iniTurma!G16,References!A$3:J$78,F16,0)) ->  | H16: =IF(OR(F16="",iniTurma!H16=""),"",IF(iniTurma!D16="Menino",VLOOKUP(iniTurma!H16,References!A$103:J$208,F16,0),VLOOKUP(iniTurma!H16,References!A$303:J$413,F16,0))) ->  | I16: =IF(OR(F16="",iniTurma!I16=""),"",VLOOKUP(iniTurma!I16,References!A$503:J$575,F16,0)) ->  | J16: =IF(OR(F16="",iniTurma!J16=""),"",IF(iniTurma!D16="Menino",VLOOKUP(iniTurma!J16,References!A$603:J$681,F16,0),VLOOKUP(iniTurma!J16,References!A$803:J$881,F16,0))) ->  | L16: =IF(K16="","",VLOOKUP(K16,References!A$903:B$1362,2,)) ->  | N16: =IF(L16="","",VLOOKUP(L16,References!A$1403:B$1903,2,0)) -> 
A17: =IF(iniTurma!B17<>"",iniTurma!B17,"") ->  | B17: =iniTurma!A17 -> 14 | C17: =IF(iniTurma!C17=0,"",iniTurma!C17) ->  | D17: =IF(OR(iniTurma!E17="",iniTurma!F17=""),"",(iniTurma!F17-iniTurma!E17)/365.25) ->  | E17: =IF(OR(iniTurma!E17="",iniTurma!F17=""),"",iniTurma!F17-iniTurma!E17) ->  | G17: =IF(OR(F17="",iniTurma!G17=""),"",VLOOKUP(iniTurma!G17,References!A$3:J$78,F17,0)) ->  | H17: =IF(OR(F17="",iniTurma!H17=""),"",IF(iniTurma!D17="Menino",VLOOKUP(iniTurma!H17,References!A$103:J$208,F17,0),VLOOKUP(iniTurma!H17,References!A$303:J$413,F17,0))) ->  | I17: =IF(OR(F17="",iniTurma!I17=""),"",VLOOKUP(iniTurma!I17,References!A$503:J$575,F17,0)) ->  | J17: =IF(OR(F17="",iniTurma!J17=""),"",IF(iniTurma!D17="Menino",VLOOKUP(iniTurma!J17,References!A$603:J$681,F17,0),VLOOKUP(iniTurma!J17,References!A$803:J$881,F17,0))) ->  | L17: =IF(K17="","",VLOOKUP(K17,References!A$903:B$1362,2,)) ->  | N17: =IF(L17="","",VLOOKUP(L17,References!A$1403:B$1903,2,0)) -> 
A18: =IF(iniTurma!B18<>"",iniTurma!B18,"") ->  | B18: =iniTurma!A18 -> 15 | C18: =IF(iniTurma!C18=0,"",iniTurma!C18) ->  | D18: =IF(OR(iniTurma!E18="",iniTurma!F18=""),"",(iniTurma!F18-iniTurma!E18)/365.25) ->  | E18: =IF(OR(iniTurma!E18="",iniTurma!F18=""),"",iniTurma!F18-iniTurma!E18) ->  | G18: =IF(OR(F18="",iniTurma!G18=""),"",VLOOKUP(iniTurma!G18,References!A$3:J$78,F18,0)) ->  | H18: =IF(OR(F18="",iniTurma!H18=""),"",IF(iniTurma!D18="Menino",VLOOKUP(iniTurma!H18,References!A$103:J$208,F18,0),VLOOKUP(iniTurma!H18,References!A$303:J$413,F18,0))) ->  | I18: =IF(OR(F18="",iniTurma!I18=""),"",VLOOKUP(iniTurma!I18,References!A$503:J$575,F18,0)) ->  | J18: =IF(OR(F18="",iniTurma!J18=""),"",IF(iniTurma!D18="Menino",VLOOKUP(iniTurma!J18,References!A$603:J$681,F18,0),VLOOKUP(iniTurma!J18,References!A$803:J$881,F18,0))) ->  | L18: =IF(K18="","",VLOOKUP(K18,References!A$903:B$1362,2,)) ->  | N18: =IF(L18="","",VLOOKUP(L18,References!A$1403:B$1903,2,0)) -> 
A19: =IF(iniTurma!B19<>"",iniTurma!B19,"") ->  | B19: =iniTurma!A19 -> 16 | C19: =IF(iniTurma!C19=0,"",iniTurma!C19) ->  | D19: =IF(OR(iniTurma!E19="",iniTurma!F19=""),"",(iniTurma!F19-iniTurma!E19)/365.25) ->  | E19: =IF(OR(iniTurma!E19="",iniTurma!F19=""),"",iniTurma!F19-iniTurma!E19) ->  | G19: =IF(OR(F19="",iniTurma!G19=""),"",VLOOKUP(iniTurma!G19,References!A$3:J$78,F19,0)) ->  | H19: =IF(OR(F19="",iniTurma!H19=""),"",IF(iniTurma!D19="Menino",VLOOKUP(iniTurma!H19,References!A$103:J$208,F19,0),VLOOKUP(iniTurma!H19,References!A$303:J$413,F19,0))) ->  | I19: =IF(OR(F19="",iniTurma!I19=""),"",VLOOKUP(iniTurma!I19,References!A$503:J$575,F19,0)) ->  | J19: =IF(OR(F19="",iniTurma!J19=""),"",IF(iniTurma!D19="Menino",VLOOKUP(iniTurma!J19,References!A$603:J$681,F19,0),VLOOKUP(iniTurma!J19,References!A$803:J$881,F19,0))) ->  | L19: =IF(K19="","",VLOOKUP(K19,References!A$903:B$1362,2,)) ->  | N19: =IF(L19="","",VLOOKUP(L19,References!A$1403:B$1903,2,0)) -> 
A20: =IF(iniTurma!B20<>"",iniTurma!B20,"") ->  | B20: =iniTurma!A20 -> 17 | C20: =IF(iniTurma!C20=0,"",iniTurma!C20) ->  | D20: =IF(OR(iniTurma!E20="",iniTurma!F20=""),"",(iniTurma!F20-iniTurma!E20)/365.25) ->  | E20: =IF(OR(iniTurma!E20="",iniTurma!F20=""),"",iniTurma!F20-iniTurma!E20) ->  | G20: =IF(OR(F20="",iniTurma!G20=""),"",VLOOKUP(iniTurma!G20,References!A$3:J$78,F20,0)) ->  | H20: =IF(OR(F20="",iniTurma!H20=""),"",IF(iniTurma!D20="Menino",VLOOKUP(iniTurma!H20,References!A$103:J$208,F20,0),VLOOKUP(iniTurma!H20,References!A$303:J$413,F20,0))) ->  | I20: =IF(OR(F20="",iniTurma!I20=""),"",VLOOKUP(iniTurma!I20,References!A$503:J$575,F20,0)) ->  | J20: =IF(OR(F20="",iniTurma!J20=""),"",IF(iniTurma!D20="Menino",VLOOKUP(iniTurma!J20,References!A$603:J$681,F20,0),VLOOKUP(iniTurma!J20,References!A$803:J$881,F20,0))) ->  | L20: =IF(K20="","",VLOOKUP(K20,References!A$903:B$1362,2,)) ->  | N20: =IF(L20="","",VLOOKUP(L20,References!A$1403:B$1903,2,0)) -> 
A21: =IF(iniTurma!B21<>"",iniTurma!B21,"") ->  | B21: =iniTurma!A21 -> 18 | C21: =IF(iniTurma!C21=0,"",iniTurma!C21) ->  | D21: =IF(OR(iniTurma!E21="",iniTurma!F21=""),"",(iniTurma!F21-iniTurma!E21)/365.25) ->  | E21: =IF(OR(iniTurma!E21="",iniTurma!F21=""),"",iniTurma!F21-iniTurma!E21) ->  | G21: =IF(OR(F21="",iniTurma!G21=""),"",VLOOKUP(iniTurma!G21,References!A$3:J$78,F21,0)) ->  | H21: =IF(OR(F21="",iniTurma!H21=""),"",IF(iniTurma!D21="Menino",VLOOKUP(iniTurma!H21,References!A$103:J$208,F21,0),VLOOKUP(iniTurma!H21,References!A$303:J$413,F21,0))) ->  | I21: =IF(OR(F21="",iniTurma!I21=""),"",VLOOKUP(iniTurma!I21,References!A$503:J$575,F21,0)) ->  | J21: =IF(OR(F21="",iniTurma!J21=""),"",IF(iniTurma!D21="Menino",VLOOKUP(iniTurma!J21,References!A$603:J$681,F21,0),VLOOKUP(iniTurma!J21,References!A$803:J$881,F21,0))) ->  | L21: =IF(K21="","",VLOOKUP(K21,References!A$903:B$1362,2,)) ->  | N21: =IF(L21="","",VLOOKUP(L21,References!A$1403:B$1903,2,0)) -> 
A22: =IF(iniTurma!B22<>"",iniTurma!B22,"") ->  | B22: =iniTurma!A22 -> 19 | C22: =IF(iniTurma!C22=0,"",iniTurma!C22) ->  | D22: =IF(OR(iniTurma!E22="",iniTurma!F22=""),"",(iniTurma!F22-iniTurma!E22)/365.25) ->  | E22: =IF(OR(iniTurma!E22="",iniTurma!F22=""),"",iniTurma!F22-iniTurma!E22) ->  | G22: =IF(OR(F22="",iniTurma!G22=""),"",VLOOKUP(iniTurma!G22,References!A$3:J$78,F22,0)) ->  | H22: =IF(OR(F22="",iniTurma!H22=""),"",IF(iniTurma!D22="Menino",VLOOKUP(iniTurma!H22,References!A$103:J$208,F22,0),VLOOKUP(iniTurma!H22,References!A$303:J$413,F22,0))) ->  | I22: =IF(OR(F22="",iniTurma!I22=""),"",VLOOKUP(iniTurma!I22,References!A$503:J$575,F22,0)) ->  | J22: =IF(OR(F22="",iniTurma!J22=""),"",IF(iniTurma!D22="Menino",VLOOKUP(iniTurma!J22,References!A$603:J$681,F22,0),VLOOKUP(iniTurma!J22,References!A$803:J$881,F22,0))) ->  | L22: =IF(K22="","",VLOOKUP(K22,References!A$903:B$1362,2,)) ->  | N22: =IF(L22="","",VLOOKUP(L22,References!A$1403:B$1903,2,0)) -> 
A23: =IF(iniTurma!B23<>"",iniTurma!B23,"") ->  | B23: =iniTurma!A23 -> 20 | C23: =IF(iniTurma!C23=0,"",iniTurma!C23) ->  | D23: =IF(OR(iniTurma!E23="",iniTurma!F23=""),"",(iniTurma!F23-iniTurma!E23)/365.25) ->  | E23: =IF(OR(iniTurma!E23="",iniTurma!F23=""),"",iniTurma!F23-iniTurma!E23) ->  | G23: =IF(OR(F23="",iniTurma!G23=""),"",VLOOKUP(iniTurma!G23,References!A$3:J$78,F23,0)) ->  | H23: =IF(OR(F23="",iniTurma!H23=""),"",IF(iniTurma!D23="Menino",VLOOKUP(iniTurma!H23,References!A$103:J$208,F23,0),VLOOKUP(iniTurma!H23,References!A$303:J$413,F23,0))) ->  | I23: =IF(OR(F23="",iniTurma!I23=""),"",VLOOKUP(iniTurma!I23,References!A$503:J$575,F23,0)) ->  | J23: =IF(OR(F23="",iniTurma!J23=""),"",IF(iniTurma!D23="Menino",VLOOKUP(iniTurma!J23,References!A$603:J$681,F23,0),VLOOKUP(iniTurma!J23,References!A$803:J$881,F23,0))) ->  | L23: =IF(K23="","",VLOOKUP(K23,References!A$903:B$1362,2,)) ->  | N23: =IF(L23="","",VLOOKUP(L23,References!A$1403:B$1903,2,0)) -> 
A24: =IF(iniTurma!B24<>"",iniTurma!B24,"") ->  | B24: =iniTurma!A24 -> 21 | C24: =IF(iniTurma!C24=0,"",iniTurma!C24) ->  | D24: =IF(OR(iniTurma!E24="",iniTurma!F24=""),"",(iniTurma!F24-iniTurma!E24)/365.25) ->  | E24: =IF(OR(iniTurma!E24="",iniTurma!F24=""),"",iniTurma!F24-iniTurma!E24) ->  | G24: =IF(OR(F24="",iniTurma!G24=""),"",VLOOKUP(iniTurma!G24,References!A$3:J$78,F24,0)) ->  | H24: =IF(OR(F24="",iniTurma!H24=""),"",IF(iniTurma!D24="Menino",VLOOKUP(iniTurma!H24,References!A$103:J$208,F24,0),VLOOKUP(iniTurma!H24,References!A$303:J$413,F24,0))) ->  | I24: =IF(OR(F24="",iniTurma!I24=""),"",VLOOKUP(iniTurma!I24,References!A$503:J$575,F24,0)) ->  | J24: =IF(OR(F24="",iniTurma!J24=""),"",IF(iniTurma!D24="Menino",VLOOKUP(iniTurma!J24,References!A$603:J$681,F24,0),VLOOKUP(iniTurma!J24,References!A$803:J$881,F24,0))) ->  | L24: =IF(K24="","",VLOOKUP(K24,References!A$903:B$1362,2,)) ->  | N24: =IF(L24="","",VLOOKUP(L24,References!A$1403:B$1903,2,0)) -> 
A25: =IF(iniTurma!B25<>"",iniTurma!B25,"") ->  | B25: =iniTurma!A25 -> 22 | C25: =IF(iniTurma!C25=0,"",iniTurma!C25) ->  | D25: =IF(OR(iniTurma!E25="",iniTurma!F25=""),"",(iniTurma!F25-iniTurma!E25)/365.25) ->  | E25: =IF(OR(iniTurma!E25="",iniTurma!F25=""),"",iniTurma!F25-iniTurma!E25) ->  | G25: =IF(OR(F25="",iniTurma!G25=""),"",VLOOKUP(iniTurma!G25,References!A$3:J$78,F25,0)) ->  | H25: =IF(OR(F25="",iniTurma!H25=""),"",IF(iniTurma!D25="Menino",VLOOKUP(iniTurma!H25,References!A$103:J$208,F25,0),VLOOKUP(iniTurma!H25,References!A$303:J$413,F25,0))) ->  | I25: =IF(OR(F25="",iniTurma!I25=""),"",VLOOKUP(iniTurma!I25,References!A$503:J$575,F25,0)) ->  | J25: =IF(OR(F25="",iniTurma!J25=""),"",IF(iniTurma!D25="Menino",VLOOKUP(iniTurma!J25,References!A$603:J$681,F25,0),VLOOKUP(iniTurma!J25,References!A$803:J$881,F25,0))) ->  | L25: =IF(K25="","",VLOOKUP(K25,References!A$903:B$1362,2,)) ->  | N25: =IF(L25="","",VLOOKUP(L25,References!A$1403:B$1903,2,0)) -> 
A26: =IF(iniTurma!B26<>"",iniTurma!B26,"") ->  | B26: =iniTurma!A26 -> 23 | C26: =IF(iniTurma!C26=0,"",iniTurma!C26) ->  | D26: =IF(OR(iniTurma!E26="",iniTurma!F26=""),"",(iniTurma!F26-iniTurma!E26)/365.25) ->  | E26: =IF(OR(iniTurma!E26="",iniTurma!F26=""),"",iniTurma!F26-iniTurma!E26) ->  | G26: =IF(OR(F26="",iniTurma!G26=""),"",VLOOKUP(iniTurma!G26,References!A$3:J$78,F26,0)) ->  | H26: =IF(OR(F26="",iniTurma!H26=""),"",IF(iniTurma!D26="Menino",VLOOKUP(iniTurma!H26,References!A$103:J$208,F26,0),VLOOKUP(iniTurma!H26,References!A$303:J$413,F26,0))) ->  | I26: =IF(OR(F26="",iniTurma!I26=""),"",VLOOKUP(iniTurma!I26,References!A$503:J$575,F26,0)) ->  | J26: =IF(OR(F26="",iniTurma!J26=""),"",IF(iniTurma!D26="Menino",VLOOKUP(iniTurma!J26,References!A$603:J$681,F26,0),VLOOKUP(iniTurma!J26,References!A$803:J$881,F26,0))) ->  | L26: =IF(K26="","",VLOOKUP(K26,References!A$903:B$1362,2,)) ->  | N26: =IF(L26="","",VLOOKUP(L26,References!A$1403:B$1903,2,0)) -> 
A27: =IF(iniTurma!B27<>"",iniTurma!B27,"") ->  | B27: =iniTurma!A27 -> 24 | C27: =IF(iniTurma!C27=0,"",iniTurma!C27) ->  | D27: =IF(OR(iniTurma!E27="",iniTurma!F27=""),"",(iniTurma!F27-iniTurma!E27)/365.25) ->  | E27: =IF(OR(iniTurma!E27="",iniTurma!F27=""),"",iniTurma!F27-iniTurma!E27) ->  | G27: =IF(OR(F27="",iniTurma!G27=""),"",VLOOKUP(iniTurma!G27,References!A$3:J$78,F27,0)) ->  | H27: =IF(OR(F27="",iniTurma!H27=""),"",IF(iniTurma!D27="Menino",VLOOKUP(iniTurma!H27,References!A$103:J$208,F27,0),VLOOKUP(iniTurma!H27,References!A$303:J$413,F27,0))) ->  | I27: =IF(OR(F27="",iniTurma!I27=""),"",VLOOKUP(iniTurma!I27,References!A$503:J$575,F27,0)) ->  | J27: =IF(OR(F27="",iniTurma!J27=""),"",IF(iniTurma!D27="Menino",VLOOKUP(iniTurma!J27,References!A$603:J$681,F27,0),VLOOKUP(iniTurma!J27,References!A$803:J$881,F27,0))) ->  | L27: =IF(K27="","",VLOOKUP(K27,References!A$903:B$1362,2,)) ->  | N27: =IF(L27="","",VLOOKUP(L27,References!A$1403:B$1903,2,0)) -> 
A28: =IF(iniTurma!B28<>"",iniTurma!B28,"") ->  | B28: =iniTurma!A28 -> 25 | C28: =IF(iniTurma!C28=0,"",iniTurma!C28) ->  | D28: =IF(OR(iniTurma!E28="",iniTurma!F28=""),"",(iniTurma!F28-iniTurma!E28)/365.25) ->  | E28: =IF(OR(iniTurma!E28="",iniTurma!F28=""),"",iniTurma!F28-iniTurma!E28) ->  | G28: =IF(OR(F28="",iniTurma!G28=""),"",VLOOKUP(iniTurma!G28,References!A$3:J$78,F28,0)) ->  | H28: =IF(OR(F28="",iniTurma!H28=""),"",IF(iniTurma!D28="Menino",VLOOKUP(iniTurma!H28,References!A$103:J$208,F28,0),VLOOKUP(iniTurma!H28,References!A$303:J$413,F28,0))) ->  | I28: =IF(OR(F28="",iniTurma!I28=""),"",VLOOKUP(iniTurma!I28,References!A$503:J$575,F28,0)) ->  | J28: =IF(OR(F28="",iniTurma!J28=""),"",IF(iniTurma!D28="Menino",VLOOKUP(iniTurma!J28,References!A$603:J$681,F28,0),VLOOKUP(iniTurma!J28,References!A$803:J$881,F28,0))) ->  | L28: =IF(K28="","",VLOOKUP(K28,References!A$903:B$1362,2,)) ->  | N28: =IF(L28="","",VLOOKUP(L28,References!A$1403:B$1903,2,0)) -> 
A29: =IF(iniTurma!B29<>"",iniTurma!B29,"") ->  | B29: =iniTurma!A29 -> 26 | C29: =IF(iniTurma!C29=0,"",iniTurma!C29) ->  | D29: =IF(OR(iniTurma!E29="",iniTurma!F29=""),"",(iniTurma!F29-iniTurma!E29)/365.25) ->  | E29: =IF(OR(iniTurma!E29="",iniTurma!F29=""),"",iniTurma!F29-iniTurma!E29) ->  | G29: =IF(OR(F29="",iniTurma!G29=""),"",VLOOKUP(iniTurma!G29,References!A$3:J$78,F29,0)) ->  | H29: =IF(OR(F29="",iniTurma!H29=""),"",IF(iniTurma!D29="Menino",VLOOKUP(iniTurma!H29,References!A$103:J$208,F29,0),VLOOKUP(iniTurma!H29,References!A$303:J$413,F29,0))) ->  | I29: =IF(OR(F29="",iniTurma!I29=""),"",VLOOKUP(iniTurma!I29,References!A$503:J$575,F29,0)) ->  | J29: =IF(OR(F29="",iniTurma!J29=""),"",IF(iniTurma!D29="Menino",VLOOKUP(iniTurma!J29,References!A$603:J$681,F29,0),VLOOKUP(iniTurma!J29,References!A$803:J$881,F29,0))) ->  | L29: =IF(K29="","",VLOOKUP(K29,References!A$903:B$1362,2,)) ->  | N29: =IF(L29="","",VLOOKUP(L29,References!A$1403:B$1903,2,0)) -> 
A30: =IF(iniTurma!B30<>"",iniTurma!B30,"") ->  | B30: =iniTurma!A30 -> 27 | C30: =IF(iniTurma!C30=0,"",iniTurma!C30) ->  | D30: =IF(OR(iniTurma!E30="",iniTurma!F30=""),"",(iniTurma!F30-iniTurma!E30)/365.25) ->  | E30: =IF(OR(iniTurma!E30="",iniTurma!F30=""),"",iniTurma!F30-iniTurma!E30) ->  | G30: =IF(OR(F30="",iniTurma!G30=""),"",VLOOKUP(iniTurma!G30,References!A$3:J$78,F30,0)) ->  | H30: =IF(OR(F30="",iniTurma!H30=""),"",IF(iniTurma!D30="Menino",VLOOKUP(iniTurma!H30,References!A$103:J$208,F30,0),VLOOKUP(iniTurma!H30,References!A$303:J$413,F30,0))) ->  | I30: =IF(OR(F30="",iniTurma!I30=""),"",VLOOKUP(iniTurma!I30,References!A$503:J$575,F30,0)) ->  | J30: =IF(OR(F30="",iniTurma!J30=""),"",IF(iniTurma!D30="Menino",VLOOKUP(iniTurma!J30,References!A$603:J$681,F30,0),VLOOKUP(iniTurma!J30,References!A$803:J$881,F30,0))) ->  | L30: =IF(K30="","",VLOOKUP(K30,References!A$903:B$1362,2,)) ->  | N30: =IF(L30="","",VLOOKUP(L30,References!A$1403:B$1903,2,0)) -> 
A31: =IF(iniTurma!B31<>"",iniTurma!B31,"") ->  | B31: =iniTurma!A31 -> 28 | C31: =IF(iniTurma!C31=0,"",iniTurma!C31) ->  | D31: =IF(OR(iniTurma!E31="",iniTurma!F31=""),"",(iniTurma!F31-iniTurma!E31)/365.25) ->  | E31: =IF(OR(iniTurma!E31="",iniTurma!F31=""),"",iniTurma!F31-iniTurma!E31) ->  | G31: =IF(OR(F31="",iniTurma!G31=""),"",VLOOKUP(iniTurma!G31,References!A$3:J$78,F31,0)) ->  | H31: =IF(OR(F31="",iniTurma!H31=""),"",IF(iniTurma!D31="Menino",VLOOKUP(iniTurma!H31,References!A$103:J$208,F31,0),VLOOKUP(iniTurma!H31,References!A$303:J$413,F31,0))) ->  | I31: =IF(OR(F31="",iniTurma!I31=""),"",VLOOKUP(iniTurma!I31,References!A$503:J$575,F31,0)) ->  | J31: =IF(OR(F31="",iniTurma!J31=""),"",IF(iniTurma!D31="Menino",VLOOKUP(iniTurma!J31,References!A$603:J$681,F31,0),VLOOKUP(iniTurma!J31,References!A$803:J$881,F31,0))) ->  | L31: =IF(K31="","",VLOOKUP(K31,References!A$903:B$1362,2,)) ->  | N31: =IF(L31="","",VLOOKUP(L31,References!A$1403:B$1903,2,0)) -> 
A32: =IF(iniTurma!B32<>"",iniTurma!B32,"") ->  | B32: =iniTurma!A32 -> 29 | C32: =IF(iniTurma!C32=0,"",iniTurma!C32) ->  | D32: =IF(OR(iniTurma!E32="",iniTurma!F32=""),"",(iniTurma!F32-iniTurma!E32)/365.25) ->  | E32: =IF(OR(iniTurma!E32="",iniTurma!F32=""),"",iniTurma!F32-iniTurma!E32) ->  | G32: =IF(OR(F32="",iniTurma!G32=""),"",VLOOKUP(iniTurma!G32,References!A$3:J$78,F32,0)) ->  | H32: =IF(OR(F32="",iniTurma!H32=""),"",IF(iniTurma!D32="Menino",VLOOKUP(iniTurma!H32,References!A$103:J$208,F32,0),VLOOKUP(iniTurma!H32,References!A$303:J$413,F32,0))) ->  | I32: =IF(OR(F32="",iniTurma!I32=""),"",VLOOKUP(iniTurma!I32,References!A$503:J$575,F32,0)) ->  | J32: =IF(OR(F32="",iniTurma!J32=""),"",IF(iniTurma!D32="Menino",VLOOKUP(iniTurma!J32,References!A$603:J$681,F32,0),VLOOKUP(iniTurma!J32,References!A$803:J$881,F32,0))) ->  | L32: =IF(K32="","",VLOOKUP(K32,References!A$903:B$1362,2,)) ->  | N32: =IF(L32="","",VLOOKUP(L32,References!A$1403:B$1903,2,0)) -> 
A33: =IF(iniTurma!B33<>"",iniTurma!B33,"") ->  | B33: =iniTurma!A33 -> 30 | C33: =IF(iniTurma!C33=0,"",iniTurma!C33) ->  | D33: =IF(OR(iniTurma!E33="",iniTurma!F33=""),"",(iniTurma!F33-iniTurma!E33)/365.25) ->  | E33: =IF(OR(iniTurma!E33="",iniTurma!F33=""),"",iniTurma!F33-iniTurma!E33) ->  | G33: =IF(OR(F33="",iniTurma!G33=""),"",VLOOKUP(iniTurma!G33,References!A$3:J$78,F33,0)) ->  | H33: =IF(OR(F33="",iniTurma!H33=""),"",IF(iniTurma!D33="Menino",VLOOKUP(iniTurma!H33,References!A$103:J$208,F33,0),VLOOKUP(iniTurma!H33,References!A$303:J$413,F33,0))) ->  | I33: =IF(OR(F33="",iniTurma!I33=""),"",VLOOKUP(iniTurma!I33,References!A$503:J$575,F33,0)) ->  | J33: =IF(OR(F33="",iniTurma!J33=""),"",IF(iniTurma!D33="Menino",VLOOKUP(iniTurma!J33,References!A$603:J$681,F33,0),VLOOKUP(iniTurma!J33,References!A$803:J$881,F33,0))) ->  | L33: =IF(K33="","",VLOOKUP(K33,References!A$903:B$1362,2,)) ->  | N33: =IF(L33="","",VLOOKUP(L33,References!A$1403:B$1903,2,0)) -> 
A34: =IF(iniTurma!B34<>"",iniTurma!B34,"") ->  | B34: =iniTurma!A34 -> 31 | C34: =IF(iniTurma!C34=0,"",iniTurma!C34) ->  | D34: =IF(OR(iniTurma!E34="",iniTurma!F34=""),"",(iniTurma!F34-iniTurma!E34)/365.25) ->  | E34: =IF(OR(iniTurma!E34="",iniTurma!F34=""),"",iniTurma!F34-iniTurma!E34) ->  | G34: =IF(OR(F34="",iniTurma!G34=""),"",VLOOKUP(iniTurma!G34,References!A$3:J$78,F34,0)) ->  | H34: =IF(OR(F34="",iniTurma!H34=""),"",IF(iniTurma!D34="Menino",VLOOKUP(iniTurma!H34,References!A$103:J$208,F34,0),VLOOKUP(iniTurma!H34,References!A$303:J$413,F34,0))) ->  | I34: =IF(OR(F34="",iniTurma!I34=""),"",VLOOKUP(iniTurma!I34,References!A$503:J$575,F34,0)) ->  | J34: =IF(OR(F34="",iniTurma!J34=""),"",IF(iniTurma!D34="Menino",VLOOKUP(iniTurma!J34,References!A$603:J$681,F34,0),VLOOKUP(iniTurma!J34,References!A$803:J$881,F34,0))) ->  | L34: =IF(K34="","",VLOOKUP(K34,References!A$903:B$1362,2,)) ->  | N34: =IF(L34="","",VLOOKUP(L34,References!A$1403:B$1903,2,0)) -> 
A35: =IF(iniTurma!B35<>"",iniTurma!B35,"") ->  | B35: =iniTurma!A35 -> 32 | C35: =IF(iniTurma!C35=0,"",iniTurma!C35) ->  | D35: =IF(OR(iniTurma!E35="",iniTurma!F35=""),"",(iniTurma!F35-iniTurma!E35)/365.25) ->  | E35: =IF(OR(iniTurma!E35="",iniTurma!F35=""),"",iniTurma!F35-iniTurma!E35) ->  | G35: =IF(OR(F35="",iniTurma!G35=""),"",VLOOKUP(iniTurma!G35,References!A$3:J$78,F35,0)) ->  | H35: =IF(OR(F35="",iniTurma!H35=""),"",IF(iniTurma!D35="Menino",VLOOKUP(iniTurma!H35,References!A$103:J$208,F35,0),VLOOKUP(iniTurma!H35,References!A$303:J$413,F35,0))) ->  | I35: =IF(OR(F35="",iniTurma!I35=""),"",VLOOKUP(iniTurma!I35,References!A$503:J$575,F35,0)) ->  | J35: =IF(OR(F35="",iniTurma!J35=""),"",IF(iniTurma!D35="Menino",VLOOKUP(iniTurma!J35,References!A$603:J$681,F35,0),VLOOKUP(iniTurma!J35,References!A$803:J$881,F35,0))) ->  | L35: =IF(K35="","",VLOOKUP(K35,References!A$903:B$1362,2,)) ->  | N35: =IF(L35="","",VLOOKUP(L35,References!A$1403:B$1903,2,0)) -> 
A36: =IF(iniTurma!B36<>"",iniTurma!B36,"") ->  | B36: =iniTurma!A36 -> 33 | C36: =IF(iniTurma!C36=0,"",iniTurma!C36) ->  | D36: =IF(OR(iniTurma!E36="",iniTurma!F36=""),"",(iniTurma!F36-iniTurma!E36)/365.25) ->  | E36: =IF(OR(iniTurma!E36="",iniTurma!F36=""),"",iniTurma!F36-iniTurma!E36) ->  | G36: =IF(OR(F36="",iniTurma!G36=""),"",VLOOKUP(iniTurma!G36,References!A$3:J$78,F36,0)) ->  | H36: =IF(OR(F36="",iniTurma!H36=""),"",IF(iniTurma!D36="Menino",VLOOKUP(iniTurma!H36,References!A$103:J$208,F36,0),VLOOKUP(iniTurma!H36,References!A$303:J$413,F36,0))) ->  | I36: =IF(OR(F36="",iniTurma!I36=""),"",VLOOKUP(iniTurma!I36,References!A$503:J$575,F36,0)) ->  | J36: =IF(OR(F36="",iniTurma!J36=""),"",IF(iniTurma!D36="Menino",VLOOKUP(iniTurma!J36,References!A$603:J$681,F36,0),VLOOKUP(iniTurma!J36,References!A$803:J$881,F36,0))) ->  | L36: =IF(K36="","",VLOOKUP(K36,References!A$903:B$1362,2,)) ->  | N36: =IF(L36="","",VLOOKUP(L36,References!A$1403:B$1903,2,0)) -> 
A37: =IF(iniTurma!B37<>"",iniTurma!B37,"") ->  | B37: =iniTurma!A37 -> 34 | C37: =IF(iniTurma!C37=0,"",iniTurma!C37) ->  | D37: =IF(OR(iniTurma!E37="",iniTurma!F37=""),"",(iniTurma!F37-iniTurma!E37)/365.25) ->  | E37: =IF(OR(iniTurma!E37="",iniTurma!F37=""),"",iniTurma!F37-iniTurma!E37) ->  | G37: =IF(OR(F37="",iniTurma!G37=""),"",VLOOKUP(iniTurma!G37,References!A$3:J$78,F37,0)) ->  | H37: =IF(OR(F37="",iniTurma!H37=""),"",IF(iniTurma!D37="Menino",VLOOKUP(iniTurma!H37,References!A$103:J$208,F37,0),VLOOKUP(iniTurma!H37,References!A$303:J$413,F37,0))) ->  | I37: =IF(OR(F37="",iniTurma!I37=""),"",VLOOKUP(iniTurma!I37,References!A$503:J$575,F37,0)) ->  | J37: =IF(OR(F37="",iniTurma!J37=""),"",IF(iniTurma!D37="Menino",VLOOKUP(iniTurma!J37,References!A$603:J$681,F37,0),VLOOKUP(iniTurma!J37,References!A$803:J$881,F37,0))) ->  | L37: =IF(K37="","",VLOOKUP(K37,References!A$903:B$1362,2,)) ->  | N37: =IF(L37="","",VLOOKUP(L37,References!A$1403:B$1903,2,0)) -> 
A38: =IF(iniTurma!B38<>"",iniTurma!B38,"") ->  | B38: =iniTurma!A38 -> 35 | C38: =IF(iniTurma!C38=0,"",iniTurma!C38) ->  | D38: =IF(OR(iniTurma!E38="",iniTurma!F38=""),"",(iniTurma!F38-iniTurma!E38)/365.25) ->  | E38: =IF(OR(iniTurma!E38="",iniTurma!F38=""),"",iniTurma!F38-iniTurma!E38) ->  | G38: =IF(OR(F38="",iniTurma!G38=""),"",VLOOKUP(iniTurma!G38,References!A$3:J$78,F38,0)) ->  | H38: =IF(OR(F38="",iniTurma!H38=""),"",IF(iniTurma!D38="Menino",VLOOKUP(iniTurma!H38,References!A$103:J$208,F38,0),VLOOKUP(iniTurma!H38,References!A$303:J$413,F38,0))) ->  | I38: =IF(OR(F38="",iniTurma!I38=""),"",VLOOKUP(iniTurma!I38,References!A$503:J$575,F38,0)) ->  | J38: =IF(OR(F38="",iniTurma!J38=""),"",IF(iniTurma!D38="Menino",VLOOKUP(iniTurma!J38,References!A$603:J$681,F38,0),VLOOKUP(iniTurma!J38,References!A$803:J$881,F38,0))) ->  | L38: =IF(K38="","",VLOOKUP(K38,References!A$903:B$1362,2,)) ->  | N38: =IF(L38="","",VLOOKUP(L38,References!A$1403:B$1903,2,0)) -> 
A39: =IF(iniTurma!B39<>"",iniTurma!B39,"") ->  | B39: =iniTurma!A39 -> 36 | C39: =IF(iniTurma!C39=0,"",iniTurma!C39) ->  | D39: =IF(OR(iniTurma!E39="",iniTurma!F39=""),"",(iniTurma!F39-iniTurma!E39)/365.25) ->  | E39: =IF(OR(iniTurma!E39="",iniTurma!F39=""),"",iniTurma!F39-iniTurma!E39) ->  | G39: =IF(OR(F39="",iniTurma!G39=""),"",VLOOKUP(iniTurma!G39,References!A$3:J$78,F39,0)) ->  | H39: =IF(OR(F39="",iniTurma!H39=""),"",IF(iniTurma!D39="Menino",VLOOKUP(iniTurma!H39,References!A$103:J$208,F39,0),VLOOKUP(iniTurma!H39,References!A$303:J$413,F39,0))) ->  | I39: =IF(OR(F39="",iniTurma!I39=""),"",VLOOKUP(iniTurma!I39,References!A$503:J$575,F39,0)) ->  | J39: =IF(OR(F39="",iniTurma!J39=""),"",IF(iniTurma!D39="Menino",VLOOKUP(iniTurma!J39,References!A$603:J$681,F39,0),VLOOKUP(iniTurma!J39,References!A$803:J$881,F39,0))) ->  | L39: =IF(K39="","",VLOOKUP(K39,References!A$903:B$1362,2,)) ->  | N39: =IF(L39="","",VLOOKUP(L39,References!A$1403:B$1903,2,0)) -> 
A40: =IF(iniTurma!B40<>"",iniTurma!B40,"") ->  | B40: =iniTurma!A40 -> 37 | C40: =IF(iniTurma!C40=0,"",iniTurma!C40) ->  | D40: =IF(OR(iniTurma!E40="",iniTurma!F40=""),"",(iniTurma!F40-iniTurma!E40)/365.25) ->  | E40: =IF(OR(iniTurma!E40="",iniTurma!F40=""),"",iniTurma!F40-iniTurma!E40) ->  | G40: =IF(OR(F40="",iniTurma!G40=""),"",VLOOKUP(iniTurma!G40,References!A$3:J$78,F40,0)) ->  | H40: =IF(OR(F40="",iniTurma!H40=""),"",IF(iniTurma!D40="Menino",VLOOKUP(iniTurma!H40,References!A$103:J$208,F40,0),VLOOKUP(iniTurma!H40,References!A$303:J$413,F40,0))) ->  | I40: =IF(OR(F40="",iniTurma!I40=""),"",VLOOKUP(iniTurma!I40,References!A$503:J$575,F40,0)) ->  | J40: =IF(OR(F40="",iniTurma!J40=""),"",IF(iniTurma!D40="Menino",VLOOKUP(iniTurma!J40,References!A$603:J$681,F40,0),VLOOKUP(iniTurma!J40,References!A$803:J$881,F40,0))) ->  | L40: =IF(K40="","",VLOOKUP(K40,References!A$903:B$1362,2,)) ->  | N40: =IF(L40="","",VLOOKUP(L40,References!A$1403:B$1903,2,0)) -> 
A41: =IF(iniTurma!B41<>"",iniTurma!B41,"") ->  | B41: =iniTurma!A41 -> 38 | C41: =IF(iniTurma!C41=0,"",iniTurma!C41) ->  | D41: =IF(OR(iniTurma!E41="",iniTurma!F41=""),"",(iniTurma!F41-iniTurma!E41)/365.25) ->  | E41: =IF(OR(iniTurma!E41="",iniTurma!F41=""),"",iniTurma!F41-iniTurma!E41) ->  | G41: =IF(OR(F41="",iniTurma!G41=""),"",VLOOKUP(iniTurma!G41,References!A$3:J$78,F41,0)) ->  | H41: =IF(OR(F41="",iniTurma!H41=""),"",IF(iniTurma!D41="Menino",VLOOKUP(iniTurma!H41,References!A$103:J$208,F41,0),VLOOKUP(iniTurma!H41,References!A$303:J$413,F41,0))) ->  | I41: =IF(OR(F41="",iniTurma!I41=""),"",VLOOKUP(iniTurma!I41,References!A$503:J$575,F41,0)) ->  | J41: =IF(OR(F41="",iniTurma!J41=""),"",IF(iniTurma!D41="Menino",VLOOKUP(iniTurma!J41,References!A$603:J$681,F41,0),VLOOKUP(iniTurma!J41,References!A$803:J$881,F41,0))) ->  | L41: =IF(K41="","",VLOOKUP(K41,References!A$903:B$1362,2,)) ->  | N41: =IF(L41="","",VLOOKUP(L41,References!A$1403:B$1903,2,0)) -> 
A42: =IF(iniTurma!B42<>"",iniTurma!B42,"") ->  | B42: =iniTurma!A42 -> 39 | C42: =IF(iniTurma!C42=0,"",iniTurma!C42) ->  | D42: =IF(OR(iniTurma!E42="",iniTurma!F42=""),"",(iniTurma!F42-iniTurma!E42)/365.25) ->  | E42: =IF(OR(iniTurma!E42="",iniTurma!F42=""),"",iniTurma!F42-iniTurma!E42) ->  | G42: =IF(OR(F42="",iniTurma!G42=""),"",VLOOKUP(iniTurma!G42,References!A$3:J$78,F42,0)) ->  | H42: =IF(OR(F42="",iniTurma!H42=""),"",IF(iniTurma!D42="Menino",VLOOKUP(iniTurma!H42,References!A$103:J$208,F42,0),VLOOKUP(iniTurma!H42,References!A$303:J$413,F42,0))) ->  | I42: =IF(OR(F42="",iniTurma!I42=""),"",VLOOKUP(iniTurma!I42,References!A$503:J$575,F42,0)) ->  | J42: =IF(OR(F42="",iniTurma!J42=""),"",IF(iniTurma!D42="Menino",VLOOKUP(iniTurma!J42,References!A$603:J$681,F42,0),VLOOKUP(iniTurma!J42,References!A$803:J$881,F42,0))) ->  | L42: =IF(K42="","",VLOOKUP(K42,References!A$903:B$1362,2,)) ->  | N42: =IF(L42="","",VLOOKUP(L42,References!A$1403:B$1903,2,0)) -> 
A43: =IF(iniTurma!B43<>"",iniTurma!B43,"") ->  | B43: =iniTurma!A43 -> 40 | C43: =IF(iniTurma!C43=0,"",iniTurma!C43) ->  | D43: =IF(OR(iniTurma!E43="",iniTurma!F43=""),"",(iniTurma!F43-iniTurma!E43)/365.25) ->  | E43: =IF(OR(iniTurma!E43="",iniTurma!F43=""),"",iniTurma!F43-iniTurma!E43) ->  | G43: =IF(OR(F43="",iniTurma!G43=""),"",VLOOKUP(iniTurma!G43,References!A$3:J$78,F43,0)) ->  | H43: =IF(OR(F43="",iniTurma!H43=""),"",IF(iniTurma!D43="Menino",VLOOKUP(iniTurma!H43,References!A$103:J$208,F43,0),VLOOKUP(iniTurma!H43,References!A$303:J$413,F43,0))) ->  | I43: =IF(OR(F43="",iniTurma!I43=""),"",VLOOKUP(iniTurma!I43,References!A$503:J$575,F43,0)) ->  | J43: =IF(OR(F43="",iniTurma!J43=""),"",IF(iniTurma!D43="Menino",VLOOKUP(iniTurma!J43,References!A$603:J$681,F43,0),VLOOKUP(iniTurma!J43,References!A$803:J$881,F43,0))) ->  | L43: =IF(K43="","",VLOOKUP(K43,References!A$903:B$1362,2,)) ->  | N43: =IF(L43="","",VLOOKUP(L43,References!A$1403:B$1903,2,0)) -> 
A44: =IF(iniTurma!B44<>"",iniTurma!B44,"") ->  | B44: =iniTurma!A44 -> 41 | C44: =IF(iniTurma!C44=0,"",iniTurma!C44) ->  | D44: =IF(OR(iniTurma!E44="",iniTurma!F44=""),"",(iniTurma!F44-iniTurma!E44)/365.25) ->  | E44: =IF(OR(iniTurma!E44="",iniTurma!F44=""),"",iniTurma!F44-iniTurma!E44) ->  | G44: =IF(OR(F44="",iniTurma!G44=""),"",VLOOKUP(iniTurma!G44,References!A$3:J$78,F44,0)) ->  | H44: =IF(OR(F44="",iniTurma!H44=""),"",IF(iniTurma!D44="Menino",VLOOKUP(iniTurma!H44,References!A$103:J$208,F44,0),VLOOKUP(iniTurma!H44,References!A$303:J$413,F44,0))) ->  | I44: =IF(OR(F44="",iniTurma!I44=""),"",VLOOKUP(iniTurma!I44,References!A$503:J$575,F44,0)) ->  | J44: =IF(OR(F44="",iniTurma!J44=""),"",IF(iniTurma!D44="Menino",VLOOKUP(iniTurma!J44,References!A$603:J$681,F44,0),VLOOKUP(iniTurma!J44,References!A$803:J$881,F44,0))) ->  | L44: =IF(K44="","",VLOOKUP(K44,References!A$903:B$1362,2,)) ->  | N44: =IF(L44="","",VLOOKUP(L44,References!A$1403:B$1903,2,0)) -> 
A45: =IF(iniTurma!B45<>"",iniTurma!B45,"") ->  | B45: =iniTurma!A45 -> 42 | C45: =IF(iniTurma!C45=0,"",iniTurma!C45) ->  | D45: =IF(OR(iniTurma!E45="",iniTurma!F45=""),"",(iniTurma!F45-iniTurma!E45)/365.25) ->  | E45: =IF(OR(iniTurma!E45="",iniTurma!F45=""),"",iniTurma!F45-iniTurma!E45) ->  | G45: =IF(OR(F45="",iniTurma!G45=""),"",VLOOKUP(iniTurma!G45,References!A$3:J$78,F45,0)) ->  | H45: =IF(OR(F45="",iniTurma!H45=""),"",IF(iniTurma!D45="Menino",VLOOKUP(iniTurma!H45,References!A$103:J$208,F45,0),VLOOKUP(iniTurma!H45,References!A$303:J$413,F45,0))) ->  | I45: =IF(OR(F45="",iniTurma!I45=""),"",VLOOKUP(iniTurma!I45,References!A$503:J$575,F45,0)) ->  | J45: =IF(OR(F45="",iniTurma!J45=""),"",IF(iniTurma!D45="Menino",VLOOKUP(iniTurma!J45,References!A$603:J$681,F45,0),VLOOKUP(iniTurma!J45,References!A$803:J$881,F45,0))) ->  | L45: =IF(K45="","",VLOOKUP(K45,References!A$903:B$1362,2,)) ->  | N45: =IF(L45="","",VLOOKUP(L45,References!A$1403:B$1903,2,0)) -> 
A46: =IF(iniTurma!B46<>"",iniTurma!B46,"") ->  | B46: =iniTurma!A46 -> 43 | C46: =IF(iniTurma!C46=0,"",iniTurma!C46) ->  | D46: =IF(OR(iniTurma!E46="",iniTurma!F46=""),"",(iniTurma!F46-iniTurma!E46)/365.25) ->  | E46: =IF(OR(iniTurma!E46="",iniTurma!F46=""),"",iniTurma!F46-iniTurma!E46) ->  | G46: =IF(OR(F46="",iniTurma!G46=""),"",VLOOKUP(iniTurma!G46,References!A$3:J$78,F46,0)) ->  | H46: =IF(OR(F46="",iniTurma!H46=""),"",IF(iniTurma!D46="Menino",VLOOKUP(iniTurma!H46,References!A$103:J$208,F46,0),VLOOKUP(iniTurma!H46,References!A$303:J$413,F46,0))) ->  | I46: =IF(OR(F46="",iniTurma!I46=""),"",VLOOKUP(iniTurma!I46,References!A$503:J$575,F46,0)) ->  | J46: =IF(OR(F46="",iniTurma!J46=""),"",IF(iniTurma!D46="Menino",VLOOKUP(iniTurma!J46,References!A$603:J$681,F46,0),VLOOKUP(iniTurma!J46,References!A$803:J$881,F46,0))) ->  | L46: =IF(K46="","",VLOOKUP(K46,References!A$903:B$1362,2,)) ->  | N46: =IF(L46="","",VLOOKUP(L46,References!A$1403:B$1903,2,0)) -> 
A47: =IF(iniTurma!B47<>"",iniTurma!B47,"") ->  | B47: =iniTurma!A47 -> 44 | C47: =IF(iniTurma!C47=0,"",iniTurma!C47) ->  | D47: =IF(OR(iniTurma!E47="",iniTurma!F47=""),"",(iniTurma!F47-iniTurma!E47)/365.25) ->  | E47: =IF(OR(iniTurma!E47="",iniTurma!F47=""),"",iniTurma!F47-iniTurma!E47) ->  | G47: =IF(OR(F47="",iniTurma!G47=""),"",VLOOKUP(iniTurma!G47,References!A$3:J$78,F47,0)) ->  | H47: =IF(OR(F47="",iniTurma!H47=""),"",IF(iniTurma!D47="Menino",VLOOKUP(iniTurma!H47,References!A$103:J$208,F47,0),VLOOKUP(iniTurma!H47,References!A$303:J$413,F47,0))) ->  | I47: =IF(OR(F47="",iniTurma!I47=""),"",VLOOKUP(iniTurma!I47,References!A$503:J$575,F47,0)) ->  | J47: =IF(OR(F47="",iniTurma!J47=""),"",IF(iniTurma!D47="Menino",VLOOKUP(iniTurma!J47,References!A$603:J$681,F47,0),VLOOKUP(iniTurma!J47,References!A$803:J$881,F47,0))) ->  | L47: =IF(K47="","",VLOOKUP(K47,References!A$903:B$1362,2,)) ->  | N47: =IF(L47="","",VLOOKUP(L47,References!A$1403:B$1903,2,0)) -> 
A48: =IF(iniTurma!B48<>"",iniTurma!B48,"") ->  | B48: =iniTurma!A48 -> 45 | C48: =IF(iniTurma!C48=0,"",iniTurma!C48) ->  | D48: =IF(OR(iniTurma!E48="",iniTurma!F48=""),"",(iniTurma!F48-iniTurma!E48)/365.25) ->  | E48: =IF(OR(iniTurma!E48="",iniTurma!F48=""),"",iniTurma!F48-iniTurma!E48) ->  | G48: =IF(OR(F48="",iniTurma!G48=""),"",VLOOKUP(iniTurma!G48,References!A$3:J$78,F48,0)) ->  | H48: =IF(OR(F48="",iniTurma!H48=""),"",IF(iniTurma!D48="Menino",VLOOKUP(iniTurma!H48,References!A$103:J$208,F48,0),VLOOKUP(iniTurma!H48,References!A$303:J$413,F48,0))) ->  | I48: =IF(OR(F48="",iniTurma!I48=""),"",VLOOKUP(iniTurma!I48,References!A$503:J$575,F48,0)) ->  | J48: =IF(OR(F48="",iniTurma!J48=""),"",IF(iniTurma!D48="Menino",VLOOKUP(iniTurma!J48,References!A$603:J$681,F48,0),VLOOKUP(iniTurma!J48,References!A$803:J$881,F48,0))) ->  | L48: =IF(K48="","",VLOOKUP(K48,References!A$903:B$1362,2,)) ->  | N48: =IF(L48="","",VLOOKUP(L48,References!A$1403:B$1903,2,0)) -> 
A49: =IF(iniTurma!B49<>"",iniTurma!B49,"") ->  | B49: =iniTurma!A49 -> 46 | C49: =IF(iniTurma!C49=0,"",iniTurma!C49) ->  | D49: =IF(OR(iniTurma!E49="",iniTurma!F49=""),"",(iniTurma!F49-iniTurma!E49)/365.25) ->  | E49: =IF(OR(iniTurma!E49="",iniTurma!F49=""),"",iniTurma!F49-iniTurma!E49) ->  | G49: =IF(OR(F49="",iniTurma!G49=""),"",VLOOKUP(iniTurma!G49,References!A$3:J$78,F49,0)) ->  | H49: =IF(OR(F49="",iniTurma!H49=""),"",IF(iniTurma!D49="Menino",VLOOKUP(iniTurma!H49,References!A$103:J$208,F49,0),VLOOKUP(iniTurma!H49,References!A$303:J$413,F49,0))) ->  | I49: =IF(OR(F49="",iniTurma!I49=""),"",VLOOKUP(iniTurma!I49,References!A$503:J$575,F49,0)) ->  | J49: =IF(OR(F49="",iniTurma!J49=""),"",IF(iniTurma!D49="Menino",VLOOKUP(iniTurma!J49,References!A$603:J$681,F49,0),VLOOKUP(iniTurma!J49,References!A$803:J$881,F49,0))) ->  | L49: =IF(K49="","",VLOOKUP(K49,References!A$903:B$1362,2,)) ->  | N49: =IF(L49="","",VLOOKUP(L49,References!A$1403:B$1903,2,0)) -> 
A50: =IF(iniTurma!B50<>"",iniTurma!B50,"") ->  | B50: =iniTurma!A50 -> 47 | C50: =IF(iniTurma!C50=0,"",iniTurma!C50) ->  | D50: =IF(OR(iniTurma!E50="",iniTurma!F50=""),"",(iniTurma!F50-iniTurma!E50)/365.25) ->  | E50: =IF(OR(iniTurma!E50="",iniTurma!F50=""),"",iniTurma!F50-iniTurma!E50) ->  | G50: =IF(OR(F50="",iniTurma!G50=""),"",VLOOKUP(iniTurma!G50,References!A$3:J$78,F50,0)) ->  | H50: =IF(OR(F50="",iniTurma!H50=""),"",IF(iniTurma!D50="Menino",VLOOKUP(iniTurma!H50,References!A$103:J$208,F50,0),VLOOKUP(iniTurma!H50,References!A$303:J$413,F50,0))) ->  | I50: =IF(OR(F50="",iniTurma!I50=""),"",VLOOKUP(iniTurma!I50,References!A$503:J$575,F50,0)) ->  | J50: =IF(OR(F50="",iniTurma!J50=""),"",IF(iniTurma!D50="Menino",VLOOKUP(iniTurma!J50,References!A$603:J$681,F50,0),VLOOKUP(iniTurma!J50,References!A$803:J$881,F50,0))) ->  | L50: =IF(K50="","",VLOOKUP(K50,References!A$903:B$1362,2,)) ->  | N50: =IF(L50="","",VLOOKUP(L50,References!A$1403:B$1903,2,0)) -> 
A51: =IF(iniTurma!B51<>"",iniTurma!B51,"") ->  | B51: =iniTurma!A51 -> 48 | C51: =IF(iniTurma!C51=0,"",iniTurma!C51) ->  | D51: =IF(OR(iniTurma!E51="",iniTurma!F51=""),"",(iniTurma!F51-iniTurma!E51)/365.25) ->  | E51: =IF(OR(iniTurma!E51="",iniTurma!F51=""),"",iniTurma!F51-iniTurma!E51) ->  | G51: =IF(OR(F51="",iniTurma!G51=""),"",VLOOKUP(iniTurma!G51,References!A$3:J$78,F51,0)) ->  | H51: =IF(OR(F51="",iniTurma!H51=""),"",IF(iniTurma!D51="Menino",VLOOKUP(iniTurma!H51,References!A$103:J$208,F51,0),VLOOKUP(iniTurma!H51,References!A$303:J$413,F51,0))) ->  | I51: =IF(OR(F51="",iniTurma!I51=""),"",VLOOKUP(iniTurma!I51,References!A$503:J$575,F51,0)) ->  | J51: =IF(OR(F51="",iniTurma!J51=""),"",IF(iniTurma!D51="Menino",VLOOKUP(iniTurma!J51,References!A$603:J$681,F51,0),VLOOKUP(iniTurma!J51,References!A$803:J$881,F51,0))) ->  | L51: =IF(K51="","",VLOOKUP(K51,References!A$903:B$1362,2,)) ->  | N51: =IF(L51="","",VLOOKUP(L51,References!A$1403:B$1903,2,0)) -> 
A52: =IF(iniTurma!B52<>"",iniTurma!B52,"") ->  | B52: =iniTurma!A52 -> 49 | C52: =IF(iniTurma!C52=0,"",iniTurma!C52) ->  | D52: =IF(OR(iniTurma!E52="",iniTurma!F52=""),"",(iniTurma!F52-iniTurma!E52)/365.25) ->  | E52: =IF(OR(iniTurma!E52="",iniTurma!F52=""),"",iniTurma!F52-iniTurma!E52) ->  | G52: =IF(OR(F52="",iniTurma!G52=""),"",VLOOKUP(iniTurma!G52,References!A$3:J$78,F52,0)) ->  | H52: =IF(OR(F52="",iniTurma!H52=""),"",IF(iniTurma!D52="Menino",VLOOKUP(iniTurma!H52,References!A$103:J$208,F52,0),VLOOKUP(iniTurma!H52,References!A$303:J$413,F52,0))) ->  | I52: =IF(OR(F52="",iniTurma!I52=""),"",VLOOKUP(iniTurma!I52,References!A$503:J$575,F52,0)) ->  | J52: =IF(OR(F52="",iniTurma!J52=""),"",IF(iniTurma!D52="Menino",VLOOKUP(iniTurma!J52,References!A$603:J$681,F52,0),VLOOKUP(iniTurma!J52,References!A$803:J$881,F52,0))) ->  | L52: =IF(K52="","",VLOOKUP(K52,References!A$903:B$1362,2,)) ->  | N52: =IF(L52="","",VLOOKUP(L52,References!A$1403:B$1903,2,0)) -> 
A53: =IF(iniTurma!B53<>"",iniTurma!B53,"") ->  | B53: =iniTurma!A53 -> 50 | C53: =IF(iniTurma!C53=0,"",iniTurma!C53) ->  | D53: =IF(OR(iniTurma!E53="",iniTurma!F53=""),"",(iniTurma!F53-iniTurma!E53)/365.25) ->  | E53: =IF(OR(iniTurma!E53="",iniTurma!F53=""),"",iniTurma!F53-iniTurma!E53) ->  | G53: =IF(OR(F53="",iniTurma!G53=""),"",VLOOKUP(iniTurma!G53,References!A$3:J$78,F53,0)) ->  | H53: =IF(OR(F53="",iniTurma!H53=""),"",IF(iniTurma!D53="Menino",VLOOKUP(iniTurma!H53,References!A$103:J$208,F53,0),VLOOKUP(iniTurma!H53,References!A$303:J$413,F53,0))) ->  | I53: =IF(OR(F53="",iniTurma!I53=""),"",VLOOKUP(iniTurma!I53,References!A$503:J$575,F53,0)) ->  | J53: =IF(OR(F53="",iniTurma!J53=""),"",IF(iniTurma!D53="Menino",VLOOKUP(iniTurma!J53,References!A$603:J$681,F53,0),VLOOKUP(iniTurma!J53,References!A$803:J$881,F53,0))) ->  | L53: =IF(K53="","",VLOOKUP(K53,References!A$903:B$1362,2,)) ->  | N53: =IF(L53="","",VLOOKUP(L53,References!A$1403:B$1903,2,0)) -> 

Sheet References (hidden)
B1: Meninas ou Meninos
A2: TL_Ponto | B2: < 6 anos | C2: 6 anos | D2: 7 anos | E2: 8 anos | F2: 9 anos | G2: 10 anos | H2: 11 anos | I2: 12 anos | J2: > 12 anos
A3: 1 | B3: 50 | C3: 44 | D3: 39 | E3: 35 | F3: 31 | G3: 27 | H3: 23 | I3: 20 | J3: 16
A4: 2 | B4: 51 | C4: 45 | D4: 40 | E4: 36 | F4: 32 | G4: 28 | H4: 24 | I4: 21 | J4: 18
A5: 3 | B5: 52 | C5: 46 | D5: 41 | E5: 37 | F5: 33 | G5: 29 | H5: 26 | I5: 22 | J5: 19
A6: 4 | B6: 53 | C6: 47 | D6: 42 | E6: 38 | F6: 34 | G6: 31 | H6: 27 | I6: 24 | J6: 20
A7: 5 | B7: 54 | C7: 48 | D7: 43 | E7: 39 | F7: 35 | G7: 32 | H7: 28 | I7: 25 | J7: 21
A8: 6 | B8: 55 | C8: 49 | D8: 45 | E8: 40 | F8: 36 | G8: 33 | H8: 29 | I8: 26 | J8: 23
A9: 7 | B9: 56 | C9: 50 | D9: 46 | E9: 42 | F9: 38 | G9: 34 | H9: 31 | I9: 27 | J9: 24
A10: 8 | B10: 58 | C10: 51 | D10: 47 | E10: 43 | F10: 39 | G10: 36 | H10: 32 | I10: 28 | J10: 25
A11: 9 | B11: 60 | C11: 52 | D11: 48 | E11: 44 | F11: 40 | G11: 37 | H11: 33 | I11: 29 | J11: 26
A12: 10 | B12: 62 | C12: 53 | D12: 49 | E12: 45 | F12: 41 | G12: 38 | H12: 34 | I12: 30 | J12: 27
A13: 11 | B13: 65 | C13: 54 | D13: 50 | E13: 46 | F13: 42 | G13: 39 | H13: 35 | I13: 32 | J13: 28
A14: 12 | B14: 67 | C14: 55 | D14: 51 | E14: 47 | F14: 43 | G14: 40 | H14: 36 | I14: 33 | J14: 29
A15: 13 | B15: 69 | C15: 57 | D15: 53 | E15: 48 | F15: 45 | G15: 41 | H15: 37 | I15: 34 | J15: 30
A16: 14 | B16: 70 | C16: 60 | D16: 54 | E16: 49 | F16: 46 | G16: 42 | H16: 38 | I16: 35 | J16: 32
A17: 15 | B17: 73 | C17: 62 | D17: 55 | E17: 50 | F17: 47 | G17: 43 | H17: 39 | I17: 36 | J17: 33
A18: 16 | B18: 75 | C18: 63 | D18: 57 | E18: 51 | F18: 48 | G18: 44 | H18: 40 | I18: 37 | J18: 34
A19: 17 | B19: 78 | C19: 64 | D19: 58 | E19: 52 | F19: 49 | G19: 46 | H19: 41 | I19: 38 | J19: 35
A20: 18 | B20: 80 | C20: 65 | D20: 59 | E20: 53 | F20: 50 | G20: 47 | H20: 42 | I20: 39 | J20: 36
A21: 19 | B21: 82 | C21: 68 | D21: 60 | E21: 54 | F21: 51 | G21: 48 | H21: 44 | I21: 40 | J21: 37
A22: 20 | B22: 84 | C22: 71 | D22: 62 | E22: 56 | F22: 52 | G22: 49 | H22: 45 | I22: 41 | J22: 38
A23: 21 | B23: 86 | C23: 73 | D23: 65 | E23: 57 | F23: 54 | G23: 50 | H23: 46 | I23: 42 | J23: 39
A24: 22 | B24: 89 | C24: 75 | D24: 67 | E24: 58 | F24: 55 | G24: 52 | H24: 47 | I24: 43 | J24: 40
A25: 23 | B25: 91 | C25: 77 | D25: 69 | E25: 60 | F25: 56 | G25: 54 | H25: 48 | I25: 45 | J25: 42
A26: 24 | B26: 93 | C26: 80 | D26: 72 | E26: 61 | F26: 58 | G26: 56 | H26: 49 | I26: 46 | J26: 43
A27: 25 | B27: 95 | C27: 82 | D27: 74 | E27: 63 | F27: 60 | G27: 58 | H27: 50 | I27: 47 | J27: 44
A28: 26 | B28: 97 | C28: 85 | D28: 76 | E28: 66 | F28: 62 | G28: 60 | H28: 53 | I28: 48 | J28: 45
A29: 27 | B29: 99 | C29: 87 | D29: 79 | E29: 69 | F29: 64 | G29: 62 | H29: 55 | I29: 49 | J29: 46
A30: 28 | B30: 102 | C30: 90 | D30: 81 | E30: 71 | F30: 67 | G30: 64 | H30: 57 | I30: 50 | J30: 48
A31: 29 | B31: 104 | C31: 92 | D31: 84 | E31: 74 | F31: 69 | G31: 66 | H31: 59 | I31: 52 | J31: 49
A32: 30 | B32: 106 | C32: 94 | D32: 86 | E32: 76 | F32: 71 | G32: 67 | H32: 61 | I32: 53 | J32: 50
A33: 31 | B33: 108 | C33: 97 | D33: 88 | E33: 79 | F33: 73 | G33: 69 | H33: 63 | I33: 55 | J33: 52
A34: 32 | B34: 110 | C34: 99 | D34: 91 | E34: 81 | F34: 75 | G34: 70 | H34: 66 | I34: 56 | J34: 55
A35: 33 | B35: 112 | C35: 102 | D35: 93 | E35: 84 | F35: 77 | G35: 71 | H35: 68 | I35: 57 | J35: 57
A36: 34 | B36: 115 | C36: 104 | D36: 96 | E36: 86 | F36: 79 | G36: 72 | H36: 70 | I36: 59 | J36: 59
A37: 35 | B37: 117 | C37: 106 | D37: 98 | E37: 89 | F37: 82 | G37: 73 | H37: 72 | I37: 61 | J37: 61
A38: 36 | B38: 119 | C38: 109 | D38: 100 | E38: 91 | F38: 84 | G38: 74 | H38: 75 | I38: 64 | J38: 63
A39: 37 | B39: 121 | C39: 111 | D39: 103 | E39: 94 | F39: 86 | G39: 76 | H39: 77 | I39: 67 | J39: 65
A40: 38 | B40: 123 | C40: 114 | D40: 105 | E40: 96 | F40: 88 | G40: 77 | H40: 79 | I40: 69 | J40: 68
A41: 39 | B41: 125 | C41: 116 | D41: 107 | E41: 99 | F41: 90 | G41: 79 | H41: 81 | I41: 71 | J41: 70
A42: 40 | B42: 128 | C42: 119 | D42: 110 | E42: 101 | F42: 92 | G42: 82 | H42: 83 | I42: 74 | J42: 72
A43: 41 | B43: 129 | C43: 121 | D43: 112 | E43: 104 | F43: 94 | G43: 84 | H43: 86 | I43: 76 | J43: 74
A44: 42 | B44: 130 | C44: 123 | D44: 115 | E44: 106 | F44: 96 | G44: 87 | H44: 88 | I44: 79 | J44: 77
A45: 43 | B45: 132 | C45: 126 | D45: 117 | E45: 109 | F45: 99 | G45: 89 | H45: 90 | I45: 81 | J45: 79
A46: 44 | B46: 133 | C46: 128 | D46: 119 | E46: 111 | F46: 101 | G46: 92 | H46: 92 | I46: 84 | J46: 82
A47: 45 | B47: 135 | C47: 131 | D47: 122 | E47: 113 | F47: 103 | G47: 95 | H47: 95 | I47: 86 | J47: 84
A48: 46 | B48: 137 | C48: 132 | D48: 124 | E48: 116 | F48: 105 | G48: 97 | H48: 97 | I48: 88 | J48: 87
A49: 47 | B49: 139 | C49: 133 | D49: 127 | E49: 118 | F49: 107 | G49: 100 | H49: 99 | I49: 91 | J49: 89
A50: 48 | B50: 141 | C50: 135 | D50: 129 | E50: 121 | F50: 109 | G50: 102 | H50: 101 | I50: 93 | J50: 89
A51: 49 | B51: 142 | C51: 136 | D51: 131 | E51: 123 | F51: 111 | G51: 105 | H51: 104 | I51: 96 | J51: 93
A52: 50 | B52: 144 | C52: 138 | D52: 134 | E52: 126 | F52: 114 | G52: 107 | H52: 106 | I52: 98 | J52: 95
A53: 51 | B53: 145 | C53: 139 | D53: 136 | E53: 128 | F53: 116 | G53: 110 | H53: 108 | I53: 101 | J53: 98
A54: 52 | C54: 141 | D54: 138 | E54: 131 | F54: 118 | G54: 112 | H54: 110 | I54: 103 | J54: 101
A55: 53 | C55: 143 | D55: 141 | E55: 133 | F55: 120 | G55: 115 | H55: 112 | I55: 105 | J55: 103
A56: 54 | C56: 145 | D56: 143 | E56: 136 | F56: 122 | G56: 117 | H56: 115 | I56: 108 | J56: 105
A57: 55 | D57: 144 | E57: 138 | F57: 124 | G57: 120 | H57: 117 | I57: 110 | J57: 108
A58: 56 | D58: 145 | E58: 140 | F58: 126 | G58: 122 | H58: 119 | I58: 113 | J58: 110
A59: 57 | E59: 143 | F59: 129 | G59: 125 | H59: 121 | I59: 115 | J59: 113
A60: 58 | E60: 144 | F60: 131 | G60: 127 | H60: 124 | I60: 118 | J60: 115
A61: 59 | E61: 145 | F61: 133 | G61: 130 | H61: 126 | I61: 120 | J61: 117
A62: 60 | F62: 135 | G62: 132 | H62: 129 | I62: 122 | J62: 120
A63: 61 | F63: 137 | G63: 135 | H63: 131 | I63: 125 | J63: 122
A64: 62 | F64: 139 | G64: 138 | H64: 133 | I64: 127 | J64: 125
A65: 63 | F65: 141 | G65: 140 | H65: 135 | I65: 130 | J65: 127
A66: 64 | F66: 143 | G66: 143 | H66: 137 | I66: 132 | J66: 129
A67: 65 | F67: 145 | G67: 144 | H67: 138 | I67: 135 | J67: 130
A68: 66 | G68: 145 | H68: 140 | I68: 137 | J68: 131
A69: 67 | H69: 141 | I69: 139 | J69: 132
A70: 68 | H70: 143 | I70: 140 | J70: 133
A71: 69 | H71: 145 | I71: 141 | J71: 134
A72: 70 | I72: 143 | J72: 136
A73: 71 | I73: 144 | J73: 137
A74: 72 | I74: 145 | J74: 139
A75: 73 | J75: 140
A76: 74 | J76: 142
A77: 75 | J77: 143
A78: 76 | J78: 145
B101: Meninos
A102: SL_Ponto | B102: < 6 anos | C102: 6 anos | D102: 7 anos | E102: 8 anos | F102: 9 anos | G102: 10 anos | H102: 11 anos | I102: 12 anos | J102: > 12 anos
A103: 0 | B103: 54 | C103: 50 | D103: 47 | E103: 43 | F103: 37 | G103: 29 | H103: 24 | I103: 20 | J103: 16
A104: 1 | B104: 55 | C104: 51 | D104: 48 | E104: 44 | F104: 38 | G104: 30 | H104: 25 | I104: 21 | J104: 17
A105: 2 | B105: 56 | C105: 52 | D105: 49 | E105: 45 | F105: 39 | G105: 31 | H105: 26 | I105: 22 | J105: 18
A106: 3 | B106: 57 | C106: 53 | D106: 50 | E106: 46 | F106: 40 | G106: 32 | H106: 27 | I106: 24 | J106: 19
A107: 4 | B107: 58 | C107: 54 | D107: 52 | E107: 47 | F107: 41 | G107: 33 | H107: 29 | I107: 25 | J107: 20
A108: 5 | B108: 60 | C108: 55 | D108: 53 | E108: 48 | F108: 42 | G108: 34 | H108: 30 | I108: 26 | J108: 21
A109: 6 | B109: 61 | C109: 57 | D109: 55 | E109: 49 | F109: 43 | G109: 35 | H109: 31 | I109: 27 | J109: 23
A110: 7 | B110: 62 | C110: 59 | D110: 56 | E110: 50 | F110: 44 | G110: 36 | H110: 32 | I110: 28 | J110: 24
A111: 8 | B111: 63 | C111: 60 | D111: 57 | E111: 51 | F111: 45 | G111: 37 | H111: 33 | I111: 30 | J111: 25
A112: 9 | B112: 65 | C112: 62 | D112: 59 | E112: 52 | F112: 46 | G112: 38 | H112: 34 | I112: 31 | J112: 26
A113: 10 | B113: 66 | C113: 64 | D113: 60 | E113: 53 | F113: 47 | G113: 39 | H113: 35 | I113: 32 | J113: 27
A114: 11 | B114: 67 | C114: 66 | D114: 62 | E114: 55 | F114: 48 | G114: 40 | H114: 36 | I114: 33 | J114: 28
A115: 12 | B115: 70 | C115: 67 | D115: 63 | E115: 56 | F115: 49 | G115: 41 | H115: 37 | I115: 35 | J115: 29
A116: 13 | B116: 72 | C116: 69 | D116: 64 | E116: 57 | F116: 50 | G116: 42 | H116: 38 | I116: 36 | J116: 30
A117: 14 | B117: 74 | C117: 70 | D117: 65 | E117: 59 | F117: 52 | G117: 43 | H117: 40 | I117: 37 | J117: 31
A118: 15 | B118: 76 | C118: 72 | D118: 67 | E118: 60 | F118: 53 | G118: 44 | H118: 41 | I118: 38 | J118: 32
A119: 16 | B119: 78 | C119: 74 | D119: 68 | E119: 61 | F119: 55 | G119: 45 | H119: 42 | I119: 39 | J119: 33
A120: 17 | B120: 80 | C120: 76 | D120: 70 | E120: 63 | F120: 57 | G120: 46 | H120: 43 | I120: 40 | J120: 34
A121: 18 | B121: 83 | C121: 77 | D121: 72 | E121: 64 | F121: 58 | G121: 47 | H121: 44 | I121: 41 | J121: 35
A122: 19 | B122: 85 | C122: 78 | D122: 74 | E122: 65 | F122: 60 | G122: 48 | H122: 46 | I122: 42 | J122: 36
A123: 20 | B123: 87 | C123: 80 | D123: 75 | E123: 67 | F123: 62 | G123: 49 | H123: 47 | I123: 43 | J123: 37
A124: 21 | B124: 89 | C124: 82 | D124: 77 | E124: 68 | F124: 64 | G124: 50 | H124: 48 | I124: 45 | J124: 38
A125: 22 | B125: 92 | C125: 84 | D125: 78 | E125: 70 | F125: 65 | G125: 52 | H125: 49 | I125: 46 | J125: 39
A126: 23 | B126: 93 | C126: 86 | D126: 80 | E126: 71 | F126: 67 | G126: 53 | H126: 50 | I126: 47 | J126: 40
A127: 24 | B127: 97 | C127: 88 | D127: 81 | E127: 72 | F127: 69 | G127: 54 | H127: 51 | I127: 48 | J127: 42
A128: 25 | B128: 99 | C128: 89 | D128: 83 | E128: 73 | F128: 70 | G128: 56 | H128: 52 | I128: 49 | J128: 43
A129: 26 | B129: 101 | C129: 90 | D129: 84 | E129: 75 | F129: 72 | G129: 57 | H129: 53 | I129: 50 | J129: 45
A130: 27 | B130: 103 | C130: 93 | D130: 86 | E130: 76 | F130: 73 | G130: 58 | H130: 55 | I130: 51 | J130: 45
A131: 28 | B131: 106 | C131: 96 | D131: 87 | E131: 77 | F131: 74 | G131: 59 | H131: 56 | I131: 52 | J131: 46
A132: 29 | B132: 108 | C132: 97 | D132: 89 | E132: 78 | F132: 76 | G132: 61 | H132: 57 | I132: 53 | J132: 47
A133: 30 | B133: 110 | C133: 98 | D133: 90 | E133: 80 | F133: 77 | G133: 63 | H133: 58 | I133: 54 | J133: 48
A134: 31 | B134: 112 | C134: 100 | D134: 92 | E134: 81 | F134: 78 | G134: 63 | H134: 59 | I134: 55 | J134: 49
A135: 32 | B135: 115 | C135: 101 | D135: 93 | E135: 82 | F135: 79 | G135: 65 | H135: 61 | I135: 56 | J135: 50
A136: 33 | B136: 117 | C136: 102 | D136: 95 | E136: 83 | F136: 80 | G136: 66 | H136: 62 | I136: 57 | J136: 51
A137: 34 | B137: 120 | C137: 103 | D137: 96 | E137: 85 | F137: 81 | G137: 67 | H137: 63 | I137: 58 | J137: 52
A138: 35 | B138: 122 | C138: 104 | D138: 98 | E138: 85 | F138: 82 | G138: 68 | H138: 63 | I138: 59 | J138: 54
A139: 36 | B139: 125 | C139: 106 | D139: 99 | E139: 87 | F139: 84 | G139: 70 | H139: 66 | I139: 60 | J139: 55
A140: 37 | B140: 127 | C140: 107 | D140: 101 | E140: 89 | F140: 85 | G140: 71 | H140: 67 | I140: 61 | J140: 58
A141: 38 | B141: 129 | C141: 108 | D141: 102 | E141: 90 | F141: 86 | G141: 72 | H141: 68 | I141: 62 | J141: 58
A142: 39 | B142: 131 | C142: 109 | D142: 104 | E142: 91 | F142: 87 | G142: 74 | H142: 69 | I142: 63 | J142: 59
A143: 40 | B143: 134 | C143: 110 | D143: 105 | E143: 92 | F143: 88 | G143: 75 | H143: 71 | I143: 64 | J143: 60
A144: 41 | B144: 136 | C144: 112 | D144: 107 | E144: 94 | F144: 89 | G144: 76 | H144: 72 | I144: 65 | J144: 61
A145: 42 | B145: 138 | C145: 113 | D145: 108 | E145: 95 | F145: 90 | G145: 77 | H145: 73 | I145: 66 | J145: 63
A146: 43 | B146: 139 | C146: 114 | D146: 110 | E146: 95 | F146: 92 | G146: 79 | H146: 75 | I146: 67 | J146: 64
A147: 44 | B147: 140 | C147: 115 | D147: 111 | E147: 98 | F147: 93 | G147: 80 | H147: 76 | I147: 68 | J147: 66
A148: 45 | B148: 141 | C148: 116 | D148: 113 | E148: 99 | F148: 94 | G148: 81 | H148: 77 | I148: 69 | J148: 67
A149: 46 | B149: 142 | C149: 118 | D149: 114 | E149: 100 | F149: 95 | G149: 83 | H149: 78 | I149: 70 | J149: 68
A150: 47 | B150: 143 | C150: 115 | D150: 116 | E150: 102 | F150: 96 | G150: 84 | H150: 80 | I150: 72 | J150: 69
A151: 48 | B151: 144 | C151: 120 | D151: 117 | E151: 103 | F151: 97 | G151: 85 | H151: 81 | I151: 73 | J151: 70
A152: 49 | B152: 145 | C152: 122 | D152: 119 | E152: 104 | F152: 98 | G152: 87 | H152: 82 | I152: 75 | J152: 71
A153: 50 | C153: 123 | D153: 120 | E153: 105 | F153: 100 | G153: 88 | H153: 84 | I153: 76 | J153: 73
A154: 51 | C154: 124 | D154: 122 | E154: 107 | F154: 101 | G154: 89 | H154: 85 | I154: 78 | J154: 74
A155: 52 | C155: 125 | D155: 123 | E155: 108 | F155: 102 | G155: 90 | H155: 86 | I155: 79 | J155: 76
A156: 53 | C156: 126 | D156: 124 | E156: 109 | F156: 103 | G156: 92 | H156: 88 | I156: 80 | J156: 77
A157: 54 | C157: 127 | D157: 125 | E157: 111 | F157: 104 | G157: 93 | H157: 89 | I157: 81 | J157: 79
A158: 55 | C158: 128 | D158: 126 | E158: 112 | F158: 105 | G158: 94 | H158: 90 | I158: 83 | J158: 80
A159: 56 | C159: 130 | D159: 127 | E159: 113 | F159: 106 | G159: 96 | H159: 91 | I159: 84 | J159: 81
A160: 57 | C160: 132 | D160: 128 | E160: 114 | F160: 108 | G160: 97 | H160: 93 | I160: 85 | J160: 83
A161: 58 | C161: 133 | D161: 129 | E161: 116 | F161: 109 | G161: 98 | H161: 94 | I161: 87 | J161: 85
A162: 59 | C162: 135 | D162: 130 | E162: 117 | F162: 110 | G162: 99 | H162: 95 | I162: 88 | J162: 86
A163: 60 | C163: 136 | D163: 131 | E163: 119 | F163: 111 | G163: 101 | H163: 97 | I163: 89 | J163: 88
A164: 61 | C164: 137 | D164: 132 | E164: 120 | F164: 112 | G164: 102 | H164: 98 | I164: 91 | J164: 89
A165: 62 | C165: 139 | D165: 133 | E165: 121 | F165: 113 | G165: 103 | H165: 99 | I165: 92 | J165: 91
A166: 63 | C166: 140 | D166: 135 | E166: 123 | F166: 114 | G166: 105 | H166: 100 | I166: 94 | J166: 92
A167: 64 | C167: 141 | D167: 136 | E167: 124 | F167: 115 | G167: 106 | H167: 102 | I167: 95 | J167: 93
A168: 65 | C168: 143 | D168: 137 | E168: 125 | F168: 117 | G168: 107 | H168: 103 | I168: 96 | J168: 95
A169: 66 | C169: 144 | D169: 139 | E169: 126 | F169: 118 | G169: 109 | H169: 104 | I169: 98 | J169: 96
A170: 67 | C170: 145 | D170: 140 | E170: 127 | F170: 119 | G170: 110 | H170: 106 | I170: 99 | J170: 98
A171: 68 | D171: 141 | E171: 129 | F171: 120 | G171: 111 | H171: 107 | I171: 100 | J171: 99
A172: 69 | D172: 142 | E172: 130 | F172: 121 | G172: 113 | H172: 108 | I172: 102 | J172: 101
A173: 70 | D173: 143 | E173: 131 | F173: 123 | G173: 114 | H173: 109 | I173: 103 | J173: 103
A174: 71 | D174: 144 | E174: 132 | F174: 124 | G174: 115 | H174: 110 | I174: 104 | J174: 104
A175: 72 | D175: 145 | E175: 134 | F175: 125 | G175: 116 | H175: 112 | I175: 106 | J175: 105
A176: 73 | E176: 135 | F176: 126 | G176: 118 | H176: 113 | I176: 107 | J176: 107
A177: 74 | E177: 136 | F177: 127 | G177: 119 | H177: 115 | I177: 109 | J177: 109
A178: 75 | E178: 138 | F178: 129 | G178: 120 | H178: 116 | I178: 110 | J178: 109
A179: 76 | E179: 139 | F179: 130 | G179: 121 | H179: 117 | I179: 111 | J179: 110
A180: 77 | E180: 141 | F180: 131 | G180: 123 | H180: 118 | I180: 113 | J180: 112
A181: 78 | E181: 142 | F181: 132 | G181: 124 | H181: 120 | I181: 114 | J181: 113
A182: 79 | E182: 143 | F182: 133 | G182: 125 | H182: 121 | I182: 115 | J182: 114
A183: 80 | E183: 144 | F183: 134 | G183: 127 | H183: 117 | I183: 116 | J183: 115
A184: 81 | E184: 145 | F184: 135 | G184: 128 | H184: 123 | I184: 118 | J184: 117
A185: 82 | F185: 136 | G185: 129 | H185: 125 | I185: 119 | J185: 118
A186: 83 | F186: 137 | G186: 130 | H186: 126 | I186: 121 | J186: 120
A187: 84 | F187: 138 | G187: 132 | H187: 127 | I187: 122 | J187: 121
A188: 85 | F188: 139 | G188: 133 | H188: 129 | I188: 123 | J188: 122
A189: 86 | F189: 140 | G189: 135 | H189: 130 | I189: 125 | J189: 121
A190: 87 | F190: 141 | G190: 136 | H190: 131 | I190: 126 | J190: 125
A191: 88 | F191: 143 | G191: 137 | H191: 132 | I191: 127 | J191: 126
A192: 89 | F192: 144 | G192: 139 | H192: 134 | I192: 128 | J192: 127
A193: 90 | F193: 145 | G193: 140 | H193: 135 | I193: 130 | J193: 128
A194: 91 | G194: 142 | H194: 136 | I194: 131 | J194: 129
A195: 92 | G195: 143 | H195: 137 | I195: 133 | J195: 130
A196: 93 | G196: 145 | H196: 138 | I196: 134 | J196: 131
A197: 94 | H197: 140 | I197: 135 | J197: 133
A198: 95 | H198: 141 | I198: 137 | J198: 134
A199: 96 | H199: 143 | I199: 138 | J199: 135
A200: 97 | H200: 144 | I200: 140 | J200: 136
A201: 98 | H201: 145 | I201: 141 | J201: 137
A202: 99 | I202: 143 | J202: 138
A203: 100 | I203: 144 | J203: 139
A204: 101 | I204: 145 | J204: 140
A205: 102 | J205: 141
A206: 103 | J206: 143
A207: 104 | J207: 144
A208: 105 | J208: 145
B301: Meninas
A302: SL_Ponto | B302: < 6 anos | C302: 6 anos | D302: 7 anos | E302: 8 anos | F302: 9 anos | G302: 10 anos | H302: 11 anos | I302: 12 anos | J302: > 12 anos
A303: 0 | B303: 59 | C303: 51 | D303: 42 | E303: 36 | F303: 28 | G303: 21 | H303: 16 | I303: 11 | J303: 6
A304: 1 | B304: 60 | C304: 52 | D304: 43 | E304: 37 | F304: 29 | G304: 22 | H304: 17 | I304: 12 | J304: 7
A305: 2 | B305: 61 | C305: 53 | D305: 44 | E305: 39 | F305: 30 | G305: 23 | H305: 18 | I305: 13 | J305: 8
A306: 3 | B306: 62 | C306: 55 | D306: 45 | E306: 40 | F306: 31 | G306: 24 | H306: 19 | I306: 14 | J306: 9
A307: 4 | B307: 64 | C307: 56 | D307: 46 | E307: 42 | F307: 32 | G307: 25 | H307: 20 | I307: 15 | J307: 10
A308: 5 | B308: 65 | C308: 57 | D308: 47 | E308: 43 | F308: 33 | G308: 26 | H308: 21 | I308: 16 | J308: 11
A309: 6 | B309: 66 | C309: 59 | D309: 48 | E309: 44 | F309: 34 | G309: 27 | H309: 22 | I309: 17 | J309: 12
A310: 7 | B310: 68 | C310: 60 | D310: 49 | E310: 45 | F310: 35 | G310: 28 | H310: 23 | I310: 18 | J310: 13
A311: 8 | B311: 69 | C311: 61 | D311: 50 | E311: 47 | F311: 36 | G311: 30 | H311: 24 | I311: 20 | J311: 14
A312: 9 | B312: 70 | C312: 62 | D312: 51 | E312: 48 | F312: 37 | G312: 31 | H312: 25 | I312: 21 | J312: 15
A313: 10 | B313: 71 | C313: 63 | D313: 52 | E313: 49 | F313: 38 | G313: 32 | H313: 36 | I313: 22 | J313: 16
A314: 11 | B314: 72 | C314: 64 | D314: 53 | E314: 50 | F314: 39 | G314: 33 | H314: 27 | I314: 23 | J314: 17
... 1306 more rows

Sheet Auxiliar (hidden)
A1: Número | B1: Ordem | C1: Teste | D1: iniCriança | E1: iniMédia | F1: iniMínimo | G1: iniMáximo | I1: Nome Gráfico | J1: fimCriança | K1: fimMédia | L1: fimMínimo | M1: fimMáximo | N1: Melhor | O1: Desvio | P1: Padrão | Q1: DifMédia | R1: Teste T | S1: Conclusão | T1: Num Suj | U1: Num Suj
B2: 0 | O2: ini | P2: fim | T2: ini | U2: fim
B3: 4 | C3: Transposição lateral | D3: =IF(iniTurma!$A$2=1,VLOOKUP("x",iniTurma!$B$4:$J$53,6,0),"") -> 40 | E3: =IF(iniTurma!$A$2=1,iniTurma!$G$1,"") -> 43.4 | F3: =IF(iniTurma!$A$2=1,SMALL(iniTurma!$G$4:$G53,1),"") -> 35 | G3: =IF(iniTurma!$A$2=1,LARGE(iniTurma!$G$4:$G53,1),"") -> 55 | I3: Transposição lateral | J3: =IF(fimTurma!$A$2=1,VLOOKUP("x",fimTurma!$B$4:$J$53,6,0),"") -> 50 | K3: =IF(fimTurma!$A$2=1,fimTurma!$G$1,"") -> 37.5 | L3: =IF(fimTurma!$A$2=1,SMALL(fimTurma!$G$4:$G53,1),"") -> 32 | M3: =IF(fimTurma!$A$2=1,LARGE(fimTurma!$G$4:$G53,1),"") -> 50 | N3: 1 | O3: =IF(iniTurma!$A$2=1,iniTurma!$G$2,"") -> 6.651315659 | P3: =IF(fimTurma!$A$2=1,fimTurma!$G$2,"") -> 7.29725976 | Q3: =IF(AND(E3<>"",K3<>""),K3-E3,"") -> -5.9 | R3: =IF(AND(K3<>"",E3<>""),IFERROR(_xlfn.T.TEST(iniTurma!G$4:G$53,fimTurma!G$4:G$53,1,1),_xlfn.T.TEST(iniTurma!G$4:G$53,fimTurma!G$4:G$53,1,2)),"") -> 0.0513291752 | S3: =IF(AND(E3<>"",K3<>""),IF(N3*Q3<=0,"Não",IF(R3>=0.05,"Não","Sim")),"") -> Não | T3: =IF(iniTurma!$A$2=1,COUNTIF(iniTurma!G4:G53,">0"),"") -> 5 | U3: =IF(fimTurma!$A$2=1,COUNTIF(fimTurma!G4:G53,">0"),"") -> 4
B4: 3 | C4: Saltos laterais | D4: =IF(iniTurma!$A$2=1,VLOOKUP("x",iniTurma!$B$4:$J$53,7,0),"") -> 45 | E4: =IF(iniTurma!$A$2=1,iniTurma!$H$1,"") -> 37 | F4: =IF(iniTurma!$A$2=1,SMALL(iniTurma!$H$4:$H53,1),"") -> 8 | G4: =IF(iniTurma!$A$2=1,LARGE(iniTurma!$H$4:$H53,1),"") -> 75 | I4: Saltos laterais | J4: =IF(fimTurma!$A$2=1,VLOOKUP("x",fimTurma!$B$4:$J$53,7,0),"") -> 74 | K4: =IF(fimTurma!$A$2=1,fimTurma!$H$1,"") -> 39.6 | L4: =IF(fimTurma!$A$2=1,SMALL(fimTurma!$H$4:$H54,1),"") -> 8 | M4: =IF(fimTurma!$A$2=1,LARGE(fimTurma!$H$4:$H54,1),"") -> 74 | N4: 1 | O4: =IF(iniTurma!$A$2=1,iniTurma!$H$2,"") -> 25.68073208 | P4: =IF(fimTurma!$A$2=1,fimTurma!$H$2,"") -> 22.22251111 | Q4: =IF(AND(E4<>"",K4<>""),K4-E4,"") -> 2.6 | R4: =IF(AND(K3<>"",E3<>""),IFERROR(_xlfn.T.TEST(iniTurma!H$4:H$53,fimTurma!H$4:H$53,1,1),_xlfn.T.TEST(iniTurma!H$4:H$53,fimTurma!H$4:H$53,1,2)),"") -> 0.3188090457 | S4: =IF(AND(E4<>"",K4<>""),IF(N4*Q4<=0,"Não",IF(R4>=0.05,"Não","Sim")),"") -> Não | T4: =IF(iniTurma!$A$2=1,COUNTIF(iniTurma!H4:H53,">0"),"") -> 4 | U4: =IF(fimTurma!$A$2=1,COUNTIF(fimTurma!H4:H53,">0"),"") -> 5
B5: 2 | C5: Equilíbrio à retaguarda | D5: =IF(iniTurma!$A$2=1,VLOOKUP("x",iniTurma!$B$4:$J$53,8,0),"") -> 22 | E5: =IF(iniTurma!$A$2=1,iniTurma!$I$1,"") -> 32.8 | F5: =IF(iniTurma!$A$2=1,SMALL(iniTurma!$I$4:$I53,1),"") -> 21 | G5: =IF(iniTurma!$A$2=1,LARGE(iniTurma!$I$4:$I53,1),"") -> 54 | I5: Equilíbrio à retaguarda | J5: =IF(fimTurma!$A$2=1,VLOOKUP("x",fimTurma!$B$4:$J$53,8,0),"") -> 70 | K5: =IF(fimTurma!$A$2=1,fimTurma!$I$1,"") -> 59.8 | L5: =IF(fimTurma!$A$2=1,SMALL(fimTurma!$I$4:$I55,1),"") -> 50 | M5: =IF(fimTurma!$A$2=1,LARGE(fimTurma!$I$4:$I55,1),"") -> 70 | N5: 1 | O5: =IF(iniTurma!$A$2=1,iniTurma!$I$2,"") -> 13.04453909 | P5: =IF(fimTurma!$A$2=1,fimTurma!$I$2,"") -> 7.082372484 | Q5: 27 | R5: =IF(AND(K3<>"",E3<>""),IFERROR(_xlfn.T.TEST(iniTurma!I$4:I$53,fimTurma!I$4:I$53,1,1),_xlfn.T.TEST(iniTurma!I$4:I$53,fimTurma!I$4:I$53,1,2)),"") -> 0.01457296246 | S5: Sim | T5: =IF(iniTurma!$A$2=1,COUNTIF(iniTurma!I4:I53,">0"),"") -> 5 | U5: =IF(fimTurma!$A$2=1,COUNTIF(fimTurma!I4:I53,">0"),"") -> 5
B6: 1 | C6: Saltos monopedais | D6: =IF(iniTurma!$A$2=1,VLOOKUP("x",iniTurma!$B$4:$J$53,9,0),"") -> 18 | E6: =IF(iniTurma!$A$2=1,iniTurma!$J$1,"") -> 36 | F6: =IF(iniTurma!$A$2=1,SMALL(iniTurma!$J$4:$J53,1),"") -> 17 | G6: =IF(iniTurma!$A$2=1,LARGE(iniTurma!$J$4:$J53,1),"") -> 63 | I6: Saltos monopedais | J6: =IF(fimTurma!$A$2=1,VLOOKUP("x",fimTurma!$B$4:$J$53,9,0),"") -> 58 | K6: =IF(fimTurma!$A$2=1,fimTurma!$J$1,"") -> 56 | L6: =IF(fimTurma!$A$2=1,SMALL(fimTurma!$J$4:$J56,1),"") -> 50 | M6: =IF(fimTurma!$A$2=1,LARGE(fimTurma!$J$4:$J56,1),"") -> 60 | N6: 1 | O6: =IF(iniTurma!$A$2=1,iniTurma!$J$2,"") -> 22.054478 | P6: =IF(fimTurma!$A$2=1,fimTurma!$J$2,"") -> 3.405877273 | Q6: 20 | R6: =IF(AND(K3<>"",E3<>""),IFERROR(_xlfn.T.TEST(iniTurma!J$4:J$53,fimTurma!J$4:J$53,1,1),_xlfn.T.TEST(iniTurma!J$4:J$53,fimTurma!J$4:J$53,1,2)),"") -> 0.07931146633 | S6: Não | T6: =IF(iniTurma!$A$2=1,COUNTIF(iniTurma!J4:J53,">0"),"") -> 5 | U6: =IF(fimTurma!$A$2=1,COUNTIF(fimTurma!I4:I53,">0"),"") -> 5

Sheet fimTurma
B1: Ano: | C1: =IF(iniTurma!C1="","",iniTurma!C1) -> 3 | F1: Média: | G1: =IF(COUNTA(G4:G53)>0,AVERAGE(G4:G53),"") -> 37.5 | H1: =IF(COUNTA(H4:H53)>0,AVERAGE(H4:H53),"") -> 39.6 | I1: 59.8 | J1: 56
A2: =COUNTIF(B4:B53,"x") -> 1 | B2: Turma: | C2: =IF(iniTurma!C2="","",iniTurma!C2) -> B | F2: Desvio-padrão: | G2: =IF(COUNTA(G4:G53)>0,_xlfn.STDEV.P(G4:G53),"") -> 7.29725976 | H2: =IF(COUNTA(H4:H53)>0,_xlfn.STDEV.P(H4:H53),"") -> 22.22251111 | I2: 7.082372484 | J2: 3.405877273
A3: ID Aluno | B3: =_xlfn.CONCAT("Ver: ",COUNTIF(B4:B53,"x")) -> Ver: 1 | C3: Nome | D3: Género | E3: Data Nascimento | F3: Data Avaliação | G3: TL_Ponto | H3: SL_Ponto | I3: EQ_Ponto | J3: SM_Ponto
A4: 1 | C4: =IF(iniTurma!C4=0,"",iniTurma!C4) -> Maria Adelaide | D4: =IF(iniTurma!D4=0,"",iniTurma!D4) -> Menina | E4: =IF(iniTurma!E4=0,"",iniTurma!E4) -> 2000-01-01 | F4: 2007-05-01 | G4: 35 | H4: 8 | I4: 59 | J4: 50
A5: =A4+1 -> 2 | C5: =IF(iniTurma!C5=0,"",iniTurma!C5) -> Manuel Silva | D5: =IF(iniTurma!D5=0,"",iniTurma!D5) -> Menino | E5: =IF(iniTurma!E5=0,"",iniTurma!E5) -> 2000-01-01 | F5: 2007-05-01 | G5: 32 | H5: 47 | I5: 50 | J5: 60
A6: =A5+1 -> 3 | C6: =IF(iniTurma!C6=0,"",iniTurma!C6) -> Pedro Silva | D6: =IF(iniTurma!D6=0,"",iniTurma!D6) -> Menino | E6: =IF(iniTurma!E6=0,"",iniTurma!E6) -> 2015-03-11 | F6: 2022-08-30 | G6: 33 | H6: 44 | I6: 65 | J6: 55
A7: 4 | C7: =IF(iniTurma!C7=0,"",iniTurma!C7) -> António Ferreira | D7: =IF(iniTurma!D7=0,"",iniTurma!D7) -> Menino | E7: =IF(iniTurma!E7=0,"",iniTurma!E7) -> 2014-08-23 | F7: 2021-05-12 | H7: 25 | I7: 55 | J7: 57
A8: 5 | B8: x | C8: =IF(iniTurma!C8=0,"",iniTurma!C8) -> Teresa Martinho | D8: =IF(iniTurma!D8=0,"",iniTurma!D8) -> Menina | E8: =IF(iniTurma!E8=0,"",iniTurma!E8) -> 2012-07-10 | F8: 2022-08-11 | G8: 50 | H8: 74 | I8: 70 | J8: 58
A9: 6 | C9: =IF(iniTurma!C9=0,"",iniTurma!C9) ->  | D9: =IF(iniTurma!D9=0,"",iniTurma!D9) ->  | E9: =IF(iniTurma!E9=0,"",iniTurma!E9) -> 
A10: 7 | C10: =IF(iniTurma!C10=0,"",iniTurma!C10) ->  | D10: =IF(iniTurma!D10=0,"",iniTurma!D10) ->  | E10: =IF(iniTurma!E10=0,"",iniTurma!E10) -> 
A11: 8 | C11: =IF(iniTurma!C11=0,"",iniTurma!C11) ->  | D11: =IF(iniTurma!D11=0,"",iniTurma!D11) ->  | E11: =IF(iniTurma!E11=0,"",iniTurma!E11) -> 
A12: 9 | C12: =IF(iniTurma!C12=0,"",iniTurma!C12) ->  | D12: =IF(iniTurma!D12=0,"",iniTurma!D12) ->  | E12: =IF(iniTurma!E12=0,"",iniTurma!E12) -> 
A13: 10 | C13: =IF(iniTurma!C13=0,"",iniTurma!C13) ->  | D13: =IF(iniTurma!D13=0,"",iniTurma!D13) ->  | E13: =IF(iniTurma!E13=0,"",iniTurma!E13) -> 
A14: 11 | C14: =IF(iniTurma!C14=0,"",iniTurma!C14) ->  | D14: =IF(iniTurma!D14=0,"",iniTurma!D14) ->  | E14: =IF(iniTurma!E14=0,"",iniTurma!E14) -> 
A15: 12 | C15: =IF(iniTurma!C15=0,"",iniTurma!C15) ->  | D15: =IF(iniTurma!D15=0,"",iniTurma!D15) ->  | E15: =IF(iniTurma!E15=0,"",iniTurma!E15) -> 
A16: 13 | C16: =IF(iniTurma!C16=0,"",iniTurma!C16) ->  | D16: =IF(iniTurma!D16=0,"",iniTurma!D16) ->  | E16: =IF(iniTurma!E16=0,"",iniTurma!E16) -> 
A17: 14 | C17: =IF(iniTurma!C17=0,"",iniTurma!C17) ->  | D17: =IF(iniTurma!D17=0,"",iniTurma!D17) ->  | E17: =IF(iniTurma!E17=0,"",iniTurma!E17) -> 
A18: 15 | C18: =IF(iniTurma!C18=0,"",iniTurma!C18) ->  | D18: =IF(iniTurma!D18=0,"",iniTurma!D18) ->  | E18: =IF(iniTurma!E18=0,"",iniTurma!E18) -> 
A19: 16 | C19: =IF(iniTurma!C19=0,"",iniTurma!C19) ->  | D19: =IF(iniTurma!D19=0,"",iniTurma!D19) ->  | E19: =IF(iniTurma!E19=0,"",iniTurma!E19) -> 
A20: 17 | C20: =IF(iniTurma!C20=0,"",iniTurma!C20) ->  | D20: =IF(iniTurma!D20=0,"",iniTurma!D20) ->  | E20: =IF(iniTurma!E20=0,"",iniTurma!E20) -> 
A21: 18 | C21: =IF(iniTurma!C21=0,"",iniTurma!C21) ->  | D21: =IF(iniTurma!D21=0,"",iniTurma!D21) ->  | E21: =IF(iniTurma!E21=0,"",iniTurma!E21) -> 
A22: 19 | C22: =IF(iniTurma!C22=0,"",iniTurma!C22) ->  | D22: =IF(iniTurma!D22=0,"",iniTurma!D22) ->  | E22: =IF(iniTurma!E22=0,"",iniTurma!E22) -> 
A23: 20 | C23: =IF(iniTurma!C23=0,"",iniTurma!C23) ->  | D23: =IF(iniTurma!D23=0,"",iniTurma!D23) ->  | E23: =IF(iniTurma!E23=0,"",iniTurma!E23) -> 
A24: 21 | C24: =IF(iniTurma!C24=0,"",iniTurma!C24) ->  | D24: =IF(iniTurma!D24=0,"",iniTurma!D24) ->  | E24: =IF(iniTurma!E24=0,"",iniTurma!E24) -> 
A25: 22 | C25: =IF(iniTurma!C25=0,"",iniTurma!C25) ->  | D25: =IF(iniTurma!D25=0,"",iniTurma!D25) ->  | E25: =IF(iniTurma!E25=0,"",iniTurma!E25) -> 
A26: 23 | C26: =IF(iniTurma!C26=0,"",iniTurma!C26) ->  | D26: =IF(iniTurma!D26=0,"",iniTurma!D26) ->  | E26: =IF(iniTurma!E26=0,"",iniTurma!E26) -> 
A27: 24 | C27: =IF(iniTurma!C27=0,"",iniTurma!C27) ->  | D27: =IF(iniTurma!D27=0,"",iniTurma!D27) ->  | E27: =IF(iniTurma!E27=0,"",iniTurma!E27) -> 
A28: 25 | C28: =IF(iniTurma!C28=0,"",iniTurma!C28) ->  | D28: =IF(iniTurma!D28=0,"",iniTurma!D28) ->  | E28: =IF(iniTurma!E28=0,"",iniTurma!E28) -> 
A29: 26 | C29: =IF(iniTurma!C29=0,"",iniTurma!C29) ->  | D29: =IF(iniTurma!D29=0,"",iniTurma!D29) ->  | E29: =IF(iniTurma!E29=0,"",iniTurma!E29) -> 
A30: 27 | C30: =IF(iniTurma!C30=0,"",iniTurma!C30) ->  | D30: =IF(iniTurma!D30=0,"",iniTurma!D30) ->  | E30: =IF(iniTurma!E30=0,"",iniTurma!E30) -> 
A31: 28 | C31: =IF(iniTurma!C31=0,"",iniTurma!C31) ->  | D31: =IF(iniTurma!D31=0,"",iniTurma!D31) ->  | E31: =IF(iniTurma!E31=0,"",iniTurma!E31) -> 
A32: 29 | C32: =IF(iniTurma!C32=0,"",iniTurma!C32) ->  | D32: =IF(iniTurma!D32=0,"",iniTurma!D32) ->  | E32: =IF(iniTurma!E32=0,"",iniTurma!E32) -> 
A33: 30 | C33: =IF(iniTurma!C33=0,"",iniTurma!C33) ->  | D33: =IF(iniTurma!D33=0,"",iniTurma!D33) ->  | E33: =IF(iniTurma!E33=0,"",iniTurma!E33) -> 
A34: 31 | C34: =IF(iniTurma!C34=0,"",iniTurma!C34) ->  | D34: =IF(iniTurma!D34=0,"",iniTurma!D34) ->  | E34: =IF(iniTurma!E34=0,"",iniTurma!E34) -> 
A35: 32 | C35: =IF(iniTurma!C35=0,"",iniTurma!C35) ->  | D35: =IF(iniTurma!D35=0,"",iniTurma!D35) ->  | E35: =IF(iniTurma!E35=0,"",iniTurma!E35) -> 
A36: 33 | C36: =IF(iniTurma!C36=0,"",iniTurma!C36) ->  | D36: =IF(iniTurma!D36=0,"",iniTurma!D36) ->  | E36: =IF(iniTurma!E36=0,"",iniTurma!E36) -> 
A37: 34 | C37: =IF(iniTurma!C37=0,"",iniTurma!C37) ->  | D37: =IF(iniTurma!D37=0,"",iniTurma!D37) ->  | E37: =IF(iniTurma!E37=0,"",iniTurma!E37) -> 
A38: 35 | C38: =IF(iniTurma!C38=0,"",iniTurma!C38) ->  | D38: =IF(iniTurma!D38=0,"",iniTurma!D38) ->  | E38: =IF(iniTurma!E38=0,"",iniTurma!E38) -> 
A39: 36 | C39: =IF(iniTurma!C39=0,"",iniTurma!C39) ->  | D39: =IF(iniTurma!D39=0,"",iniTurma!D39) ->  | E39: =IF(iniTurma!E39=0,"",iniTurma!E39) -> 
A40: 37 | C40: =IF(iniTurma!C40=0,"",iniTurma!C40) ->  | D40: =IF(iniTurma!D40=0,"",iniTurma!D40) ->  | E40: =IF(iniTurma!E40=0,"",iniTurma!E40) -> 
A41: 38 | C41: =IF(iniTurma!C41=0,"",iniTurma!C41) ->  | D41: =IF(iniTurma!D41=0,"",iniTurma!D41) ->  | E41: =IF(iniTurma!E41=0,"",iniTurma!E41) -> 
A42: 39 | C42: =IF(iniTurma!C42=0,"",iniTurma!C42) ->  | D42: =IF(iniTurma!D42=0,"",iniTurma!D42) ->  | E42: =IF(iniTurma!E42=0,"",iniTurma!E42) -> 
A43: 40 | C43: =IF(iniTurma!C43=0,"",iniTurma!C43) ->  | D43: =IF(iniTurma!D43=0,"",iniTurma!D43) ->  | E43: =IF(iniTurma!E43=0,"",iniTurma!E43) -> 
A44: 41 | C44: =IF(iniTurma!C44=0,"",iniTurma!C44) ->  | D44: =IF(iniTurma!D44=0,"",iniTurma!D44) ->  | E44: =IF(iniTurma!E44=0,"",iniTurma!E44) -> 
A45: 42 | C45: =IF(iniTurma!C45=0,"",iniTurma!C45) ->  | D45: =IF(iniTurma!D45=0,"",iniTurma!D45) ->  | E45: =IF(iniTurma!E45=0,"",iniTurma!E45) -> 
A46: 43 | C46: =IF(iniTurma!C46=0,"",iniTurma!C46) ->  | D46: =IF(iniTurma!D46=0,"",iniTurma!D46) ->  | E46: =IF(iniTurma!E46=0,"",iniTurma!E46) -> 
A47: 44 | C47: =IF(iniTurma!C47=0,"",iniTurma!C47) ->  | D47: =IF(iniTurma!D47=0,"",iniTurma!D47) ->  | E47: =IF(iniTurma!E47=0,"",iniTurma!E47) -> 
A48: 45 | C48: =IF(iniTurma!C48=0,"",iniTurma!C48) ->  | D48: =IF(iniTurma!D48=0,"",iniTurma!D48) ->  | E48: =IF(iniTurma!E48=0,"",iniTurma!E48) -> 
A49: 46 | C49: =IF(iniTurma!C49=0,"",iniTurma!C49) ->  | D49: =IF(iniTurma!D49=0,"",iniTurma!D49) ->  | E49: =IF(iniTurma!E49=0,"",iniTurma!E49) -> 
A50: 47 | C50: =IF(iniTurma!C50=0,"",iniTurma!C50) ->  | D50: =IF(iniTurma!D50=0,"",iniTurma!D50) ->  | E50: =IF(iniTurma!E50=0,"",iniTurma!E50) -> 
A51: 48 | C51: =IF(iniTurma!C51=0,"",iniTurma!C51) ->  | D51: =IF(iniTurma!D51=0,"",iniTurma!D51) ->  | E51: =IF(iniTurma!E51=0,"",iniTurma!E51) -> 
A52: 49 | C52: =IF(iniTurma!C52=0,"",iniTurma!C52) ->  | D52: =IF(iniTurma!D52=0,"",iniTurma!D52) ->  | E52: =IF(iniTurma!E52=0,"",iniTurma!E52) -> 
A53: 50 | C53: =IF(iniTurma!C53=0,"",iniTurma!C53) ->  | D53: =IF(iniTurma!D53=0,"",iniTurma!D53) ->  | E53: =IF(iniTurma!E53=0,"",iniTurma!E53) -> 

Sheet fimKTK (hidden)
B1: Ano: | C1: =IF(fimTurma!C1=0,"",fimTurma!C1) -> 3
B2: Turma: | C2: =IF(fimTurma!C2=0,"",fimTurma!C2) -> B
A3: =fimTurma!B3 -> Ver: 1 | B3: ID Aluno | C3: Nome | D3: Idade decimal | E3: Idade KTK | F3: Coluna Idade | G3: TL_Cof | H3: SL_Cof | I3: EQ_Cof | J3: SM_Cof | K3: Soma_KTK | L3: MQ_KTK | M3: Nível_KTK | N3: Percentil_KTK
A4: =IF(fimTurma!B4<>"",fimTurma!B4,"") ->  | B4: =fimTurma!A4 -> 1 | C4: =IF(fimTurma!C4=0,"",fimTurma!C4) -> Maria Adelaide | D4: =IF(OR(fimTurma!E4="",fimTurma!F4=""),"",(fimTurma!F4-fimTurma!E4)/365.25) -> 7.329226557 | E4: =IF(OR(fimTurma!E4="",fimTurma!F4=""),"",fimTurma!F4-fimTurma!E4) -> 2677 | F4: =IF(AND(E4>1000,E4<2192),2, IF(AND(E4>= 2192,E4<2557),3, IF(AND(E4>=2557,E4<2922),4, IF(AND(E4>=2922,E4<3287),5, IF(AND(E4>=3287,E4<3653),6, IF(AND(E4>=3653,E4<4018),7, IF(AND(E4>=4018,E4<4383),8, IF(AND(E4>=4383,E4<4748),9, IF(AND(E4>=4748,E4<5478),10,"") ) ) ) ) ) ) ) ) -> 4 | G4: =IF(OR(F4="",fimTurma!G4=""),"",VLOOKUP(fimTurma!G4,References!A$3:J$78,F4,0)) -> 98 | H4: =IF(OR(F4="",fimTurma!H4=""),"",IF(fimTurma!D4="Menino",VLOOKUP(fimTurma!H4,References!A$103:J$208,F4,0),VLOOKUP(fimTurma!H4,References!A$303:J$413,F4,0))) -> 50 | I4: =IF(OR(F4="",fimTurma!I4=""),"",VLOOKUP(fimTurma!I4,References!A$503:J$575,F4,0)) -> 120 | J4: =IF(OR(F4="",fimTurma!J4=""),"",IF(fimTurma!D4="Menino",VLOOKUP(fimTurma!J4,References!A$603:J$681,F4,0),VLOOKUP(fimTurma!J4,References!A$803:J$881,F4,0))) -> 116 | K4: =IF(OR(G4="",OR(H4="",OR(I4="",J4=""))),"",G4+H4+I4+J4) -> 384 | L4: =IF(K4="","",VLOOKUP(K4,References!A$903:B$1362,2,)) -> 95 | M4: =IF(L4="","",IF(AND(40<=L4,L4<=70),"Perturbação da coordenação", IF(AND(71<=L4,L4<=85),"Desempenho coordenativo insuficiente", IF(AND(86<=L4,L4<=115),"Desempenho coordenativo típico ou normal", IF(AND(116<=L4,L4<=130),"Bom desempenho coordenativo", IF(AND(131<=L4,L4<=145),"Elevado desempenho coordenativo", "") ) ) ))) -> Desempenho coordenativo típico ou normal | N4: =IF(L4="","",VLOOKUP(L4,References!A$1403:B$1903,2,0)) -> 36 | O4: =IF(L4="","",IF(AND(40<=L4,L4<=70),"Perturbação da", IF(AND(71<=L4,L4<=85),"Desempenho", IF(AND(86<=L4,L4<=115),"Desempenho", IF(AND(116<=L4,L4<=130),"Bom desempenho", IF(AND(131<=L4,L4<=145),"Elevado", "") ) ) ))) -> Desempenho | P4: =IF(L4="","",IF(AND(40<=L4,L4<=70),"coordenação", IF(AND(71<=L4,L4<=85),"insuficiente", IF(AND(86<=L4,L4<=115),"típico ou normal", IF(AND(116<=L4,L4<=130),"coordenativo", IF(AND(131<=L4,L4<=145),"desempenho", "") ) ) ))) -> típico ou normal
A5: =IF(fimTurma!B5<>"",fimTurma!B5,"") ->  | B5: =fimTurma!A5 -> 2 | C5: =IF(fimTurma!C5=0,"",fimTurma!C5) -> Manuel Silva | D5: =IF(OR(fimTurma!E5="",fimTurma!F5=""),"",(fimTurma!F5-fimTurma!E5)/365.25) -> 7.329226557 | E5: =IF(OR(fimTurma!E5="",fimTurma!F5=""),"",fimTurma!F5-fimTurma!E5) -> 2677 | F5: =IF(AND(E5>1000,E5<2192),2, IF(AND(E5>= 2192,E5<2557),3, IF(AND(E5>=2557,E5<2922),4, IF(AND(E5>=2922,E5<3287),5, IF(AND(E5>=3287,E5<3653),6, IF(AND(E5>=3653,E5<4018),7, IF(AND(E5>=4018,E5<4383),8, IF(AND(E5>=4383,E5<4748),9, IF(AND(E5>=4748,E5<5478),10,"") ) ) ) ) ) ) ) ) -> 4 | G5: =IF(OR(F5="",fimTurma!G5=""),"",VLOOKUP(fimTurma!G5,References!A$3:J$78,F5,0)) -> 91 | H5: =IF(OR(F5="",fimTurma!H5=""),"",IF(fimTurma!D5="Menino",VLOOKUP(fimTurma!H5,References!A$103:J$208,F5,0),VLOOKUP(fimTurma!H5,References!A$303:J$413,F5,0))) -> 116 | I5: =IF(OR(F5="",fimTurma!I5=""),"",VLOOKUP(fimTurma!I5,References!A$503:J$575,F5,0)) -> 110 | J5: =IF(OR(F5="",fimTurma!J5=""),"",IF(fimTurma!D5="Menino",VLOOKUP(fimTurma!J5,References!A$603:J$681,F5,0),VLOOKUP(fimTurma!J5,References!A$803:J$881,F5,0))) -> 128 | K5: =IF(OR(G5="",OR(H5="",OR(I5="",J5=""))),"",G5+H5+I5+J5) -> 445 | L5: =IF(K5="","",VLOOKUP(K5,References!A$903:B$1362,2,)) -> 114 | M5: =IF(L5="","",IF(AND(40<=L5,L5<=70),"Perturbação da coordenação", IF(AND(71<=L5,L5<=85),"Desempenho coordenativo insuficiente", IF(AND(86<=L5,L5<=115),"Desempenho coordenativo típico ou normal", IF(AND(116<=L5,L5<=130),"Bom desempenho coordenativo", IF(AND(131<=L5,L5<=145),"Elevado desempenho coordenativo", "") ) ) ))) -> Desempenho coordenativo típico ou normal | N5: =IF(L5="","",VLOOKUP(L5,References!A$1403:B$1903,2,0)) -> 82 | O5: =IF(L5="","",IF(AND(40<=L5,L5<=70),"Perturbação da", IF(AND(71<=L5,L5<=85),"Desempenho", IF(AND(86<=L5,L5<=115),"Desempenho", IF(AND(116<=L5,L5<=130),"Bom desempenho", IF(AND(131<=L5,L5<=145),"Elevado", "") ) ) ))) -> Desempenho | P5: =IF(L5="","",IF(AND(40<=L5,L5<=70),"coordenação", IF(AND(71<=L5,L5<=85),"insuficiente", IF(AND(86<=L5,L5<=115),"típico ou normal", IF(AND(116<=L5,L5<=130),"coordenativo", IF(AND(131<=L5,L5<=145),"desempenho", "") ) ) ))) -> típico ou normal
A6: =IF(fimTurma!B6<>"",fimTurma!B6,"") ->  | B6: =fimTurma!A6 -> 3 | C6: =IF(fimTurma!C6=0,"",fimTurma!C6) -> Pedro Silva | D6: =IF(OR(fimTurma!E6="",fimTurma!F6=""),"",(fimTurma!F6-fimTurma!E6)/365.25) -> 7.471594798 | E6: =IF(OR(fimTurma!E6="",fimTurma!F6=""),"",fimTurma!F6-fimTurma!E6) -> 2729 | F6: 4 | G6: =IF(OR(F6="",fimTurma!G6=""),"",VLOOKUP(fimTurma!G6,References!A$3:J$78,F6,0)) -> 93 | H6: =IF(OR(F6="",fimTurma!H6=""),"",IF(fimTurma!D6="Menino",VLOOKUP(fimTurma!H6,References!A$103:J$208,F6,0),VLOOKUP(fimTurma!H6,References!A$303:J$413,F6,0))) -> 111 | I6: =IF(OR(F6="",fimTurma!I6=""),"",VLOOKUP(fimTurma!I6,References!A$503:J$575,F6,0)) -> 126 | J6: =IF(OR(F6="",fimTurma!J6=""),"",IF(fimTurma!D6="Menino",VLOOKUP(fimTurma!J6,References!A$603:J$681,F6,0),VLOOKUP(fimTurma!J6,References!A$803:J$881,F6,0))) -> 123 | K6: 453 | L6: =IF(K6="","",VLOOKUP(K6,References!A$903:B$1362,2,)) -> 117 | M6: Bom desempenho coordenativo | N6: =IF(L6="","",VLOOKUP(L6,References!A$1403:B$1903,2,0)) -> 87 | O6: Bom desempenho | P6: coordenativo
A7: =IF(fimTurma!B7<>"",fimTurma!B7,"") ->  | B7: =fimTurma!A7 -> 4 | C7: =IF(fimTurma!C7=0,"",fimTurma!C7) -> António Ferreira | D7: =IF(OR(fimTurma!E7="",fimTurma!F7=""),"",(fimTurma!F7-fimTurma!E7)/365.25) -> 6.718685832 | E7: =IF(OR(fimTurma!E7="",fimTurma!F7=""),"",fimTurma!F7-fimTurma!E7) -> 2454 | F7: 3 | G7: =IF(OR(F7="",fimTurma!G7=""),"",VLOOKUP(fimTurma!G7,References!A$3:J$78,F7,0)) ->  | H7: =IF(OR(F7="",fimTurma!H7=""),"",IF(fimTurma!D7="Menino",VLOOKUP(fimTurma!H7,References!A$103:J$208,F7,0),VLOOKUP(fimTurma!H7,References!A$303:J$413,F7,0))) -> 89 | I7: =IF(OR(F7="",fimTurma!I7=""),"",VLOOKUP(fimTurma!I7,References!A$503:J$575,F7,0)) -> 124 | J7: =IF(OR(F7="",fimTurma!J7=""),"",IF(fimTurma!D7="Menino",VLOOKUP(fimTurma!J7,References!A$603:J$681,F7,0),VLOOKUP(fimTurma!J7,References!A$803:J$881,F7,0))) -> 135 | L7: =IF(K7="","",VLOOKUP(K7,References!A$903:B$1362,2,)) ->  | N7: =IF(L7="","",VLOOKUP(L7,References!A$1403:B$1903,2,0)) -> 
A8: =IF(fimTurma!B8<>"",fimTurma!B8,"") -> x | B8: =fimTurma!A8 -> 5 | C8: =IF(fimTurma!C8=0,"",fimTurma!C8) -> Teresa Martinho | D8: =IF(OR(fimTurma!E8="",fimTurma!F8=""),"",(fimTurma!F8-fimTurma!E8)/365.25) -> 10.0862423 | E8: =IF(OR(fimTurma!E8="",fimTurma!F8=""),"",fimTurma!F8-fimTurma!E8) -> 3684 | F8: 7 | G8: =IF(OR(F8="",fimTurma!G8=""),"",VLOOKUP(fimTurma!G8,References!A$3:J$78,F8,0)) -> 107 | H8: =IF(OR(F8="",fimTurma!H8=""),"",IF(fimTurma!D8="Menino",VLOOKUP(fimTurma!H8,References!A$103:J$208,F8,0),VLOOKUP(fimTurma!H8,References!A$303:J$413,F8,0))) -> 110 | I8: =IF(OR(F8="",fimTurma!I8=""),"",VLOOKUP(fimTurma!I8,References!A$503:J$575,F8,0)) -> 118 | J8: =IF(OR(F8="",fimTurma!J8=""),"",IF(fimTurma!D8="Menino",VLOOKUP(fimTurma!J8,References!A$603:J$681,F8,0),VLOOKUP(fimTurma!J8,References!A$803:J$881,F8,0))) -> 95 | K8: 430 | L8: =IF(K8="","",VLOOKUP(K8,References!A$903:B$1362,2,)) -> 110 | M8: Desempenho coordenativo típico ou normal | N8: =IF(L8="","",VLOOKUP(L8,References!A$1403:B$1903,2,0)) -> 75 | O8: Desempenho | P8: típico ou normal
A9: =IF(fimTurma!B9<>"",fimTurma!B9,"") ->  | B9: =fimTurma!A9 -> 6 | C9: =IF(fimTurma!C9=0,"",fimTurma!C9) ->  | D9: =IF(OR(fimTurma!E9="",fimTurma!F9=""),"",(fimTurma!F9-fimTurma!E9)/365.25) ->  | E9: =IF(OR(fimTurma!E9="",fimTurma!F9=""),"",fimTurma!F9-fimTurma!E9) ->  | G9: =IF(OR(F9="",fimTurma!G9=""),"",VLOOKUP(fimTurma!G9,References!A$3:J$78,F9,0)) ->  | H9: =IF(OR(F9="",fimTurma!H9=""),"",IF(fimTurma!D9="Menino",VLOOKUP(fimTurma!H9,References!A$103:J$208,F9,0),VLOOKUP(fimTurma!H9,References!A$303:J$413,F9,0))) ->  | I9: =IF(OR(F9="",fimTurma!I9=""),"",VLOOKUP(fimTurma!I9,References!A$503:J$575,F9,0)) ->  | J9: =IF(OR(F9="",fimTurma!J9=""),"",IF(fimTurma!D9="Menino",VLOOKUP(fimTurma!J9,References!A$603:J$681,F9,0),VLOOKUP(fimTurma!J9,References!A$803:J$881,F9,0))) ->  | L9: =IF(K9="","",VLOOKUP(K9,References!A$903:B$1362,2,)) ->  | N9: =IF(L9="","",VLOOKUP(L9,References!A$1403:B$1903,2,0)) -> 
A10: =IF(fimTurma!B10<>"",fimTurma!B10,"") ->  | B10: =fimTurma!A10 -> 7 | C10: =IF(fimTurma!C10=0,"",fimTurma!C10) ->  | D10: =IF(OR(fimTurma!E10="",fimTurma!F10=""),"",(fimTurma!F10-fimTurma!E10)/365.25) ->  | E10: =IF(OR(fimTurma!E10="",fimTurma!F10=""),"",fimTurma!F10-fimTurma!E10) ->  | G10: =IF(OR(F10="",fimTurma!G10=""),"",VLOOKUP(fimTurma!G10,References!A$3:J$78,F10,0)) ->  | H10: =IF(OR(F10="",fimTurma!H10=""),"",IF(fimTurma!D10="Menino",VLOOKUP(fimTurma!H10,References!A$103:J$208,F10,0),VLOOKUP(fimTurma!H10,References!A$303:J$413,F10,0))) ->  | I10: =IF(OR(F10="",fimTurma!I10=""),"",VLOOKUP(fimTurma!I10,References!A$503:J$575,F10,0)) ->  | J10: =IF(OR(F10="",fimTurma!J10=""),"",IF(fimTurma!D10="Menino",VLOOKUP(fimTurma!J10,References!A$603:J$681,F10,0),VLOOKUP(fimTurma!J10,References!A$803:J$881,F10,0))) ->  | L10: =IF(K10="","",VLOOKUP(K10,References!A$903:B$1362,2,)) ->  | N10: =IF(L10="","",VLOOKUP(L10,References!A$1403:B$1903,2,0)) -> 
A11: =IF(fimTurma!B11<>"",fimTurma!B11,"") ->  | B11: =fimTurma!A11 -> 8 | C11: =IF(fimTurma!C11=0,"",fimTurma!C11) ->  | D11: =IF(OR(fimTurma!E11="",fimTurma!F11=""),"",(fimTurma!F11-fimTurma!E11)/365.25) ->  | E11: =IF(OR(fimTurma!E11="",fimTurma!F11=""),"",fimTurma!F11-fimTurma!E11) ->  | G11: =IF(OR(F11="",fimTurma!G11=""),"",VLOOKUP(fimTurma!G11,References!A$3:J$78,F11,0)) ->  | H11: =IF(OR(F11="",fimTurma!H11=""),"",IF(fimTurma!D11="Menino",VLOOKUP(fimTurma!H11,References!A$103:J$208,F11,0),VLOOKUP(fimTurma!H11,References!A$303:J$413,F11,0))) ->  | I11: =IF(OR(F11="",fimTurma!I11=""),"",VLOOKUP(fimTurma!I11,References!A$503:J$575,F11,0)) ->  | J11: =IF(OR(F11="",fimTurma!J11=""),"",IF(fimTurma!D11="Menino",VLOOKUP(fimTurma!J11,References!A$603:J$681,F11,0),VLOOKUP(fimTurma!J11,References!A$803:J$881,F11,0))) ->  | L11: =IF(K11="","",VLOOKUP(K11,References!A$903:B$1362,2,)) ->  | N11: =IF(L11="","",VLOOKUP(L11,References!A$1403:B$1903,2,0)) -> 
A12: =IF(fimTurma!B12<>"",fimTurma!B12,"") ->  | B12: =fimTurma!A12 -> 9 | C12: =IF(fimTurma!C12=0,"",fimTurma!C12) ->  | D12: =IF(OR(fimTurma!E12="",fimTurma!F12=""),"",(fimTurma!F12-fimTurma!E12)/365.25) ->  | E12: =IF(OR(fimTurma!E12="",fimTurma!F12=""),"",fimTurma!F12-fimTurma!E12) ->  | G12: =IF(OR(F12="",fimTurma!G12=""),"",VLOOKUP(fimTurma!G12,References!A$3:J$78,F12,0)) ->  | H12: =IF(OR(F12="",fimTurma!H12=""),"",IF(fimTurma!D12="Menino",VLOOKUP(fimTurma!H12,References!A$103:J$208,F12,0),VLOOKUP(fimTurma!H12,References!A$303:J$413,F12,0))) ->  | I12: =IF(OR(F12="",fimTurma!I12=""),"",VLOOKUP(fimTurma!I12,References!A$503:J$575,F12,0)) ->  | J12: =IF(OR(F12="",fimTurma!J12=""),"",IF(fimTurma!D12="Menino",VLOOKUP(fimTurma!J12,References!A$603:J$681,F12,0),VLOOKUP(fimTurma!J12,References!A$803:J$881,F12,0))) ->  | L12: =IF(K12="","",VLOOKUP(K12,References!A$903:B$1362,2,)) ->  | N12: =IF(L12="","",VLOOKUP(L12,References!A$1403:B$1903,2,0)) -> 
A13: =IF(fimTurma!B13<>"",fimTurma!B13,"") ->  | B13: =fimTurma!A13 -> 10 | C13: =IF(fimTurma!C13=0,"",fimTurma!C13) ->  | D13: =IF(OR(fimTurma!E13="",fimTurma!F13=""),"",(fimTurma!F13-fimTurma!E13)/365.25) ->  | E13: =IF(OR(fimTurma!E13="",fimTurma!F13=""),"",fimTurma!F13-fimTurma!E13) ->  | G13: =IF(OR(F13="",fimTurma!G13=""),"",VLOOKUP(fimTurma!G13,References!A$3:J$78,F13,0)) ->  | H13: =IF(OR(F13="",fimTurma!H13=""),"",IF(fimTurma!D13="Menino",VLOOKUP(fimTurma!H13,References!A$103:J$208,F13,0),VLOOKUP(fimTurma!H13,References!A$303:J$413,F13,0))) ->  | I13: =IF(OR(F13="",fimTurma!I13=""),"",VLOOKUP(fimTurma!I13,References!A$503:J$575,F13,0)) ->  | J13: =IF(OR(F13="",fimTurma!J13=""),"",IF(fimTurma!D13="Menino",VLOOKUP(fimTurma!J13,References!A$603:J$681,F13,0),VLOOKUP(fimTurma!J13,References!A$803:J$881,F13,0))) ->  | L13: =IF(K13="","",VLOOKUP(K13,References!A$903:B$1362,2,)) ->  | N13: =IF(L13="","",VLOOKUP(L13,References!A$1403:B$1903,2,0)) -> 
A14: =IF(fimTurma!B14<>"",fimTurma!B14,"") ->  | B14: =fimTurma!A14 -> 11 | C14: =IF(fimTurma!C14=0,"",fimTurma!C14) ->  | D14: =IF(OR(fimTurma!E14="",fimTurma!F14=""),"",(fimTurma!F14-fimTurma!E14)/365.25) ->  | E14: =IF(OR(fimTurma!E14="",fimTurma!F14=""),"",fimTurma!F14-fimTurma!E14) ->  | G14: =IF(OR(F14="",fimTurma!G14=""),"",VLOOKUP(fimTurma!G14,References!A$3:J$78,F14,0)) ->  | H14: =IF(OR(F14="",fimTurma!H14=""),"",IF(fimTurma!D14="Menino",VLOOKUP(fimTurma!H14,References!A$103:J$208,F14,0),VLOOKUP(fimTurma!H14,References!A$303:J$413,F14,0))) ->  | I14: =IF(OR(F14="",fimTurma!I14=""),"",VLOOKUP(fimTurma!I14,References!A$503:J$575,F14,0)) ->  | J14: =IF(OR(F14="",fimTurma!J14=""),"",IF(fimTurma!D14="Menino",VLOOKUP(fimTurma!J14,References!A$603:J$681,F14,0),VLOOKUP(fimTurma!J14,References!A$803:J$881,F14,0))) ->  | L14: =IF(K14="","",VLOOKUP(K14,References!A$903:B$1362,2,)) ->  | N14: =IF(L14="","",VLOOKUP(L14,References!A$1403:B$1903,2,0)) -> 
A15: =IF(fimTurma!B15<>"",fimTurma!B15,"") ->  | B15: =fimTurma!A15 -> 12 | C15: =IF(fimTurma!C15=0,"",fimTurma!C15) ->  | D15: =IF(OR(fimTurma!E15="",fimTurma!F15=""),"",(fimTurma!F15-fimTurma!E15)/365.25) ->  | E15: =IF(OR(fimTurma!E15="",fimTurma!F15=""),"",fimTurma!F15-fimTurma!E15) ->  | G15: =IF(OR(F15="",fimTurma!G15=""),"",VLOOKUP(fimTurma!G15,References!A$3:J$78,F15,0)) ->  | H15: =IF(OR(F15="",fimTurma!H15=""),"",IF(fimTurma!D15="Menino",VLOOKUP(fimTurma!H15,References!A$103:J$208,F15,0),VLOOKUP(fimTurma!H15,References!A$303:J$413,F15,0))) ->  | I15: =IF(OR(F15="",fimTurma!I15=""),"",VLOOKUP(fimTurma!I15,References!A$503:J$575,F15,0)) ->  | J15: =IF(OR(F15="",fimTurma!J15=""),"",IF(fimTurma!D15="Menino",VLOOKUP(fimTurma!J15,References!A$603:J$681,F15,0),VLOOKUP(fimTurma!J15,References!A$803:J$881,F15,0))) ->  | L15: =IF(K15="","",VLOOKUP(K15,References!A$903:B$1362,2,)) ->  | N15: =IF(L15="","",VLOOKUP(L15,References!A$1403:B$1903,2,0)) -> 
A16: =IF(fimTurma!B16<>"",fimTurma!B16,"") ->  | B16: =fimTurma!A16 -> 13 | C16: =IF(fimTurma!C16=0,"",fimTurma!C16) ->  | D16: =IF(OR(fimTurma!E16="",fimTurma!F16=""),"",(fimTurma!F16-fimTurma!E16)/365.25) ->  | E16: =IF(OR(fimTurma!E16="",fimTurma!F16=""),"",fimTurma!F16-fimTurma!E16) ->  | G16: =IF(OR(F16="",fimTurma!G16=""),"",VLOOKUP(fimTurma!G16,References!A$3:J$78,F16,0)) ->  | H16: =IF(OR(F16="",fimTurma!H16=""),"",IF(fimTurma!D16="Menino",VLOOKUP(fimTurma!H16,References!A$103:J$208,F16,0),VLOOKUP(fimTurma!H16,References!A$303:J$413,F16,0))) ->  | I16: =IF(OR(F16="",fimTurma!I16=""),"",VLOOKUP(fimTurma!I16,References!A$503:J$575,F16,0)) ->  | J16: =IF(OR(F16="",fimTurma!J16=""),"",IF(fimTurma!D16="Menino",VLOOKUP(fimTurma!J16,References!A$603:J$681,F16,0),VLOOKUP(fimTurma!J16,References!A$803:J$881,F16,0))) ->  | L16: =IF(K16="","",VLOOKUP(K16,References!A$903:B$1362,2,)) ->  | N16: =IF(L16="","",VLOOKUP(L16,References!A$1403:B$1903,2,0)) -> 
A17: =IF(fimTurma!B17<>"",fimTurma!B17,"") ->  | B17: =fimTurma!A17 -> 14 | C17: =IF(fimTurma!C17=0,"",fimTurma!C17) ->  | D17: =IF(OR(fimTurma!E17="",fimTurma!F17=""),"",(fimTurma!F17-fimTurma!E17)/365.25) ->  | E17: =IF(OR(fimTurma!E17="",fimTurma!F17=""),"",fimTurma!F17-fimTurma!E17) ->  | G17: =IF(OR(F17="",fimTurma!G17=""),"",VLOOKUP(fimTurma!G17,References!A$3:J$78,F17,0)) ->  | H17: =IF(OR(F17="",fimTurma!H17=""),"",IF(fimTurma!D17="Menino",VLOOKUP(fimTurma!H17,References!A$103:J$208,F17,0),VLOOKUP(fimTurma!H17,References!A$303:J$413,F17,0))) ->  | I17: =IF(OR(F17="",fimTurma!I17=""),"",VLOOKUP(fimTurma!I17,References!A$503:J$575,F17,0)) ->  | J17: =IF(OR(F17="",fimTurma!J17=""),"",IF(fimTurma!D17="Menino",VLOOKUP(fimTurma!J17,References!A$603:J$681,F17,0),VLOOKUP(fimTurma!J17,References!A$803:J$881,F17,0))) ->  | L17: =IF(K17="","",VLOOKUP(K17,References!A$903:B$1362,2,)) ->  | N17: =IF(L17="","",VLOOKUP(L17,References!A$1403:B$1903,2,0)) -> 
A18: =IF(fimTurma!B18<>"",fimTurma!B18,"") ->  | B18: =fimTurma!A18 -> 15 | C18: =IF(fimTurma!C18=0,"",fimTurma!C18) ->  | D18: =IF(OR(fimTurma!E18="",fimTurma!F18=""),"",(fimTurma!F18-fimTurma!E18)/365.25) ->  | E18: =IF(OR(fimTurma!E18="",fimTurma!F18=""),"",fimTurma!F18-fimTurma!E18) ->  | G18: =IF(OR(F18="",fimTurma!G18=""),"",VLOOKUP(fimTurma!G18,References!A$3:J$78,F18,0)) ->  | H18: =IF(OR(F18="",fimTurma!H18=""),"",IF(fimTurma!D18="Menino",VLOOKUP(fimTurma!H18,References!A$103:J$208,F18,0),VLOOKUP(fimTurma!H18,References!A$303:J$413,F18,0))) ->  | I18: =IF(OR(F18="",fimTurma!I18=""),"",VLOOKUP(fimTurma!I18,References!A$503:J$575,F18,0)) ->  | J18: =IF(OR(F18="",fimTurma!J18=""),"",IF(fimTurma!D18="Menino",VLOOKUP(fimTurma!J18,References!A$603:J$681,F18,0),VLOOKUP(fimTurma!J18,References!A$803:J$881,F18,0))) ->  | L18: =IF(K18="","",VLOOKUP(K18,References!A$903:B$1362,2,)) ->  | N18: =IF(L18="","",VLOOKUP(L18,References!A$1403:B$1903,2,0)) -> 
A19: =IF(fimTurma!B19<>"",fimTurma!B19,"") ->  | B19: =fimTurma!A19 -> 16 | C19: =IF(fimTurma!C19=0,"",fimTurma!C19) ->  | D19: =IF(OR(fimTurma!E19="",fimTurma!F19=""),"",(fimTurma!F19-fimTurma!E19)/365.25) ->  | E19: =IF(OR(fimTurma!E19="",fimTurma!F19=""),"",fimTurma!F19-fimTurma!E19) ->  | G19: =IF(OR(F19="",fimTurma!G19=""),"",VLOOKUP(fimTurma!G19,References!A$3:J$78,F19,0)) ->  | H19: =IF(OR(F19="",fimTurma!H19=""),"",IF(fimTurma!D19="Menino",VLOOKUP(fimTurma!H19,References!A$103:J$208,F19,0),VLOOKUP(fimTurma!H19,References!A$303:J$413,F19,0))) ->  | I19: =IF(OR(F19="",fimTurma!I19=""),"",VLOOKUP(fimTurma!I19,References!A$503:J$575,F19,0)) ->  | J19: =IF(OR(F19="",fimTurma!J19=""),"",IF(fimTurma!D19="Menino",VLOOKUP(fimTurma!J19,References!A$603:J$681,F19,0),VLOOKUP(fimTurma!J19,References!A$803:J$881,F19,0))) ->  | L19: =IF(K19="","",VLOOKUP(K19,References!A$903:B$1362,2,)) ->  | N19: =IF(L19="","",VLOOKUP(L19,References!A$1403:B$1903,2,0)) -> 
A20: =IF(fimTurma!B20<>"",fimTurma!B20,"") ->  | B20: =fimTurma!A20 -> 17 | C20: =IF(fimTurma!C20=0,"",fimTurma!C20) ->  | D20: =IF(OR(fimTurma!E20="",fimTurma!F20=""),"",(fimTurma!F20-fimTurma!E20)/365.25) ->  | E20: =IF(OR(fimTurma!E20="",fimTurma!F20=""),"",fimTurma!F20-fimTurma!E20) ->  | G20: =IF(OR(F20="",fimTurma!G20=""),"",VLOOKUP(fimTurma!G20,References!A$3:J$78,F20,0)) ->  | H20: =IF(OR(F20="",fimTurma!H20=""),"",IF(fimTurma!D20="Menino",VLOOKUP(fimTurma!H20,References!A$103:J$208,F20,0),VLOOKUP(fimTurma!H20,References!A$303:J$413,F20,0))) ->  | I20: =IF(OR(F20="",fimTurma!I20=""),"",VLOOKUP(fimTurma!I20,References!A$503:J$575,F20,0)) ->  | J20: =IF(OR(F20="",fimTurma!J20=""),"",IF(fimTurma!D20="Menino",VLOOKUP(fimTurma!J20,References!A$603:J$681,F20,0),VLOOKUP(fimTurma!J20,References!A$803:J$881,F20,0))) ->  | L20: =IF(K20="","",VLOOKUP(K20,References!A$903:B$1362,2,)) ->  | N20: =IF(L20="","",VLOOKUP(L20,References!A$1403:B$1903,2,0)) -> 
A21: =IF(fimTurma!B21<>"",fimTurma!B21,"") ->  | B21: =fimTurma!A21 -> 18 | C21: =IF(fimTurma!C21=0,"",fimTurma!C21) ->  | D21: =IF(OR(fimTurma!E21="",fimTurma!F21=""),"",(fimTurma!F21-fimTurma!E21)/365.25) ->  | E21: =IF(OR(fimTurma!E21="",fimTurma!F21=""),"",fimTurma!F21-fimTurma!E21) ->  | G21: =IF(OR(F21="",fimTurma!G21=""),"",VLOOKUP(fimTurma!G21,References!A$3:J$78,F21,0)) ->  | H21: =IF(OR(F21="",fimTurma!H21=""),"",IF(fimTurma!D21="Menino",VLOOKUP(fimTurma!H21,References!A$103:J$208,F21,0),VLOOKUP(fimTurma!H21,References!A$303:J$413,F21,0))) ->  | I21: =IF(OR(F21="",fimTurma!I21=""),"",VLOOKUP(fimTurma!I21,References!A$503:J$575,F21,0)) ->  | J21: =IF(OR(F21="",fimTurma!J21=""),"",IF(fimTurma!D21="Menino",VLOOKUP(fimTurma!J21,References!A$603:J$681,F21,0),VLOOKUP(fimTurma!J21,References!A$803:J$881,F21,0))) ->  | L21: =IF(K21="","",VLOOKUP(K21,References!A$903:B$1362,2,)) ->  | N21: =IF(L21="","",VLOOKUP(L21,References!A$1403:B$1903,2,0)) -> 
A22: =IF(fimTurma!B22<>"",fimTurma!B22,"") ->  | B22: =fimTurma!A22 -> 19 | C22: =IF(fimTurma!C22=0,"",fimTurma!C22) ->  | D22: =IF(OR(fimTurma!E22="",fimTurma!F22=""),"",(fimTurma!F22-fimTurma!E22)/365.25) ->  | E22: =IF(OR(fimTurma!E22="",fimTurma!F22=""),"",fimTurma!F22-fimTurma!E22) ->  | G22: =IF(OR(F22="",fimTurma!G22=""),"",VLOOKUP(fimTurma!G22,References!A$3:J$78,F22,0)) ->  | H22: =IF(OR(F22="",fimTurma!H22=""),"",IF(fimTurma!D22="Menino",VLOOKUP(fimTurma!H22,References!A$103:J$208,F22,0),VLOOKUP(fimTurma!H22,References!A$303:J$413,F22,0))) ->  | I22: =IF(OR(F22="",fimTurma!I22=""),"",VLOOKUP(fimTurma!I22,References!A$503:J$575,F22,0)) ->  | J22: =IF(OR(F22="",fimTurma!J22=""),"",IF(fimTurma!D22="Menino",VLOOKUP(fimTurma!J22,References!A$603:J$681,F22,0),VLOOKUP(fimTurma!J22,References!A$803:J$881,F22,0))) ->  | L22: =IF(K22="","",VLOOKUP(K22,References!A$903:B$1362,2,)) ->  | N22: =IF(L22="","",VLOOKUP(L22,References!A$1403:B$1903,2,0)) -> 
A23: =IF(fimTurma!B23<>"",fimTurma!B23,"") ->  | B23: =fimTurma!A23 -> 20 | C23: =IF(fimTurma!C23=0,"",fimTurma!C23) ->  | D23: =IF(OR(fimTurma!E23="",fimTurma!F23=""),"",(fimTurma!F23-fimTurma!E23)/365.25) ->  | E23: =IF(OR(fimTurma!E23="",fimTurma!F23=""),"",fimTurma!F23-fimTurma!E23) ->  | G23: =IF(OR(F23="",fimTurma!G23=""),"",VLOOKUP(fimTurma!G23,References!A$3:J$78,F23,0)) ->  | H23: =IF(OR(F23="",fimTurma!H23=""),"",IF(fimTurma!D23="Menino",VLOOKUP(fimTurma!H23,References!A$103:J$208,F23,0),VLOOKUP(fimTurma!H23,References!A$303:J$413,F23,0))) ->  | I23: =IF(OR(F23="",fimTurma!I23=""),"",VLOOKUP(fimTurma!I23,References!A$503:J$575,F23,0)) ->  | J23: =IF(OR(F23="",fimTurma!J23=""),"",IF(fimTurma!D23="Menino",VLOOKUP(fimTurma!J23,References!A$603:J$681,F23,0),VLOOKUP(fimTurma!J23,References!A$803:J$881,F23,0))) ->  | L23: =IF(K23="","",VLOOKUP(K23,References!A$903:B$1362,2,)) ->  | N23: =IF(L23="","",VLOOKUP(L23,References!A$1403:B$1903,2,0)) -> 
A24: =IF(fimTurma!B24<>"",fimTurma!B24,"") ->  | B24: =fimTurma!A24 -> 21 | C24: =IF(fimTurma!C24=0,"",fimTurma!C24) ->  | D24: =IF(OR(fimTurma!E24="",fimTurma!F24=""),"",(fimTurma!F24-fimTurma!E24)/365.25) ->  | E24: =IF(OR(fimTurma!E24="",fimTurma!F24=""),"",fimTurma!F24-fimTurma!E24) ->  | G24: =IF(OR(F24="",fimTurma!G24=""),"",VLOOKUP(fimTurma!G24,References!A$3:J$78,F24,0)) ->  | H24: =IF(OR(F24="",fimTurma!H24=""),"",IF(fimTurma!D24="Menino",VLOOKUP(fimTurma!H24,References!A$103:J$208,F24,0),VLOOKUP(fimTurma!H24,References!A$303:J$413,F24,0))) ->  | I24: =IF(OR(F24="",fimTurma!I24=""),"",VLOOKUP(fimTurma!I24,References!A$503:J$575,F24,0)) ->  | J24: =IF(OR(F24="",fimTurma!J24=""),"",IF(fimTurma!D24="Menino",VLOOKUP(fimTurma!J24,References!A$603:J$681,F24,0),VLOOKUP(fimTurma!J24,References!A$803:J$881,F24,0))) ->  | L24: =IF(K24="","",VLOOKUP(K24,References!A$903:B$1362,2,)) ->  | N24: =IF(L24="","",VLOOKUP(L24,References!A$1403:B$1903,2,0)) -> 
A25: =IF(fimTurma!B25<>"",fimTurma!B25,"") ->  | B25: =fimTurma!A25 -> 22 | C25: =IF(fimTurma!C25=0,"",fimTurma!C25) ->  | D25: =IF(OR(fimTurma!E25="",fimTurma!F25=""),"",(fimTurma!F25-fimTurma!E25)/365.25) ->  | E25: =IF(OR(fimTurma!E25="",fimTurma!F25=""),"",fimTurma!F25-fimTurma!E25) ->  | G25: =IF(OR(F25="",fimTurma!G25=""),"",VLOOKUP(fimTurma!G25,References!A$3:J$78,F25,0)) ->  | H25: =IF(OR(F25="",fimTurma!H25=""),"",IF(fimTurma!D25="Menino",VLOOKUP(fimTurma!H25,References!A$103:J$208,F25,0),VLOOKUP(fimTurma!H25,References!A$303:J$413,F25,0))) ->  | I25: =IF(OR(F25="",fimTurma!I25=""),"",VLOOKUP(fimTurma!I25,References!A$503:J$575,F25,0)) ->  | J25: =IF(OR(F25="",fimTurma!J25=""),"",IF(fimTurma!D25="Menino",VLOOKUP(fimTurma!J25,References!A$603:J$681,F25,0),VLOOKUP(fimTurma!J25,References!A$803:J$881,F25,0))) ->  | L25: =IF(K25="","",VLOOKUP(K25,References!A$903:B$1362,2,)) ->  | N25: =IF(L25="","",VLOOKUP(L25,References!A$1403:B$1903,2,0)) -> 
A26: =IF(fimTurma!B26<>"",fimTurma!B26,"") ->  | B26: =fimTurma!A26 -> 23 | C26: =IF(fimTurma!C26=0,"",fimTurma!C26) ->  | D26: =IF(OR(fimTurma!E26="",fimTurma!F26=""),"",(fimTurma!F26-fimTurma!E26)/365.25) ->  | E26: =IF(OR(fimTurma!E26="",fimTurma!F26=""),"",fimTurma!F26-fimTurma!E26) ->  | G26: =IF(OR(F26="",fimTurma!G26=""),"",VLOOKUP(fimTurma!G26,References!A$3:J$78,F26,0)) ->  | H26: =IF(OR(F26="",fimTurma!H26=""),"",IF(fimTurma!D26="Menino",VLOOKUP(fimTurma!H26,References!A$103:J$208,F26,0),VLOOKUP(fimTurma!H26,References!A$303:J$413,F26,0))) ->  | I26: =IF(OR(F26="",fimTurma!I26=""),"",VLOOKUP(fimTurma!I26,References!A$503:J$575,F26,0)) ->  | J26: =IF(OR(F26="",fimTurma!J26=""),"",IF(fimTurma!D26="Menino",VLOOKUP(fimTurma!J26,References!A$603:J$681,F26,0),VLOOKUP(fimTurma!J26,References!A$803:J$881,F26,0))) ->  | L26: =IF(K26="","",VLOOKUP(K26,References!A$903:B$1362,2,)) ->  | N26: =IF(L26="","",VLOOKUP(L26,References!A$1403:B$1903,2,0)) -> 
A27: =IF(fimTurma!B27<>"",fimTurma!B27,"") ->  | B27: =fimTurma!A27 -> 24 | C27: =IF(fimTurma!C27=0,"",fimTurma!C27) ->  | D27: =IF(OR(fimTurma!E27="",fimTurma!F27=""),"",(fimTurma!F27-fimTurma!E27)/365.25) ->  | E27: =IF(OR(fimTurma!E27="",fimTurma!F27=""),"",fimTurma!F27-fimTurma!E27) ->  | G27: =IF(OR(F27="",fimTurma!G27=""),"",VLOOKUP(fimTurma!G27,References!A$3:J$78,F27,0)) ->  | H27: =IF(OR(F27="",fimTurma!H27=""),"",IF(fimTurma!D27="Menino",VLOOKUP(fimTurma!H27,References!A$103:J$208,F27,0),VLOOKUP(fimTurma!H27,References!A$303:J$413,F27,0))) ->  | I27: =IF(OR(F27="",fimTurma!I27=""),"",VLOOKUP(fimTurma!I27,References!A$503:J$575,F27,0)) ->  | J27: =IF(OR(F27="",fimTurma!J27=""),"",IF(fimTurma!D27="Menino",VLOOKUP(fimTurma!J27,References!A$603:J$681,F27,0),VLOOKUP(fimTurma!J27,References!A$803:J$881,F27,0))) ->  | L27: =IF(K27="","",VLOOKUP(K27,References!A$903:B$1362,2,)) ->  | N27: =IF(L27="","",VLOOKUP(L27,References!A$1403:B$1903,2,0)) -> 
A28: =IF(fimTurma!B28<>"",fimTurma!B28,"") ->  | B28: =fimTurma!A28 -> 25 | C28: =IF(fimTurma!C28=0,"",fimTurma!C28) ->  | D28: =IF(OR(fimTurma!E28="",fimTurma!F28=""),"",(fimTurma!F28-fimTurma!E28)/365.25) ->  | E28: =IF(OR(fimTurma!E28="",fimTurma!F28=""),"",fimTurma!F28-fimTurma!E28) ->  | G28: =IF(OR(F28="",fimTurma!G28=""),"",VLOOKUP(fimTurma!G28,References!A$3:J$78,F28,0)) ->  | H28: =IF(OR(F28="",fimTurma!H28=""),"",IF(fimTurma!D28="Menino",VLOOKUP(fimTurma!H28,References!A$103:J$208,F28,0),VLOOKUP(fimTurma!H28,References!A$303:J$413,F28,0))) ->  | I28: =IF(OR(F28="",fimTurma!I28=""),"",VLOOKUP(fimTurma!I28,References!A$503:J$575,F28,0)) ->  | J28: =IF(OR(F28="",fimTurma!J28=""),"",IF(fimTurma!D28="Menino",VLOOKUP(fimTurma!J28,References!A$603:J$681,F28,0),VLOOKUP(fimTurma!J28,References!A$803:J$881,F28,0))) ->  | L28: =IF(K28="","",VLOOKUP(K28,References!A$903:B$1362,2,)) ->  | N28: =IF(L28="","",VLOOKUP(L28,References!A$1403:B$1903,2,0)) -> 
A29: =IF(fimTurma!B29<>"",fimTurma!B29,"") ->  | B29: =fimTurma!A29 -> 26 | C29: =IF(fimTurma!C29=0,"",fimTurma!C29) ->  | D29: =IF(OR(fimTurma!E29="",fimTurma!F29=""),"",(fimTurma!F29-fimTurma!E29)/365.25) ->  | E29: =IF(OR(fimTurma!E29="",fimTurma!F29=""),"",fimTurma!F29-fimTurma!E29) ->  | G29: =IF(OR(F29="",fimTurma!G29=""),"",VLOOKUP(fimTurma!G29,References!A$3:J$78,F29,0)) ->  | H29: =IF(OR(F29="",fimTurma!H29=""),"",IF(fimTurma!D29="Menino",VLOOKUP(fimTurma!H29,References!A$103:J$208,F29,0),VLOOKUP(fimTurma!H29,References!A$303:J$413,F29,0))) ->  | I29: =IF(OR(F29="",fimTurma!I29=""),"",VLOOKUP(fimTurma!I29,References!A$503:J$575,F29,0)) ->  | J29: =IF(OR(F29="",fimTurma!J29=""),"",IF(fimTurma!D29="Menino",VLOOKUP(fimTurma!J29,References!A$603:J$681,F29,0),VLOOKUP(fimTurma!J29,References!A$803:J$881,F29,0))) ->  | L29: =IF(K29="","",VLOOKUP(K29,References!A$903:B$1362,2,)) ->  | N29: =IF(L29="","",VLOOKUP(L29,References!A$1403:B$1903,2,0)) -> 
A30: =IF(fimTurma!B30<>"",fimTurma!B30,"") ->  | B30: =fimTurma!A30 -> 27 | C30: =IF(fimTurma!C30=0,"",fimTurma!C30) ->  | D30: =IF(OR(fimTurma!E30="",fimTurma!F30=""),"",(fimTurma!F30-fimTurma!E30)/365.25) ->  | E30: =IF(OR(fimTurma!E30="",fimTurma!F30=""),"",fimTurma!F30-fimTurma!E30) ->  | G30: =IF(OR(F30="",fimTurma!G30=""),"",VLOOKUP(fimTurma!G30,References!A$3:J$78,F30,0)) ->  | H30: =IF(OR(F30="",fimTurma!H30=""),"",IF(fimTurma!D30="Menino",VLOOKUP(fimTurma!H30,References!A$103:J$208,F30,0),VLOOKUP(fimTurma!H30,References!A$303:J$413,F30,0))) ->  | I30: =IF(OR(F30="",fimTurma!I30=""),"",VLOOKUP(fimTurma!I30,References!A$503:J$575,F30,0)) ->  | J30: =IF(OR(F30="",fimTurma!J30=""),"",IF(fimTurma!D30="Menino",VLOOKUP(fimTurma!J30,References!A$603:J$681,F30,0),VLOOKUP(fimTurma!J30,References!A$803:J$881,F30,0))) ->  | L30: =IF(K30="","",VLOOKUP(K30,References!A$903:B$1362,2,)) ->  | N30: =IF(L30="","",VLOOKUP(L30,References!A$1403:B$1903,2,0)) -> 
A31: =IF(fimTurma!B31<>"",fimTurma!B31,"") ->  | B31: =fimTurma!A31 -> 28 | C31: =IF(fimTurma!C31=0,"",fimTurma!C31) ->  | D31: =IF(OR(fimTurma!E31="",fimTurma!F31=""),"",(fimTurma!F31-fimTurma!E31)/365.25) ->  | E31: =IF(OR(fimTurma!E31="",fimTurma!F31=""),"",fimTurma!F31-fimTurma!E31) ->  | G31: =IF(OR(F31="",fimTurma!G31=""),"",VLOOKUP(fimTurma!G31,References!A$3:J$78,F31,0)) ->  | H31: =IF(OR(F31="",fimTurma!H31=""),"",IF(fimTurma!D31="Menino",VLOOKUP(fimTurma!H31,References!A$103:J$208,F31,0),VLOOKUP(fimTurma!H31,References!A$303:J$413,F31,0))) ->  | I31: =IF(OR(F31="",fimTurma!I31=""),"",VLOOKUP(fimTurma!I31,References!A$503:J$575,F31,0)) ->  | J31: =IF(OR(F31="",fimTurma!J31=""),"",IF(fimTurma!D31="Menino",VLOOKUP(fimTurma!J31,References!A$603:J$681,F31,0),VLOOKUP(fimTurma!J31,References!A$803:J$881,F31,0))) ->  | L31: =IF(K31="","",VLOOKUP(K31,References!A$903:B$1362,2,)) ->  | N31: =IF(L31="","",VLOOKUP(L31,References!A$1403:B$1903,2,0)) -> 
A32: =IF(fimTurma!B32<>"",fimTurma!B32,"") ->  | B32: =fimTurma!A32 -> 29 | C32: =IF(fimTurma!C32=0,"",fimTurma!C32) ->  | D32: =IF(OR(fimTurma!E32="",fimTurma!F32=""),"",(fimTurma!F32-fimTurma!E32)/365.25) ->  | E32: =IF(OR(fimTurma!E32="",fimTurma!F32=""),"",fimTurma!F32-fimTurma!E32) ->  | G32: =IF(OR(F32="",fimTurma!G32=""),"",VLOOKUP(fimTurma!G32,References!A$3:J$78,F32,0)) ->  | H32: =IF(OR(F32="",fimTurma!H32=""),"",IF(fimTurma!D32="Menino",VLOOKUP(fimTurma!H32,References!A$103:J$208,F32,0),VLOOKUP(fimTurma!H32,References!A$303:J$413,F32,0))) ->  | I32: =IF(OR(F32="",fimTurma!I32=""),"",VLOOKUP(fimTurma!I32,References!A$503:J$575,F32,0)) ->  | J32: =IF(OR(F32="",fimTurma!J32=""),"",IF(fimTurma!D32="Menino",VLOOKUP(fimTurma!J32,References!A$603:J$681,F32,0),VLOOKUP(fimTurma!J32,References!A$803:J$881,F32,0))) ->  | L32: =IF(K32="","",VLOOKUP(K32,References!A$903:B$1362,2,)) ->  | N32: =IF(L32="","",VLOOKUP(L32,References!A$1403:B$1903,2,0)) -> 
A33: =IF(fimTurma!B33<>"",fimTurma!B33,"") ->  | B33: =fimTurma!A33 -> 30 | C33: =IF(fimTurma!C33=0,"",fimTurma!C33) ->  | D33: =IF(OR(fimTurma!E33="",fimTurma!F33=""),"",(fimTurma!F33-fimTurma!E33)/365.25) ->  | E33: =IF(OR(fimTurma!E33="",fimTurma!F33=""),"",fimTurma!F33-fimTurma!E33) ->  | G33: =IF(OR(F33="",fimTurma!G33=""),"",VLOOKUP(fimTurma!G33,References!A$3:J$78,F33,0)) ->  | H33: =IF(OR(F33="",fimTurma!H33=""),"",IF(fimTurma!D33="Menino",VLOOKUP(fimTurma!H33,References!A$103:J$208,F33,0),VLOOKUP(fimTurma!H33,References!A$303:J$413,F33,0))) ->  | I33: =IF(OR(F33="",fimTurma!I33=""),"",VLOOKUP(fimTurma!I33,References!A$503:J$575,F33,0)) ->  | J33: =IF(OR(F33="",fimTurma!J33=""),"",IF(fimTurma!D33="Menino",VLOOKUP(fimTurma!J33,References!A$603:J$681,F33,0),VLOOKUP(fimTurma!J33,References!A$803:J$881,F33,0))) ->  | L33: =IF(K33="","",VLOOKUP(K33,References!A$903:B$1362,2,)) ->  | N33: =IF(L33="","",VLOOKUP(L33,References!A$1403:B$1903,2,0)) -> 
A34: =IF(fimTurma!B34<>"",fimTurma!B34,"") ->  | B34: =fimTurma!A34 -> 31 | C34: =IF(fimTurma!C34=0,"",fimTurma!C34) ->  | D34: =IF(OR(fimTurma!E34="",fimTurma!F34=""),"",(fimTurma!F34-fimTurma!E34)/365.25) ->  | E34: =IF(OR(fimTurma!E34="",fimTurma!F34=""),"",fimTurma!F34-fimTurma!E34) ->  | G34: =IF(OR(F34="",fimTurma!G34=""),"",VLOOKUP(fimTurma!G34,References!A$3:J$78,F34,0)) ->  | H34: =IF(OR(F34="",fimTurma!H34=""),"",IF(fimTurma!D34="Menino",VLOOKUP(fimTurma!H34,References!A$103:J$208,F34,0),VLOOKUP(fimTurma!H34,References!A$303:J$413,F34,0))) ->  | I34: =IF(OR(F34="",fimTurma!I34=""),"",VLOOKUP(fimTurma!I34,References!A$503:J$575,F34,0)) ->  | J34: =IF(OR(F34="",fimTurma!J34=""),"",IF(fimTurma!D34="Menino",VLOOKUP(fimTurma!J34,References!A$603:J$681,F34,0),VLOOKUP(fimTurma!J34,References!A$803:J$881,F34,0))) ->  | L34: =IF(K34="","",VLOOKUP(K34,References!A$903:B$1362,2,)) ->  | N34: =IF(L34="","",VLOOKUP(L34,References!A$1403:B$1903,2,0)) -> 
A35: =IF(fimTurma!B35<>"",fimTurma!B35,"") ->  | B35: =fimTurma!A35 -> 32 | C35: =IF(fimTurma!C35=0,"",fimTurma!C35) ->  | D35: =IF(OR(fimTurma!E35="",fimTurma!F35=""),"",(fimTurma!F35-fimTurma!E35)/365.25) ->  | E35: =IF(OR(fimTurma!E35="",fimTurma!F35=""),"",fimTurma!F35-fimTurma!E35) ->  | G35: =IF(OR(F35="",fimTurma!G35=""),"",VLOOKUP(fimTurma!G35,References!A$3:J$78,F35,0)) ->  | H35: =IF(OR(F35="",fimTurma!H35=""),"",IF(fimTurma!D35="Menino",VLOOKUP(fimTurma!H35,References!A$103:J$208,F35,0),VLOOKUP(fimTurma!H35,References!A$303:J$413,F35,0))) ->  | I35: =IF(OR(F35="",fimTurma!I35=""),"",VLOOKUP(fimTurma!I35,References!A$503:J$575,F35,0)) ->  | J35: =IF(OR(F35="",fimTurma!J35=""),"",IF(fimTurma!D35="Menino",VLOOKUP(fimTurma!J35,References!A$603:J$681,F35,0),VLOOKUP(fimTurma!J35,References!A$803:J$881,F35,0))) ->  | L35: =IF(K35="","",VLOOKUP(K35,References!A$903:B$1362,2,)) ->  | N35: =IF(L35="","",VLOOKUP(L35,References!A$1403:B$1903,2,0)) -> 
A36: =IF(fimTurma!B36<>"",fimTurma!B36,"") ->  | B36: =fimTurma!A36 -> 33 | C36: =IF(fimTurma!C36=0,"",fimTurma!C36) ->  | D36: =IF(OR(fimTurma!E36="",fimTurma!F36=""),"",(fimTurma!F36-fimTurma!E36)/365.25) ->  | E36: =IF(OR(fimTurma!E36="",fimTurma!F36=""),"",fimTurma!F36-fimTurma!E36) ->  | G36: =IF(OR(F36="",fimTurma!G36=""),"",VLOOKUP(fimTurma!G36,References!A$3:J$78,F36,0)) ->  | H36: =IF(OR(F36="",fimTurma!H36=""),"",IF(fimTurma!D36="Menino",VLOOKUP(fimTurma!H36,References!A$103:J$208,F36,0),VLOOKUP(fimTurma!H36,References!A$303:J$413,F36,0))) ->  | I36: =IF(OR(F36="",fimTurma!I36=""),"",VLOOKUP(fimTurma!I36,References!A$503:J$575,F36,0)) ->  | J36: =IF(OR(F36="",fimTurma!J36=""),"",IF(fimTurma!D36="Menino",VLOOKUP(fimTurma!J36,References!A$603:J$681,F36,0),VLOOKUP(fimTurma!J36,References!A$803:J$881,F36,0))) ->  | L36: =IF(K36="","",VLOOKUP(K36,References!A$903:B$1362,2,)) ->  | N36: =IF(L36="","",VLOOKUP(L36,References!A$1403:B$1903,2,0)) -> 
A37: =IF(fimTurma!B37<>"",fimTurma!B37,"") ->  | B37: =fimTurma!A37 -> 34 | C37: =IF(fimTurma!C37=0,"",fimTurma!C37) ->  | D37: =IF(OR(fimTurma!E37="",fimTurma!F37=""),"",(fimTurma!F37-fimTurma!E37)/365.25) ->  | E37: =IF(OR(fimTurma!E37="",fimTurma!F37=""),"",fimTurma!F37-fimTurma!E37) ->  | G37: =IF(OR(F37="",fimTurma!G37=""),"",VLOOKUP(fimTurma!G37,References!A$3:J$78,F37,0)) ->  | H37: =IF(OR(F37="",fimTurma!H37=""),"",IF(fimTurma!D37="Menino",VLOOKUP(fimTurma!H37,References!A$103:J$208,F37,0),VLOOKUP(fimTurma!H37,References!A$303:J$413,F37,0))) ->  | I37: =IF(OR(F37="",fimTurma!I37=""),"",VLOOKUP(fimTurma!I37,References!A$503:J$575,F37,0)) ->  | J37: =IF(OR(F37="",fimTurma!J37=""),"",IF(fimTurma!D37="Menino",VLOOKUP(fimTurma!J37,References!A$603:J$681,F37,0),VLOOKUP(fimTurma!J37,References!A$803:J$881,F37,0))) ->  | L37: =IF(K37="","",VLOOKUP(K37,References!A$903:B$1362,2,)) ->  | N37: =IF(L37="","",VLOOKUP(L37,References!A$1403:B$1903,2,0)) -> 
A38: =IF(fimTurma!B38<>"",fimTurma!B38,"") ->  | B38: =fimTurma!A38 -> 35 | C38: =IF(fimTurma!C38=0,"",fimTurma!C38) ->  | D38: =IF(OR(fimTurma!E38="",fimTurma!F38=""),"",(fimTurma!F38-fimTurma!E38)/365.25) ->  | E38: =IF(OR(fimTurma!E38="",fimTurma!F38=""),"",fimTurma!F38-fimTurma!E38) ->  | G38: =IF(OR(F38="",fimTurma!G38=""),"",VLOOKUP(fimTurma!G38,References!A$3:J$78,F38,0)) ->  | H38: =IF(OR(F38="",fimTurma!H38=""),"",IF(fimTurma!D38="Menino",VLOOKUP(fimTurma!H38,References!A$103:J$208,F38,0),VLOOKUP(fimTurma!H38,References!A$303:J$413,F38,0))) ->  | I38: =IF(OR(F38="",fimTurma!I38=""),"",VLOOKUP(fimTurma!I38,References!A$503:J$575,F38,0)) ->  | J38: =IF(OR(F38="",fimTurma!J38=""),"",IF(fimTurma!D38="Menino",VLOOKUP(fimTurma!J38,References!A$603:J$681,F38,0),VLOOKUP(fimTurma!J38,References!A$803:J$881,F38,0))) ->  | L38: =IF(K38="","",VLOOKUP(K38,References!A$903:B$1362,2,)) ->  | N38: =IF(L38="","",VLOOKUP(L38,References!A$1403:B$1903,2,0)) -> 
A39: =IF(fimTurma!B39<>"",fimTurma!B39,"") ->  | B39: =fimTurma!A39 -> 36 | C39: =IF(fimTurma!C39=0,"",fimTurma!C39) ->  | D39: =IF(OR(fimTurma!E39="",fimTurma!F39=""),"",(fimTurma!F39-fimTurma!E39)/365.25) ->  | E39: =IF(OR(fimTurma!E39="",fimTurma!F39=""),"",fimTurma!F39-fimTurma!E39) ->  | G39: =IF(OR(F39="",fimTurma!G39=""),"",VLOOKUP(fimTurma!G39,References!A$3:J$78,F39,0)) ->  | H39: =IF(OR(F39="",fimTurma!H39=""),"",IF(fimTurma!D39="Menino",VLOOKUP(fimTurma!H39,References!A$103:J$208,F39,0),VLOOKUP(fimTurma!H39,References!A$303:J$413,F39,0))) ->  | I39: =IF(OR(F39="",fimTurma!I39=""),"",VLOOKUP(fimTurma!I39,References!A$503:J$575,F39,0)) ->  | J39: =IF(OR(F39="",fimTurma!J39=""),"",IF(fimTurma!D39="Menino",VLOOKUP(fimTurma!J39,References!A$603:J$681,F39,0),VLOOKUP(fimTurma!J39,References!A$803:J$881,F39,0))) ->  | L39: =IF(K39="","",VLOOKUP(K39,References!A$903:B$1362,2,)) ->  | N39: =IF(L39="","",VLOOKUP(L39,References!A$1403:B$1903,2,0)) -> 
A40: =IF(fimTurma!B40<>"",fimTurma!B40,"") ->  | B40: =fimTurma!A40 -> 37 | C40: =IF(fimTurma!C40=0,"",fimTurma!C40) ->  | D40: =IF(OR(fimTurma!E40="",fimTurma!F40=""),"",(fimTurma!F40-fimTurma!E40)/365.25) ->  | E40: =IF(OR(fimTurma!E40="",fimTurma!F40=""),"",fimTurma!F40-fimTurma!E40) ->  | G40: =IF(OR(F40="",fimTurma!G40=""),"",VLOOKUP(fimTurma!G40,References!A$3:J$78,F40,0)) ->  | H40: =IF(OR(F40="",fimTurma!H40=""),"",IF(fimTurma!D40="Menino",VLOOKUP(fimTurma!H40,References!A$103:J$208,F40,0),VLOOKUP(fimTurma!H40,References!A$303:J$413,F40,0))) ->  | I40: =IF(OR(F40="",fimTurma!I40=""),"",VLOOKUP(fimTurma!I40,References!A$503:J$575,F40,0)) ->  | J40: =IF(OR(F40="",fimTurma!J40=""),"",IF(fimTurma!D40="Menino",VLOOKUP(fimTurma!J40,References!A$603:J$681,F40,0),VLOOKUP(fimTurma!J40,References!A$803:J$881,F40,0))) ->  | L40: =IF(K40="","",VLOOKUP(K40,References!A$903:B$1362,2,)) ->  | N40: =IF(L40="","",VLOOKUP(L40,References!A$1403:B$1903,2,0)) -> 
A41: =IF(fimTurma!B41<>"",fimTurma!B41,"") ->  | B41: =fimTurma!A41 -> 38 | C41: =IF(fimTurma!C41=0,"",fimTurma!C41) ->  | D41: =IF(OR(fimTurma!E41="",fimTurma!F41=""),"",(fimTurma!F41-fimTurma!E41)/365.25) ->  | E41: =IF(OR(fimTurma!E41="",fimTurma!F41=""),"",fimTurma!F41-fimTurma!E41) ->  | G41: =IF(OR(F41="",fimTurma!G41=""),"",VLOOKUP(fimTurma!G41,References!A$3:J$78,F41,0)) ->  | H41: =IF(OR(F41="",fimTurma!H41=""),"",IF(fimTurma!D41="Menino",VLOOKUP(fimTurma!H41,References!A$103:J$208,F41,0),VLOOKUP(fimTurma!H41,References!A$303:J$413,F41,0))) ->  | I41: =IF(OR(F41="",fimTurma!I41=""),"",VLOOKUP(fimTurma!I41,References!A$503:J$575,F41,0)) ->  | J41: =IF(OR(F41="",fimTurma!J41=""),"",IF(fimTurma!D41="Menino",VLOOKUP(fimTurma!J41,References!A$603:J$681,F41,0),VLOOKUP(fimTurma!J41,References!A$803:J$881,F41,0))) ->  | L41: =IF(K41="","",VLOOKUP(K41,References!A$903:B$1362,2,)) ->  | N41: =IF(L41="","",VLOOKUP(L41,References!A$1403:B$1903,2,0)) -> 
A42: =IF(fimTurma!B42<>"",fimTurma!B42,"") ->  | B42: =fimTurma!A42 -> 39 | C42: =IF(fimTurma!C42=0,"",fimTurma!C42) ->  | D42: =IF(OR(fimTurma!E42="",fimTurma!F42=""),"",(fimTurma!F42-fimTurma!E42)/365.25) ->  | E42: =IF(OR(fimTurma!E42="",fimTurma!F42=""),"",fimTurma!F42-fimTurma!E42) ->  | G42: =IF(OR(F42="",fimTurma!G42=""),"",VLOOKUP(fimTurma!G42,References!A$3:J$78,F42,0)) ->  | H42: =IF(OR(F42="",fimTurma!H42=""),"",IF(fimTurma!D42="Menino",VLOOKUP(fimTurma!H42,References!A$103:J$208,F42,0),VLOOKUP(fimTurma!H42,References!A$303:J$413,F42,0))) ->  | I42: =IF(OR(F42="",fimTurma!I42=""),"",VLOOKUP(fimTurma!I42,References!A$503:J$575,F42,0)) ->  | J42: =IF(OR(F42="",fimTurma!J42=""),"",IF(fimTurma!D42="Menino",VLOOKUP(fimTurma!J42,References!A$603:J$681,F42,0),VLOOKUP(fimTurma!J42,References!A$803:J$881,F42,0))) ->  | L42: =IF(K42="","",VLOOKUP(K42,References!A$903:B$1362,2,)) ->  | N42: =IF(L42="","",VLOOKUP(L42,References!A$1403:B$1903,2,0)) -> 
A43: =IF(fimTurma!B43<>"",fimTurma!B43,"") ->  | B43: =fimTurma!A43 -> 40 | C43: =IF(fimTurma!C43=0,"",fimTurma!C43) ->  | D43: =IF(OR(fimTurma!E43="",fimTurma!F43=""),"",(fimTurma!F43-fimTurma!E43)/365.25) ->  | E43: =IF(OR(fimTurma!E43="",fimTurma!F43=""),"",fimTurma!F43-fimTurma!E43) ->  | G43: =IF(OR(F43="",fimTurma!G43=""),"",VLOOKUP(fimTurma!G43,References!A$3:J$78,F43,0)) ->  | H43: =IF(OR(F43="",fimTurma!H43=""),"",IF(fimTurma!D43="Menino",VLOOKUP(fimTurma!H43,References!A$103:J$208,F43,0),VLOOKUP(fimTurma!H43,References!A$303:J$413,F43,0))) ->  | I43: =IF(OR(F43="",fimTurma!I43=""),"",VLOOKUP(fimTurma!I43,References!A$503:J$575,F43,0)) ->  | J43: =IF(OR(F43="",fimTurma!J43=""),"",IF(fimTurma!D43="Menino",VLOOKUP(fimTurma!J43,References!A$603:J$681,F43,0),VLOOKUP(fimTurma!J43,References!A$803:J$881,F43,0))) ->  | L43: =IF(K43="","",VLOOKUP(K43,References!A$903:B$1362,2,)) ->  | N43: =IF(L43="","",VLOOKUP(L43,References!A$1403:B$1903,2,0)) -> 
A44: =IF(fimTurma!B44<>"",fimTurma!B44,"") ->  | B44: =fimTurma!A44 -> 41 | C44: =IF(fimTurma!C44=0,"",fimTurma!C44) ->  | D44: =IF(OR(fimTurma!E44="",fimTurma!F44=""),"",(fimTurma!F44-fimTurma!E44)/365.25) ->  | E44: =IF(OR(fimTurma!E44="",fimTurma!F44=""),"",fimTurma!F44-fimTurma!E44) ->  | G44: =IF(OR(F44="",fimTurma!G44=""),"",VLOOKUP(fimTurma!G44,References!A$3:J$78,F44,0)) ->  | H44: =IF(OR(F44="",fimTurma!H44=""),"",IF(fimTurma!D44="Menino",VLOOKUP(fimTurma!H44,References!A$103:J$208,F44,0),VLOOKUP(fimTurma!H44,References!A$303:J$413,F44,0))) ->  | I44: =IF(OR(F44="",fimTurma!I44=""),"",VLOOKUP(fimTurma!I44,References!A$503:J$575,F44,0)) ->  | J44: =IF(OR(F44="",fimTurma!J44=""),"",IF(fimTurma!D44="Menino",VLOOKUP(fimTurma!J44,References!A$603:J$681,F44,0),VLOOKUP(fimTurma!J44,References!A$803:J$881,F44,0))) ->  | L44: =IF(K44="","",VLOOKUP(K44,References!A$903:B$1362,2,)) ->  | N44: =IF(L44="","",VLOOKUP(L44,References!A$1403:B$1903,2,0)) -> 
A45: =IF(fimTurma!B45<>"",fimTurma!B45,"") ->  | B45: =fimTurma!A45 -> 42 | C45: =IF(fimTurma!C45=0,"",fimTurma!C45) ->  | D45: =IF(OR(fimTurma!E45="",fimTurma!F45=""),"",(fimTurma!F45-fimTurma!E45)/365.25) ->  | E45: =IF(OR(fimTurma!E45="",fimTurma!F45=""),"",fimTurma!F45-fimTurma!E45) ->  | G45: =IF(OR(F45="",fimTurma!G45=""),"",VLOOKUP(fimTurma!G45,References!A$3:J$78,F45,0)) ->  | H45: =IF(OR(F45="",fimTurma!H45=""),"",IF(fimTurma!D45="Menino",VLOOKUP(fimTurma!H45,References!A$103:J$208,F45,0),VLOOKUP(fimTurma!H45,References!A$303:J$413,F45,0))) ->  | I45: =IF(OR(F45="",fimTurma!I45=""),"",VLOOKUP(fimTurma!I45,References!A$503:J$575,F45,0)) ->  | J45: =IF(OR(F45="",fimTurma!J45=""),"",IF(fimTurma!D45="Menino",VLOOKUP(fimTurma!J45,References!A$603:J$681,F45,0),VLOOKUP(fimTurma!J45,References!A$803:J$881,F45,0))) ->  | L45: =IF(K45="","",VLOOKUP(K45,References!A$903:B$1362,2,)) ->  | N45: =IF(L45="","",VLOOKUP(L45,References!A$1403:B$1903,2,0)) -> 
A46: =IF(fimTurma!B46<>"",fimTurma!B46,"") ->  | B46: =fimTurma!A46 -> 43 | C46: =IF(fimTurma!C46=0,"",fimTurma!C46) ->  | D46: =IF(OR(fimTurma!E46="",fimTurma!F46=""),"",(fimTurma!F46-fimTurma!E46)/365.25) ->  | E46: =IF(OR(fimTurma!E46="",fimTurma!F46=""),"",fimTurma!F46-fimTurma!E46) ->  | G46: =IF(OR(F46="",fimTurma!G46=""),"",VLOOKUP(fimTurma!G46,References!A$3:J$78,F46,0)) ->  | H46: =IF(OR(F46="",fimTurma!H46=""),"",IF(fimTurma!D46="Menino",VLOOKUP(fimTurma!H46,References!A$103:J$208,F46,0),VLOOKUP(fimTurma!H46,References!A$303:J$413,F46,0))) ->  | I46: =IF(OR(F46="",fimTurma!I46=""),"",VLOOKUP(fimTurma!I46,References!A$503:J$575,F46,0)) ->  | J46: =IF(OR(F46="",fimTurma!J46=""),"",IF(fimTurma!D46="Menino",VLOOKUP(fimTurma!J46,References!A$603:J$681,F46,0),VLOOKUP(fimTurma!J46,References!A$803:J$881,F46,0))) ->  | L46: =IF(K46="","",VLOOKUP(K46,References!A$903:B$1362,2,)) ->  | N46: =IF(L46="","",VLOOKUP(L46,References!A$1403:B$1903,2,0)) -> 
A47: =IF(fimTurma!B47<>"",fimTurma!B47,"") ->  | B47: =fimTurma!A47 -> 44 | C47: =IF(fimTurma!C47=0,"",fimTurma!C47) ->  | D47: =IF(OR(fimTurma!E47="",fimTurma!F47=""),"",(fimTurma!F47-fimTurma!E47)/365.25) ->  | E47: =IF(OR(fimTurma!E47="",fimTurma!F47=""),"",fimTurma!F47-fimTurma!E47) ->  | G47: =IF(OR(F47="",fimTurma!G47=""),"",VLOOKUP(fimTurma!G47,References!A$3:J$78,F47,0)) ->  | H47: =IF(OR(F47="",fimTurma!H47=""),"",IF(fimTurma!D47="Menino",VLOOKUP(fimTurma!H47,References!A$103:J$208,F47,0),VLOOKUP(fimTurma!H47,References!A$303:J$413,F47,0))) ->  | I47: =IF(OR(F47="",fimTurma!I47=""),"",VLOOKUP(fimTurma!I47,References!A$503:J$575,F47,0)) ->  | J47: =IF(OR(F47="",fimTurma!J47=""),"",IF(fimTurma!D47="Menino",VLOOKUP(fimTurma!J47,References!A$603:J$681,F47,0),VLOOKUP(fimTurma!J47,References!A$803:J$881,F47,0))) ->  | L47: =IF(K47="","",VLOOKUP(K47,References!A$903:B$1362,2,)) ->  | N47: =IF(L47="","",VLOOKUP(L47,References!A$1403:B$1903,2,0)) -> 
A48: =IF(fimTurma!B48<>"",fimTurma!B48,"") ->  | B48: =fimTurma!A48 -> 45 | C48: =IF(fimTurma!C48=0,"",fimTurma!C48) ->  | D48: =IF(OR(fimTurma!E48="",fimTurma!F48=""),"",(fimTurma!F48-fimTurma!E48)/365.25) ->  | E48: =IF(OR(fimTurma!E48="",fimTurma!F48=""),"",fimTurma!F48-fimTurma!E48) ->  | G48: =IF(OR(F48="",fimTurma!G48=""),"",VLOOKUP(fimTurma!G48,References!A$3:J$78,F48,0)) ->  | H48: =IF(OR(F48="",fimTurma!H48=""),"",IF(fimTurma!D48="Menino",VLOOKUP(fimTurma!H48,References!A$103:J$208,F48,0),VLOOKUP(fimTurma!H48,References!A$303:J$413,F48,0))) ->  | I48: =IF(OR(F48="",fimTurma!I48=""),"",VLOOKUP(fimTurma!I48,References!A$503:J$575,F48,0)) ->  | J48: =IF(OR(F48="",fimTurma!J48=""),"",IF(fimTurma!D48="Menino",VLOOKUP(fimTurma!J48,References!A$603:J$681,F48,0),VLOOKUP(fimTurma!J48,References!A$803:J$881,F48,0))) ->  | L48: =IF(K48="","",VLOOKUP(K48,References!A$903:B$1362,2,)) ->  | N48: =IF(L48="","",VLOOKUP(L48,References!A$1403:B$1903,2,0)) -> 
A49: =IF(fimTurma!B49<>"",fimTurma!B49,"") ->  | B49: =fimTurma!A49 -> 46 | C49: =IF(fimTurma!C49=0,"",fimTurma!C49) ->  | D49: =IF(OR(fimTurma!E49="",fimTurma!F49=""),"",(fimTurma!F49-fimTurma!E49)/365.25) ->  | E49: =IF(OR(fimTurma!E49="",fimTurma!F49=""),"",fimTurma!F49-fimTurma!E49) ->  | G49: =IF(OR(F49="",fimTurma!G49=""),"",VLOOKUP(fimTurma!G49,References!A$3:J$78,F49,0)) ->  | H49: =IF(OR(F49="",fimTurma!H49=""),"",IF(fimTurma!D49="Menino",VLOOKUP(fimTurma!H49,References!A$103:J$208,F49,0),VLOOKUP(fimTurma!H49,References!A$303:J$413,F49,0))) ->  | I49: =IF(OR(F49="",fimTurma!I49=""),"",VLOOKUP(fimTurma!I49,References!A$503:J$575,F49,0)) ->  | J49: =IF(OR(F49="",fimTurma!J49=""),"",IF(fimTurma!D49="Menino",VLOOKUP(fimTurma!J49,References!A$603:J$681,F49,0),VLOOKUP(fimTurma!J49,References!A$803:J$881,F49,0))) ->  | L49: =IF(K49="","",VLOOKUP(K49,References!A$903:B$1362,2,)) ->  | N49: =IF(L49="","",VLOOKUP(L49,References!A$1403:B$1903,2,0)) -> 
A50: =IF(fimTurma!B50<>"",fimTurma!B50,"") ->  | B50: =fimTurma!A50 -> 47 | C50: =IF(fimTurma!C50=0,"",fimTurma!C50) ->  | D50: =IF(OR(fimTurma!E50="",fimTurma!F50=""),"",(fimTurma!F50-fimTurma!E50)/365.25) ->  | E50: =IF(OR(fimTurma!E50="",fimTurma!F50=""),"",fimTurma!F50-fimTurma!E50) ->  | G50: =IF(OR(F50="",fimTurma!G50=""),"",VLOOKUP(fimTurma!G50,References!A$3:J$78,F50,0)) ->  | H50: =IF(OR(F50="",fimTurma!H50=""),"",IF(fimTurma!D50="Menino",VLOOKUP(fimTurma!H50,References!A$103:J$208,F50,0),VLOOKUP(fimTurma!H50,References!A$303:J$413,F50,0))) ->  | I50: =IF(OR(F50="",fimTurma!I50=""),"",VLOOKUP(fimTurma!I50,References!A$503:J$575,F50,0)) ->  | J50: =IF(OR(F50="",fimTurma!J50=""),"",IF(fimTurma!D50="Menino",VLOOKUP(fimTurma!J50,References!A$603:J$681,F50,0),VLOOKUP(fimTurma!J50,References!A$803:J$881,F50,0))) ->  | L50: =IF(K50="","",VLOOKUP(K50,References!A$903:B$1362,2,)) ->  | N50: =IF(L50="","",VLOOKUP(L50,References!A$1403:B$1903,2,0)) -> 
A51: =IF(fimTurma!B51<>"",fimTurma!B51,"") ->  | B51: =fimTurma!A51 -> 48 | C51: =IF(fimTurma!C51=0,"",fimTurma!C51) ->  | D51: =IF(OR(fimTurma!E51="",fimTurma!F51=""),"",(fimTurma!F51-fimTurma!E51)/365.25) ->  | E51: =IF(OR(fimTurma!E51="",fimTurma!F51=""),"",fimTurma!F51-fimTurma!E51) ->  | G51: =IF(OR(F51="",fimTurma!G51=""),"",VLOOKUP(fimTurma!G51,References!A$3:J$78,F51,0)) ->  | H51: =IF(OR(F51="",fimTurma!H51=""),"",IF(fimTurma!D51="Menino",VLOOKUP(fimTurma!H51,References!A$103:J$208,F51,0),VLOOKUP(fimTurma!H51,References!A$303:J$413,F51,0))) ->  | I51: =IF(OR(F51="",fimTurma!I51=""),"",VLOOKUP(fimTurma!I51,References!A$503:J$575,F51,0)) ->  | J51: =IF(OR(F51="",fimTurma!J51=""),"",IF(fimTurma!D51="Menino",VLOOKUP(fimTurma!J51,References!A$603:J$681,F51,0),VLOOKUP(fimTurma!J51,References!A$803:J$881,F51,0))) ->  | L51: =IF(K51="","",VLOOKUP(K51,References!A$903:B$1362,2,)) ->  | N51: =IF(L51="","",VLOOKUP(L51,References!A$1403:B$1903,2,0)) -> 
A52: =IF(fimTurma!B52<>"",fimTurma!B52,"") ->  | B52: =fimTurma!A52 -> 49 | C52: =IF(fimTurma!C52=0,"",fimTurma!C52) ->  | D52: =IF(OR(fimTurma!E52="",fimTurma!F52=""),"",(fimTurma!F52-fimTurma!E52)/365.25) ->  | E52: =IF(OR(fimTurma!E52="",fimTurma!F52=""),"",fimTurma!F52-fimTurma!E52) ->  | G52: =IF(OR(F52="",fimTurma!G52=""),"",VLOOKUP(fimTurma!G52,References!A$3:J$78,F52,0)) ->  | H52: =IF(OR(F52="",fimTurma!H52=""),"",IF(fimTurma!D52="Menino",VLOOKUP(fimTurma!H52,References!A$103:J$208,F52,0),VLOOKUP(fimTurma!H52,References!A$303:J$413,F52,0))) ->  | I52: =IF(OR(F52="",fimTurma!I52=""),"",VLOOKUP(fimTurma!I52,References!A$503:J$575,F52,0)) ->  | J52: =IF(OR(F52="",fimTurma!J52=""),"",IF(fimTurma!D52="Menino",VLOOKUP(fimTurma!J52,References!A$603:J$681,F52,0),VLOOKUP(fimTurma!J52,References!A$803:J$881,F52,0))) ->  | L52: =IF(K52="","",VLOOKUP(K52,References!A$903:B$1362,2,)) ->  | N52: =IF(L52="","",VLOOKUP(L52,References!A$1403:B$1903,2,0)) -> 
A53: =IF(fimTurma!B53<>"",fimTurma!B53,"") ->  | B53: =fimTurma!A53 -> 50 | C53: =IF(fimTurma!C53=0,"",fimTurma!C53) ->  | D53: =IF(OR(fimTurma!E53="",fimTurma!F53=""),"",(fimTurma!F53-fimTurma!E53)/365.25) ->  | E53: =IF(OR(fimTurma!E53="",fimTurma!F53=""),"",fimTurma!F53-fimTurma!E53) ->  | G53: =IF(OR(F53="",fimTurma!G53=""),"",VLOOKUP(fimTurma!G53,References!A$3:J$78,F53,0)) ->  | H53: =IF(OR(F53="",fimTurma!H53=""),"",IF(fimTurma!D53="Menino",VLOOKUP(fimTurma!H53,References!A$103:J$208,F53,0),VLOOKUP(fimTurma!H53,References!A$303:J$413,F53,0))) ->  | I53: =IF(OR(F53="",fimTurma!I53=""),"",VLOOKUP(fimTurma!I53,References!A$503:J$575,F53,0)) ->  | J53: =IF(OR(F53="",fimTurma!J53=""),"",IF(fimTurma!D53="Menino",VLOOKUP(fimTurma!J53,References!A$603:J$681,F53,0),VLOOKUP(fimTurma!J53,References!A$803:J$881,F53,0))) ->  | L53: =IF(K53="","",VLOOKUP(K53,References!A$903:B$1362,2,)) ->  | N53: =IF(L53="","",VLOOKUP(L53,References!A$1403:B$1903,2,0)) -> 

Sheet fimRelatório
A1: RELATÓRIO INDIVIDUAL DA COORDENAÇÃO MOTORA
A2: =IF(fimTurma!A2=1,VLOOKUP("x",fimTurma!B$4:M$53,2,0),"") -> Teresa Martinho
A3: =IF(fimTurma!A2=1,_xlfn.CONCAT(TEXT(VLOOKUP("x",fimTurma!B$4:M$53,4,0),"dd-mm-aaaa")," | ",fimTurma!C1,"º ano"," | ",fimTurma!C2),"") -> 10-07-2012 | 3º ano | B
B5: Pontuação | D5: Média | F5: Mínimo | H5: Máximo
B6: da criança | D6: da turma | F6: da turma | H6: da turma
A7: =IF(fimTurma!$A$2=1,Auxiliar!C3,"") -> Transposição lateral | B7: =IF(fimTurma!$A$2=1,VLOOKUP("x",fimTurma!$B$4:$J$53,6,0),0) -> 50 | D7: =IF(fimTurma!A2=1,fimTurma!G1,0) -> 37.5 | F7: =IF(fimTurma!A2=1,SMALL(fimTurma!G4:G53,1),0) -> 32 | H7: =IF(fimTurma!A2=1,LARGE(fimTurma!G4:G53,1),0) -> 50
A9: =IF(fimTurma!$A$2=1,Auxiliar!C4,"") -> Saltos laterais | B9: =IF(fimTurma!$A$2=1,VLOOKUP("x",fimTurma!$B$4:$J$53,7,0),0) -> 74 | D9: =IF(fimTurma!A2=1,fimTurma!H1,0) -> 39.6 | F9: =IF(fimTurma!A2=1,SMALL(fimTurma!H4:H53,1),0) -> 8 | H9: =IF(fimTurma!A2=1,LARGE(fimTurma!H4:H53,1),0) -> 74
A11: =IF(fimTurma!$A$2=1,Auxiliar!C5,"") -> Equilíbrio à retaguarda | B11: =IF(fimTurma!$A$2=1,VLOOKUP("x",fimTurma!$B$4:$J$53,8,0),0) -> 70 | D11: =IF(fimTurma!A2=1,fimTurma!I1,0) -> 59.8 | F11: =IF(fimTurma!A2=1,SMALL(fimTurma!I4:I53,1),0) -> 50 | H11: =IF(fimTurma!A2=1,LARGE(fimTurma!I4:I53,1),0) -> 70
A13: =IF(fimTurma!$A$2=1,Auxiliar!C6,"") -> Saltos monopedais | B13: =IF(fimTurma!$A$2=1,VLOOKUP("x",fimTurma!$B$4:$J$53,9,0),0) -> 58 | D13: =IF(fimTurma!A2=1,fimTurma!J1,0) -> 56 | F13: =IF(fimTurma!A2=1,SMALL(fimTurma!J4:J53,1),0) -> 50 | H13: =IF(fimTurma!A2=1,LARGE(fimTurma!J4:J53,1),0) -> 60
A16: PONTUAÇÃO TOTAL | B16: =IF(fimTurma!$A2=1,B7+B9+B11+B13,0) -> 252 | D16: =IF(fimTurma!$A2=1,D7+D9+D11+D13,0) -> 192.9 | F16: =IF(fimTurma!$A2=1,F7+F9+F11+F13,0) -> 140 | H16: =IF(fimTurma!$A2=1,H7+H9+H11+H13,0) -> 254
F17: Nível coordenativo
A18: QUOCIENTE MOTOR | B18: =IF(fimTurma!A2=1,VLOOKUP("x",fimKTK!A4:N53,12,0),0) -> 110 | F18: =IF(fimTurma!A2=1,VLOOKUP("x",fimKTK!A4:P53,15,0),"") -> Desempenho
F19: =IF(fimTurma!A2=1,VLOOKUP("x",fimKTK!A4:P53,16,0),"") -> típico ou normal
A22: Perfil

Sheet profRelatório
A1: RELATÓRIO RESUMO PARA O PROFESSOR/TREINADOR
A2: =_xlfn.CONCAT(fimTurma!C1,"º ano"," | ",fimTurma!C2) -> 3º ano | B
C4: Início do Ano | G4: Fim do Ano | K4: Melhoria
C5: Média | E5: Desvio | G5: Média | I5: Desvio | K5: Com
E6: Padrão | I6: Padrão | K6: Significado?
A7: =IF(fimTurma!A2=1,IFERROR(VLOOKUP(1,Auxiliar!B3:M6,2,0),""),"") -> Saltos monopedais | C7: =IF(fimTurma!$A$2=1,IFERROR(VLOOKUP(1,Auxiliar!$B$3:$M$6,4,0),0),0) -> 36 | E7: =IF(fimTurma!$A$2=1,IFERROR(VLOOKUP(1,Auxiliar!$B$3:$P$6,14,0),0),0) -> 22.054478 | G7: =IF(fimTurma!$A$2=1,IFERROR(VLOOKUP(1,Auxiliar!$B$3:$P$6,10,0),0),0) -> 56 | I7: =IF(fimTurma!$A$2=1,IFERROR(VLOOKUP(1,Auxiliar!$B$3:$P$6,15,0),0),0) -> 3.405877273 | K7: =IF(fimTurma!$A$2=1,IFERROR(VLOOKUP(1,Auxiliar!$B$3:$S$6,18,0),0),0) -> Não
A9: =IF(fimTurma!A2=1,IFERROR(VLOOKUP(2,Auxiliar!B3:M6,2,0),""),"") -> Equilíbrio à retaguarda | C9: =IF(fimTurma!$A$2=1,IFERROR(VLOOKUP(2,Auxiliar!$B$3:$M$6,4,0),0),0) -> 32.8 | E9: =IF(fimTurma!$A$2=1,IFERROR(VLOOKUP(2,Auxiliar!$B$3:$P$6,14,0),0),0) -> 13.04453909 | G9: =IF(fimTurma!$A$2=1,IFERROR(VLOOKUP(2,Auxiliar!$B$3:$P$6,10,0),0),0) -> 59.8 | I9: =IF(fimTurma!$A$2=1,IFERROR(VLOOKUP(2,Auxiliar!$B$3:$P$6,15,0),0),0) -> 7.082372484 | K9: =IF(fimTurma!$A$2=1,IFERROR(VLOOKUP(2,Auxiliar!$B$3:$S$6,18,0),0),0) -> Sim
A11: =IF(fimTurma!A2=1,IFERROR(VLOOKUP(3,Auxiliar!B3:M6,2,0),""),"") -> Saltos laterais | C11: =IF(fimTurma!$A$2=1,IFERROR(VLOOKUP(3,Auxiliar!$B$3:$M$6,4,0),0),0) -> 37 | E11: =IF(fimTurma!$A$2=1,IFERROR(VLOOKUP(3,Auxiliar!$B$3:$P$6,14,0),0),0) -> 25.68073208 | G11: =IF(fimTurma!$A$2=1,IFERROR(VLOOKUP(3,Auxiliar!$B$3:$P$6,10,0),0),0) -> 39.6 | I11: =IF(fimTurma!$A$2=1,IFERROR(VLOOKUP(3,Auxiliar!$B$3:$P$6,15,0),0),0) -> 22.22251111 | K11: =IF(fimTurma!$A$2=1,IFERROR(VLOOKUP(3,Auxiliar!$B$3:$S$6,18,0),0),0) -> Não
A13: =IF(fimTurma!A2=1,IFERROR(VLOOKUP(4,Auxiliar!B3:M6,2,0),""),"") -> Transposição lateral | C13: =IF(fimTurma!$A$2=1,IFERROR(VLOOKUP(4,Auxiliar!$B$3:$M$6,4,0),0),0) -> 43.4 | E13: =IF(fimTurma!$A$2=1,IFERROR(VLOOKUP(4,Auxiliar!$B$3:$P$6,14,0),0),0) -> 6.651315659 | G13: =IF(fimTurma!$A$2=1,IFERROR(VLOOKUP(4,Auxiliar!$B$3:$P$6,10,0),0),0) -> 37.5 | I13: =IF(fimTurma!$A$2=1,IFERROR(VLOOKUP(4,Auxiliar!$B$3:$P$6,15,0),0),0) -> 7.29725976 | K13: =IF(fimTurma!$A$2=1,IFERROR(VLOOKUP(4,Auxiliar!$B$3:$S$6,18,0),0),0) -> Não

Sheet profPorTeste
A1: RELATÓRIO POR TESTE PARA O PROFESSOR/TREINADOR
A2: =_xlfn.CONCAT(fimTurma!C1,"º ano"," | ",fimTurma!C2) -> 3º ano | B
A5: Teste: Transposi&#231;&#227;o lateral
